{"text_format":"1","workbook":"xlsx","n_sheets":4,"sheets":["Oppsummering pr. kunde","Statistikker","Forkortelser","Lister til statprogram"],"not_rendered":{"charts":0,"images":0,"macros":1,"external_links":0,"defined_names":2,"comments":0,"pivot_tables":0},"unopened":[],"bounds":{"document_bytes":16777216,"sheet_cells":100000,"rows_first":2000,"rows_last":500,"rows_between":2000,"halvings":0,"cell_chars":16384,"cell_head_chars":4096},"cells_cut":0,"cells_raw":0,"read":"whole","date_system":"1900"}

{"sheet":"Oppsummering pr. kunde","index":0,"n_rows":61,"n_cols":5,"rows_kept":61,"cut":false,"hidden":true,"merged":[[1,3,1,4],[53,0,53,4]]}
["Forventede inntekter offisiell statistikk pr. aug 2021"]
[null,null,null,"Endringer fra 2020 rapportering"]
["Tall i kr (ikke statlige foretak i grå markering)","Forventet inntekt 2021","Rapportering 2020 3)","Utvidet datagrunnlag og nye statistikker i programmet 1)","Andre endringer 2)"]
["ARBEIDS- OG SOSIALDEPARTEMENTET",4126400,5992000,2700000,-4565600]
["BARNE- OG FAMILIEDEPARTEMENTET",985900,0,400000,585900]
["BARNE-/ UNGDOMS- OG FAMILIEDIREKTORATET",2238652,715000,1632652,-109000]
["DEN NORSKE KIRKE (KIRKERÅDET)",832840,800000,0,32840]
["DIGITALISERINGSDIREKTORATET",400000,0,0,400000]
["ENOVA SF",740000,0,0,740000]
["EUROPEAN COMMISSION",1718000,1477500,0,240500]
["FINANSDEPARTEMENTET",2820000,2720000,0,100000]
["FOLKEHELSEINSTITUTTET",50000,100000,0,-50000]
["FINANS NORGE",0,662918.80000000005,0,-662918.80000000005]
["HELSE- OG OMSORGSDEPARTEMENTET",100000,0,100000,0]
["HELSEDIREKTORATET",1400000,541250,1400000,-541250]
["HOVEDORGANISASJONEN VIRKE",0,427466.2,0,-427466.2]
["HUSEIERNES LANDSFORBUND",158000,0,0,158000]
["INNOVASJON NORGE",490000,0,490000,0]
["INSTITUTT FOR SAMFUNNSFORSKNING",3950000,0,3950000,0]
["JUSTIS- OG BEREDSKAPSDEPARTEMENTET",100000,370000,0,-270000]
["KOMMUNAL- OG MODERNISERINGSDEPARTEMENTET",2465000,3425801,200000,-1160801]
["KOMPETANSE NORGE",618500,561500,0,57000]
["KS-KOMMUNESEKTORENS ORGANISASJON",7000,0,0,7000]
["KULTURDEPARTEMENTET",5009100,620000,500000,3889100]
["KUNNSKAPSDEPARTEMENTET",15707833,2285000,13874833,-452000]
["LANDBRUKS- OG MATDEPARTEMENTET",90000,0,90000,0]
["LANDBRUKSDIREKTORATET",1000000,400000,0,600000]
["LONGYEARBYEN LOKALSTYRE",0,50000,0,-50000]
["MEDIETILSYNET",2550000,2550000,0,0]
["MILJØDIREKTORATET",7495000,3868000,3550000,77000]
["NASJONALBIBLIOTEKET",162400,160000,0,2400]
["NAV ØKONOMITJENESTE",3042520,2210500,0,832020]
["NHO TRANSPORT",250000,235000,0,15000]
["NORAD",764800,0,764800,0]
["NORGES FORSKNINGSRÅD",4025638,3396050,0,629588]
["NORGES LASTEBILEIERFORBUND - NLF",300000,285000,0,15000]
["NORGES VASSDRAGS- OG ENERGIDIREKTORAT",372000,1014000,0,-642000]
["NORSK NATURSKADEPOOL",563000,0,0,563000]
["NÆRINGSLIVETS HOVEDORGANISASJON (NHO)",0,1199554.3,0,-1199554.3]
["NÆRINGS- OG FISKERIDEPARTEMENTET (NFD)",860000,300000,560000,0]
["OLJE- OG ENERGIDEPARTEMENTET",380000,0,380000,0]
["RØRENTREPRENØRENE NORGE",158400,158400,0,0]
["SÁMEDIGGI - SAMETINGET",260128.9924182648,300001,0,-39872.007581735204]
["SAMFERDSELSDEPARTEMENTET",2390000,1282000,1000000,108000]
["SÀMI ALLASKUVLA SAMISK HØGSKOLE",39871.007581735226,0,0,39871.007581735226]
["UTDANNINGSDIREKTORATET",943080,866750,0,76330]
[]
["Sum offisiell statistikk",{"$f":"SUM(B4:B46)","v":69564063},{"$f":"SUM(C4:C46)","v":38973691.299999997},{"$f":"SUM(D4:D46)","v":31592285},{"$f":"SUM(E4:E46)","v":-1001913.3}]
[]
["Sum statlige foretak",{"$f":"SUM(B4:B9,B11:B12,B17:B22,B24:B27,B29:B32,B34:B35,B37,B40:B41,B43:B44,B46:B46,B14:B15)","v":66527791.992418267},{"$f":"SUM(C4:C9,C11:C12,C17:C22,C24:C27,C29:C32,C34:C35,C37,C40:C41,C43:C44,C46:C46,C14:C15)","v":34477852},31592285,457654.99241826474]
[]
["1) Datagrunnlaget har endret seg av flere årsaker:"]
["- Listen over offisielle statistikker var ikke endelig da rapporten ble utarbeidet og nye statistikker har kommet til. "]
["- Rapporteringen i 2020 manglet inntekter for flere statistikker, selv om statistikken var inkludert på listen over offisiell statistikk. Koding av offisiell statistikk var ikke ajourholdt i økonomisystemet og manglende inntekter ble ikke fanget opp."]
[]
["2) Andre endringer skyldes i hovedsak:"]
["- Endring i inntekter som følge av periodiske statistikker (gjennomføring)"]
["- Reduksjon av inntekter kan indikere bortfall og underdekning."]
["- Økning i inntekter skyldes prisjustering, avtale om økt omfang, tilleggskontrakter eller utvikling."]
[]
["3) Bokført inntekt fra nåværende statistikker i programmet for 2020 utgjør 58,4 mill. kr og dette er 19,4. mill. mer enn rapportert som forventet inntekt for 2020"]

{"sheet":"Statistikker","index":1,"n_rows":349,"n_cols":14,"rows_kept":349,"cut":false,"hidden":false,"merged":[]}
["ANSVARLIG MYNDIGHET\nJf. statistikkprogram 2021-2023\n\n","\n\nHOVEDOMRÅDE\n\n\n\n\n\n","\n\nDELOMRÅDE\n\n\n\n\n\n","STATISTIKKNAVN\nNavn i nasjonal publisering\nSKJULT KOLONNE","IDENTIFIKATOR\nKortnavn på ssb.no\nSKJULT KOLONNE","Hjelpekolonne ssb.no\nSKJULT KOLONNE","Hjelpekolonne lenketeksten\nSKJULT KOLONNE","STATISTIKKNAVN\nNavn i nasjonal publisering\n\nKlikk på lenken for å gå til statistikkens hjemmeside\n\n","TILLEGGSINFORMASJON\n\n\n\n\n\n","PUBLISERINGSHYPPIGHET\nNasjonal publisering\n\n\n\n\n","EØS-FORPLIKTELSER\ngjennom statistikk-rettsakter i EØS-avtalens vedlegg XXI","ANDRE INTERNASJONALE FORPLIKTELSER\n\n\n\n\n","DATAKILDER\n\n\n\n\n\n","DATAKILDER2\n\n\n\n\n"]
["NAV","Arbeid og lønn","Arbeidsledighet og ledige stillinger","Registrerte arbeidsledige",null,null,{"$f":"F2 & E2","v":""},"Registrerte arbeidsledige",null,"Månedlig","Nei",null,"Administrative","ARENA"]
["NAV","Arbeid og lønn","Arbeidsledighet og ledige stillinger","Bruttoledighet sesongjusterte tall",null,null,null,"Bruttoledighet sesongjusterte tall",null,"Månedlig","Nei",null,"Administrative","ARENA"]
["NAV","Arbeid og lønn","Arbeidsledighet og ledige stillinger","Deltakere på arbeidsmarkedstiltak",null,null,{"$f":"F4 & E4","v":""},"Deltakere på arbeidsmarkedstiltak",null,"Månedlig","Nei",null,"Administrative","ARENA"]
["NAV","Arbeid og lønn","Arbeidsledighet og ledige stillinger","Registrerte arbeidssøkere",null,null,"","Registrerte arbeidssøkere",null,"Månedlig","Nei",null,"Administrative","ARENA"]
["SSB","Arbeid og lønn","Arbeidsledighet og ledige stillinger","Ledige stillingar","ledstill","https://www.ssb.no/","https://www.ssb.no/ledstill",{"$f":"HYPERLINK(Tabell186[[#This Row],[Hjelpekolonne lenketeksten\nSKJULT KOLONNE]],Tabell186[[#This Row],[STATISTIKKNAVN\nNavn i nasjonal publisering\nSKJULT KOLONNE]])","v":"Ledige stillingar"},null,"Kvartalsvis","Ja",null,"Statistiske","Skjemarapportering gjennom Altinn"]
["SSB","Arbeid og lønn","Sysselsetting, lønn og arbeidskraftkostnader","Arbeidskraftundersøkelsen","aku","https://www.ssb.no/","https://www.ssb.no/aku",{"$f":"HYPERLINK(Tabell186[[#This Row],[Hjelpekolonne lenketeksten\nSKJULT KOLONNE]],Tabell186[[#This Row],[STATISTIKKNAVN\nNavn i nasjonal publisering\nSKJULT KOLONNE]])","v":"Arbeidskraftundersøkelsen"},null,"Månedlig;Kvartalsvis; Årlig","Ja","OECD; UNESCO","Statistiske","Arbeidskraftundersøkelsen"]
["SSB","Arbeid og lønn","Sysselsetting, lønn og arbeidskraftkostnader","Personer med nedsatt funksjonsevne, arbeidskraftundersøkelsen","akutu","https://www.ssb.no/","https://www.ssb.no/akutu",{"$f":"HYPERLINK(Tabell186[[#This Row],[Hjelpekolonne lenketeksten\nSKJULT KOLONNE]],Tabell186[[#This Row],[STATISTIKKNAVN\nNavn i nasjonal publisering\nSKJULT KOLONNE]])","v":"Personer med nedsatt funksjonsevne, arbeidskraftundersøkelsen"},null,"Årlig","Nei",null,"Statistiske","Arbeidskraftundersøkelsen"]
["SSB","Arbeid og lønn","Sysselsetting, lønn og arbeidskraftkostnader","Antall arbeidsforhold og lønn","arblonn","https://www.ssb.no/","https://www.ssb.no/arblonn",{"$f":"HYPERLINK(Tabell186[[#This Row],[Hjelpekolonne lenketeksten\nSKJULT KOLONNE]],Tabell186[[#This Row],[STATISTIKKNAVN\nNavn i nasjonal publisering\nSKJULT KOLONNE]])","v":"Antall arbeidsforhold og lønn"},null,"Månedlig; Kvartalsvis","Nei",null,"Administrative","A-ordningen"]
["SSB","Arbeid og lønn","Sysselsetting, lønn og arbeidskraftkostnader","Helse- og sosialpersonell","hesospers","https://www.ssb.no/","https://www.ssb.no/hesospers",{"$f":"HYPERLINK(Tabell186[[#This Row],[Hjelpekolonne lenketeksten\nSKJULT KOLONNE]],Tabell186[[#This Row],[STATISTIKKNAVN\nNavn i nasjonal publisering\nSKJULT KOLONNE]])","v":"Helse- og sosialpersonell"},null,"Årlig","Nei",null,"Administrative","A-ordningen"]
["SSB","Arbeid og lønn","Sysselsetting, lønn og arbeidskraftkostnader","Lønn","lonnansatt","https://www.ssb.no/","https://www.ssb.no/lonnansatt",{"$f":"HYPERLINK(Tabell186[[#This Row],[Hjelpekolonne lenketeksten\nSKJULT KOLONNE]],Tabell186[[#This Row],[STATISTIKKNAVN\nNavn i nasjonal publisering\nSKJULT KOLONNE]])","v":"Lønn"},null,"Årlig","Ja","OECD; ILO; IMF","Administrative","A-ordningen"]
["SSB","Arbeid og lønn","Sysselsetting, lønn og arbeidskraftkostnader","Sysselsetting, registerbasert","regsys","https://www.ssb.no/","https://www.ssb.no/regsys",{"$f":"HYPERLINK(Tabell186[[#This Row],[Hjelpekolonne lenketeksten\nSKJULT KOLONNE]],Tabell186[[#This Row],[STATISTIKKNAVN\nNavn i nasjonal publisering\nSKJULT KOLONNE]])","v":"Sysselsetting, registerbasert"},null,"Årlig","Nei",null,"Administrative","A-ordningen"]
["SSB","Arbeid og lønn","Sysselsetting, lønn og arbeidskraftkostnader","Sysselsetting blant innvandrere, registerbasert","innvregsys","https://www.ssb.no/","https://www.ssb.no/innvregsys",{"$f":"HYPERLINK(Tabell186[[#This Row],[Hjelpekolonne lenketeksten\nSKJULT KOLONNE]],Tabell186[[#This Row],[STATISTIKKNAVN\nNavn i nasjonal publisering\nSKJULT KOLONNE]])","v":"Sysselsetting blant innvandrere, registerbasert"},null,"Årlig","Nei",null,"Administrative","A-ordningen"]
["SSB","Arbeid og lønn","Sysselsetting, lønn og arbeidskraftkostnader","Tilknytning til arbeid, utdanning og velferdsordninger","arbstatus","https://www.ssb.no/","https://www.ssb.no/arbstatus",{"$f":"HYPERLINK(Tabell186[[#This Row],[Hjelpekolonne lenketeksten\nSKJULT KOLONNE]],Tabell186[[#This Row],[STATISTIKKNAVN\nNavn i nasjonal publisering\nSKJULT KOLONNE]])","v":"Tilknytning til arbeid, utdanning og velferdsordninger"},null,"Årlig (foreløpig og endelig)","Nei",null,"Administrative","A-ordningen"]
["SSB","Arbeid og lønn","Sysselsetting, lønn og arbeidskraftkostnader","Arbeidskraftkostnader","arbkost","https://www.ssb.no/","https://www.ssb.no/arbkost",{"$f":"HYPERLINK(Tabell186[[#This Row],[Hjelpekolonne lenketeksten\nSKJULT KOLONNE]],Tabell186[[#This Row],[STATISTIKKNAVN\nNavn i nasjonal publisering\nSKJULT KOLONNE]])","v":"Arbeidskraftkostnader"},"Publisering hvert 2. år\nRapporteringsforpliktelse hvert 4. år","Sjeldnere enn årlig","Ja",null,"Administrative","A-ordningen"]
["SSB","Arbeid og lønn","Sysselsetting, lønn og arbeidskraftkostnader","Arbeidskraftkostnadsindeks","aki","https://www.ssb.no/","https://www.ssb.no/aki",{"$f":"HYPERLINK(Tabell186[[#This Row],[Hjelpekolonne lenketeksten\nSKJULT KOLONNE]],Tabell186[[#This Row],[STATISTIKKNAVN\nNavn i nasjonal publisering\nSKJULT KOLONNE]])","v":"Arbeidskraftkostnadsindeks"},null,"Kvartalsvis ","Ja",null,"Administrative","A-ordningen"]
["SSB","Arbeid og lønn","Sysselsetting, lønn og arbeidskraftkostnader","Grunnlag for arbeidsgiveravgift","agrl","https://www.ssb.no/","https://www.ssb.no/agrl",{"$f":"HYPERLINK(Tabell186[[#This Row],[Hjelpekolonne lenketeksten\nSKJULT KOLONNE]],Tabell186[[#This Row],[STATISTIKKNAVN\nNavn i nasjonal publisering\nSKJULT KOLONNE]])","v":"Grunnlag for arbeidsgiveravgift"},null,"Årlig","Nei",null,"Administrative","A-ordningen"]
["NAV","Arbeid og lønn","Arbeidsmiljø, sykefravær og arbeidskonflikter","Sykefravær legemeldt",null,null,"","Sykefravær legemeldt",null,"Kvartalsvis ","Nei",null,"Administrative","Infotrygd"]
["SSB","Arbeid og lønn","Arbeidsmiljø, sykefravær og arbeidskonflikter","Arbeidsmiljø, levekårsundersøkelsen","arbmiljo","https://www.ssb.no/","https://www.ssb.no/arbmiljo",{"$f":"HYPERLINK(Tabell186[[#This Row],[Hjelpekolonne lenketeksten\nSKJULT KOLONNE]],Tabell186[[#This Row],[STATISTIKKNAVN\nNavn i nasjonal publisering\nSKJULT KOLONNE]])","v":"Arbeidsmiljø, levekårsundersøkelsen"},null,"Sjeldnere enn årlig","Nei",null,"Statistiske","Levekårsundersøkelsen om arbeidsmiljø"]
["SSB","Arbeid og lønn","Arbeidsmiljø, sykefravær og arbeidskonflikter","Fagforeiningsmedlemmer og streikar","arborg","https://www.ssb.no/","https://www.ssb.no/arborg",{"$f":"HYPERLINK(Tabell186[[#This Row],[Hjelpekolonne lenketeksten\nSKJULT KOLONNE]],Tabell186[[#This Row],[STATISTIKKNAVN\nNavn i nasjonal publisering\nSKJULT KOLONNE]])","v":"Fagforeiningsmedlemmer og streikar"},null,"Årlig","Nei","ILO","Statistiske","Skjemarapportering gjennom Altinn"]
["SSB","Arbeid og lønn","Arbeidsmiljø, sykefravær og arbeidskonflikter","Sykefravær","sykefratot","https://www.ssb.no/","https://www.ssb.no/sykefratot",{"$f":"HYPERLINK(Tabell186[[#This Row],[Hjelpekolonne lenketeksten\nSKJULT KOLONNE]],Tabell186[[#This Row],[STATISTIKKNAVN\nNavn i nasjonal publisering\nSKJULT KOLONNE]])","v":"Sykefravær"},null,"Kvartalsvis","Nei",null,"Statistiske; Administrative","Utvalgsundersøkelse; NAV; A-ordningen"]
["SSB","Bank og finansmarked","Finansielle indikatorer","Kredittindikator","kredind","https://www.ssb.no/","https://www.ssb.no/kredind",{"$f":"HYPERLINK(Tabell186[[#This Row],[Hjelpekolonne lenketeksten\nSKJULT KOLONNE]],Tabell186[[#This Row],[STATISTIKKNAVN\nNavn i nasjonal publisering\nSKJULT KOLONNE]])","v":"Kredittindikator"},null,"Månedlig","Nei","IMF","Statistiske","Andre statistikker"]
["SSB","Bank og finansmarked","Finansielle indikatorer","Pengemengde","pengemengde","https://www.ssb.no/","https://www.ssb.no/pengemengde",{"$f":"HYPERLINK(Tabell186[[#This Row],[Hjelpekolonne lenketeksten\nSKJULT KOLONNE]],Tabell186[[#This Row],[STATISTIKKNAVN\nNavn i nasjonal publisering\nSKJULT KOLONNE]])","v":"Pengemengde"},null,"Månedlig","Nei","IMF","Statistiske","Andre statistikker"]
["SSB","Bank og finansmarked","Finansinstitusjoner og andre finansielle foretak","Banker og kredittforetak","banker","https://www.ssb.no/","https://www.ssb.no/banker",{"$f":"HYPERLINK(Tabell186[[#This Row],[Hjelpekolonne lenketeksten\nSKJULT KOLONNE]],Tabell186[[#This Row],[STATISTIKKNAVN\nNavn i nasjonal publisering\nSKJULT KOLONNE]])","v":"Banker og kredittforetak"},null,"Månedlig","Ja","IMF","Administrative","ORBOF"]
["SSB","Bank og finansmarked","Finansinstitusjoner og andre finansielle foretak","Finansielle holdingselskaper","finhold","https://www.ssb.no/","https://www.ssb.no/finhold",{"$f":"HYPERLINK(Tabell186[[#This Row],[Hjelpekolonne lenketeksten\nSKJULT KOLONNE]],Tabell186[[#This Row],[STATISTIKKNAVN\nNavn i nasjonal publisering\nSKJULT KOLONNE]])","v":"Finansielle holdingselskaper"},null,"Årlig","Ja","IMF","Administrative","Regnskapsdata"]
["SSB","Bank og finansmarked","Finansinstitusjoner og andre finansielle foretak","Livs- og skadeforsikringsselskaper, regnskap","forsikring","https://www.ssb.no/","https://www.ssb.no/forsikring",{"$f":"HYPERLINK(Tabell186[[#This Row],[Hjelpekolonne lenketeksten\nSKJULT KOLONNE]],Tabell186[[#This Row],[STATISTIKKNAVN\nNavn i nasjonal publisering\nSKJULT KOLONNE]])","v":"Livs- og skadeforsikringsselskaper, regnskap"},null,"Kvartalsvis","Ja","IMF","Administrative","FORT"]
["SSB","Bank og finansmarked","Finansinstitusjoner og andre finansielle foretak","Pensjonskasser","pensjonsfond","https://www.ssb.no/","https://www.ssb.no/pensjonsfond",{"$f":"HYPERLINK(Tabell186[[#This Row],[Hjelpekolonne lenketeksten\nSKJULT KOLONNE]],Tabell186[[#This Row],[STATISTIKKNAVN\nNavn i nasjonal publisering\nSKJULT KOLONNE]])","v":"Pensjonskasser"},null,"Årlig","Ja","IMF","Administrative","PORT"]
["SSB","Bank og finansmarked","Finansinstitusjoner og andre finansielle foretak","Renter i banker og kredittforetak","renter","https://www.ssb.no/","https://www.ssb.no/renter",{"$f":"HYPERLINK(Tabell186[[#This Row],[Hjelpekolonne lenketeksten\nSKJULT KOLONNE]],Tabell186[[#This Row],[STATISTIKKNAVN\nNavn i nasjonal publisering\nSKJULT KOLONNE]])","v":"Renter i banker og kredittforetak"},null,"Månedlig","Nei",null,"Statistiske","Andre statistikker"]
["SSB","Bank og finansmarked","Finansinstitusjoner og andre finansielle foretak","Tjenestepensjoner","tjenestepensj","https://www.ssb.no/","https://www.ssb.no/tjenestepensj",{"$f":"HYPERLINK(Tabell186[[#This Row],[Hjelpekolonne lenketeksten\nSKJULT KOLONNE]],Tabell186[[#This Row],[STATISTIKKNAVN\nNavn i nasjonal publisering\nSKJULT KOLONNE]])","v":"Tjenestepensjoner"},null,"Årlig","Nei",null,"Statistiske","Andre statistikker"]
["SSB","Bank og finansmarked","Verdipapirmarked","Verdipapirer","verdipapirer","https://www.ssb.no/","https://www.ssb.no/verdipapirer",{"$f":"HYPERLINK(Tabell186[[#This Row],[Hjelpekolonne lenketeksten\nSKJULT KOLONNE]],Tabell186[[#This Row],[STATISTIKKNAVN\nNavn i nasjonal publisering\nSKJULT KOLONNE]])","v":"Verdipapirer"},null,"Kvartalsvis","Nei","IMF","Administrative","VPS"]
["SSB","Bank og finansmarked","Verdipapirmarked","Verdipapirfond","vpfond","https://www.ssb.no/","https://www.ssb.no/vpfond",{"$f":"HYPERLINK(Tabell186[[#This Row],[Hjelpekolonne lenketeksten\nSKJULT KOLONNE]],Tabell186[[#This Row],[STATISTIKKNAVN\nNavn i nasjonal publisering\nSKJULT KOLONNE]])","v":"Verdipapirfond"},null,"Årlig","Nei","IMF","Statistiske","Regnskapsdata"]
["SSB","Bank og finansmarked","Verdipapirmarked","Verdipapirfond, kvartalstall","vpfondk","https://www.ssb.no/","https://www.ssb.no/vpfondk",{"$f":"HYPERLINK(Tabell186[[#This Row],[Hjelpekolonne lenketeksten\nSKJULT KOLONNE]],Tabell186[[#This Row],[STATISTIKKNAVN\nNavn i nasjonal publisering\nSKJULT KOLONNE]])","v":"Verdipapirfond, kvartalstall"},null,"Kvartalsvis","Nei","IMF","Administrative","VPS"]
["SSB","Befolkning","Befolkningens størrelse og sammensetning","Befolkning","folkemengde","https://www.ssb.no/","https://www.ssb.no/folkemengde",{"$f":"HYPERLINK(Tabell186[[#This Row],[Hjelpekolonne lenketeksten\nSKJULT KOLONNE]],Tabell186[[#This Row],[STATISTIKKNAVN\nNavn i nasjonal publisering\nSKJULT KOLONNE]])","v":"Befolkning"},null,"Kvartalsvis","Ja",null,"Administrative","DSF"]
["SSB","Befolkning","Befolkningens størrelse og sammensetning","Befolkningen på Svalbard","befsvalbard","https://www.ssb.no/","https://www.ssb.no/befsvalbard",{"$f":"HYPERLINK(Tabell186[[#This Row],[Hjelpekolonne lenketeksten\nSKJULT KOLONNE]],Tabell186[[#This Row],[STATISTIKKNAVN\nNavn i nasjonal publisering\nSKJULT KOLONNE]])","v":"Befolkningen på Svalbard"},null,"Halvårlig","Nei",null,"Administrative","Befolkningsregisteret på Svalbard (BRSV), DSF og Sysselmannen"]
["SSB","Befolkning","Befolkningens størrelse og sammensetning","Samiske forhold","samisk","https://www.ssb.no/","https://www.ssb.no/samisk",{"$f":"HYPERLINK(Tabell186[[#This Row],[Hjelpekolonne lenketeksten\nSKJULT KOLONNE]],Tabell186[[#This Row],[STATISTIKKNAVN\nNavn i nasjonal publisering\nSKJULT KOLONNE]])","v":"Samiske forhold"},null,"Sjeldnere enn årlig","Nei",null,"Statistiske","Andre statistikker"]
["SSB","Befolkning","Befolkningens størrelse og sammensetning","Tettsteders befolkning og areal","beftett","https://www.ssb.no/",{"$f":"F36 & E36","v":"https://www.ssb.no/beftett"},{"$f":"HYPERLINK(Tabell186[[#This Row],[Hjelpekolonne lenketeksten\nSKJULT KOLONNE]],Tabell186[[#This Row],[STATISTIKKNAVN\nNavn i nasjonal publisering\nSKJULT KOLONNE]])","v":"Tettsteders befolkning og areal"},null,"Årlig","Nei",null,"Administrative","DSF; Matrikkelen"]
["SSB","Befolkning","Befolkningens størrelse og sammensetning","Adopsjoner","adopsjon","https://www.ssb.no/","https://www.ssb.no/adopsjon",{"$f":"HYPERLINK(Tabell186[[#This Row],[Hjelpekolonne lenketeksten\nSKJULT KOLONNE]],Tabell186[[#This Row],[STATISTIKKNAVN\nNavn i nasjonal publisering\nSKJULT KOLONNE]])","v":"Adopsjoner"},null,"Årlig","Nei",null,"Administrative","Adopsjonsregisteret i Bufdir"]
["SSB","Befolkning","Befolkningens størrelse og sammensetning","Ekteskap og skilsmisser","ekteskap","https://www.ssb.no/","https://www.ssb.no/ekteskap",{"$f":"HYPERLINK(Tabell186[[#This Row],[Hjelpekolonne lenketeksten\nSKJULT KOLONNE]],Tabell186[[#This Row],[STATISTIKKNAVN\nNavn i nasjonal publisering\nSKJULT KOLONNE]])","v":"Ekteskap og skilsmisser"},null,"Årlig","Ja",null,"Administrative","DSF"]
["SSB","Befolkning","Befolkningens størrelse og sammensetning","Familier og husholdninger","familie","https://www.ssb.no/","https://www.ssb.no/familie",{"$f":"HYPERLINK(Tabell186[[#This Row],[Hjelpekolonne lenketeksten\nSKJULT KOLONNE]],Tabell186[[#This Row],[STATISTIKKNAVN\nNavn i nasjonal publisering\nSKJULT KOLONNE]])","v":"Familier og husholdninger"},null,"Årlig","Ja",null,"Administrative","DSF; Matrikkelen"]
["SSB","Befolkning","Befolkningens størrelse og sammensetning","Samboere","samboer","https://www.ssb.no/","https://www.ssb.no/samboer",{"$f":"HYPERLINK(Tabell186[[#This Row],[Hjelpekolonne lenketeksten\nSKJULT KOLONNE]],Tabell186[[#This Row],[STATISTIKKNAVN\nNavn i nasjonal publisering\nSKJULT KOLONNE]])","v":"Samboere"},null,"Sjeldnere enn årlig","Nei",null,"Statistiske; Administrative","DSF"]
["SSB","Befolkning","Befolkningens størrelse og sammensetning","Nasjonale befolkningsframskrivinger","folkfram","https://www.ssb.no/","https://www.ssb.no/folkfram",{"$f":"HYPERLINK(Tabell186[[#This Row],[Hjelpekolonne lenketeksten\nSKJULT KOLONNE]],Tabell186[[#This Row],[STATISTIKKNAVN\nNavn i nasjonal publisering\nSKJULT KOLONNE]])","v":"Nasjonale befolkningsframskrivinger"},null,"Sjeldnere enn årlig","Nei","FAO","Statistiske","Andre statistikker"]
["SSB","Befolkning","Befolkningens størrelse og sammensetning","Regionale befolkningsframskrivinger","regfram","https://www.ssb.no/","https://www.ssb.no/regfram",{"$f":"HYPERLINK(Tabell186[[#This Row],[Hjelpekolonne lenketeksten\nSKJULT KOLONNE]],Tabell186[[#This Row],[STATISTIKKNAVN\nNavn i nasjonal publisering\nSKJULT KOLONNE]])","v":"Regionale befolkningsframskrivinger"},null,"Sjeldnere enn årlig","Nei",null,"Statistiske","Andre statistikker"]
["SSB","Befolkning","Befolkningsendringer","Flyttinger","flytting","https://www.ssb.no/","https://www.ssb.no/flytting",{"$f":"HYPERLINK(Tabell186[[#This Row],[Hjelpekolonne lenketeksten\nSKJULT KOLONNE]],Tabell186[[#This Row],[STATISTIKKNAVN\nNavn i nasjonal publisering\nSKJULT KOLONNE]])","v":"Flyttinger"},null,"Årlig","Ja",null,"Administrative","DSF"]
["SSB","Befolkning","Befolkningsendringer","Døde","dode","https://www.ssb.no/","https://www.ssb.no/dode",{"$f":"HYPERLINK(Tabell186[[#This Row],[Hjelpekolonne lenketeksten\nSKJULT KOLONNE]],Tabell186[[#This Row],[STATISTIKKNAVN\nNavn i nasjonal publisering\nSKJULT KOLONNE]])","v":"Døde"},null,"Ukentlig; Månedlig; Årlig","Ja",null,"Administrative","DSF"]
["SSB","Befolkning","Befolkningsendringer","Fødte","fodte","https://www.ssb.no/","https://www.ssb.no/fodte",{"$f":"HYPERLINK(Tabell186[[#This Row],[Hjelpekolonne lenketeksten\nSKJULT KOLONNE]],Tabell186[[#This Row],[STATISTIKKNAVN\nNavn i nasjonal publisering\nSKJULT KOLONNE]])","v":"Fødte"},null,"Årlig","Ja",null,"Administrative","DSF"]
["SSB","Befolkning","Innvandrere","Holdninger til innvandrere og innvandring","innvhold","https://www.ssb.no/","https://www.ssb.no/innvhold",{"$f":"HYPERLINK(Tabell186[[#This Row],[Hjelpekolonne lenketeksten\nSKJULT KOLONNE]],Tabell186[[#This Row],[STATISTIKKNAVN\nNavn i nasjonal publisering\nSKJULT KOLONNE]])","v":"Holdninger til innvandrere og innvandring"},null,"Årlig","Nei",null,"Statistiske"]
["SSB","Befolkning","Innvandrere","Innvandrere etter innvandringsgrunn","innvgrunn","https://www.ssb.no/","https://www.ssb.no/innvgrunn",{"$f":"HYPERLINK(Tabell186[[#This Row],[Hjelpekolonne lenketeksten\nSKJULT KOLONNE]],Tabell186[[#This Row],[STATISTIKKNAVN\nNavn i nasjonal publisering\nSKJULT KOLONNE]])","v":"Innvandrere etter innvandringsgrunn"},null,"Årlig","Nei",null,"Administrative","DSF; UDB"]
["SSB","Befolkning","Innvandrere","Innvandrere og norskfødte med innvandrerforeldre","innvbef","https://www.ssb.no/","https://www.ssb.no/innvbef",{"$f":"HYPERLINK(Tabell186[[#This Row],[Hjelpekolonne lenketeksten\nSKJULT KOLONNE]],Tabell186[[#This Row],[STATISTIKKNAVN\nNavn i nasjonal publisering\nSKJULT KOLONNE]])","v":"Innvandrere og norskfødte med innvandrerforeldre"},null,"Årlig","Nei",null,"Administrative","DSF; UDB"]
["SSB","Befolkning","Innvandrere","Overgang til norsk statsborgerskap","statsborger","https://www.ssb.no/","https://www.ssb.no/statsborger",{"$f":"HYPERLINK(Tabell186[[#This Row],[Hjelpekolonne lenketeksten\nSKJULT KOLONNE]],Tabell186[[#This Row],[STATISTIKKNAVN\nNavn i nasjonal publisering\nSKJULT KOLONNE]])","v":"Overgang til norsk statsborgerskap"},null,"Årlig","Ja","OECD","Administrative","DSF"]
["SSB","Befolkning","Innvandrere","Personer med flyktningbakgrunn","flyktninger","https://www.ssb.no/","https://www.ssb.no/flyktninger",{"$f":"HYPERLINK(Tabell186[[#This Row],[Hjelpekolonne lenketeksten\nSKJULT KOLONNE]],Tabell186[[#This Row],[STATISTIKKNAVN\nNavn i nasjonal publisering\nSKJULT KOLONNE]])","v":"Personer med flyktningbakgrunn"},null,"Årlig","Nei","OECD","Administrative","DSF; UDB"]
["UDI","Befolkning","Innvandrere","Asylsøkere",null,null,"","Asylsøkere",null,"Månedlig","Ja",null,"Administrative","UDB"]
["UDI","Befolkning","Innvandrere","Overføringsflyktninger",null,null,"","Overføringsflyktninger",null,"Årlig","Ja",null,"Administrative","UDB"]
["UDI","Befolkning","Innvandrere","Familieinnvandring",null,null,"","Familieinnvandring",null,"Månedlig","Ja",null,"Administrative","UDB"]
["UDI","Befolkning","Innvandrere","Arbeidsinnvandring",null,null,"","Arbeidsinnvandring",null,"Månedlig","Ja","OECD","Administrative","UDB"]
["UDI","Befolkning","Innvandrere","Studietillatelser",null,null,"","Studietillatelser",null,"Årlig","Ja",null,"Administrative","UDB"]
["UDI","Befolkning","Innvandrere","Visum",null,null,"","Visum",null,"Månedlig","Nei",null,"Administrative","UDB"]
["UDI","Befolkning","Innvandrere","Personer som må forlate Norge",null,null,"","Personer som må forlate landet",null,"Månedlig","Ja",null,"Administrative","UDB/UTSYS"]
["UDI","Befolkning","Innvandrere","Gyldige oppholdstillatelser",null,null,null,"Gyldige oppholdstillatelser",null,"Årlig","Ja",null,"Administrative","UDB"]
["UDI","Befolkning","Innvandrere","Endret oppholdsgrunnlag",null,null,null,"Endret oppholdsgrunnlag",null,"Årlig","Ja",null,"Administrative","UDB"]
["SSB","Befolkning","Likestilling","Indikatorer for kjønnslikestilling i kommunene","likekom","https://www.ssb.no/",{"$f":"F60 & E60","v":"https://www.ssb.no/likekom"},{"$f":"HYPERLINK(Tabell186[[#This Row],[Hjelpekolonne lenketeksten\nSKJULT KOLONNE]],Tabell186[[#This Row],[STATISTIKKNAVN\nNavn i nasjonal publisering\nSKJULT KOLONNE]])","v":"Indikatorer for kjønnslikestilling i kommunene"},null,"Årlig","Nei",null,"Statistiske; Administrative","KOSTRA; Andre statistikker"]
["SSB","Befolkning","Navn","Navn","navn","https://www.ssb.no/","https://www.ssb.no/navn",{"$f":"HYPERLINK(Tabell186[[#This Row],[Hjelpekolonne lenketeksten\nSKJULT KOLONNE]],Tabell186[[#This Row],[STATISTIKKNAVN\nNavn i nasjonal publisering\nSKJULT KOLONNE]])","v":"Navn"},null,"Årlig","Nei","FAO","Administrative","DSF"]
["SSB","Bygg, bolig og eiendom","Bolig og boforhold","Boforhold, levekårsundersøkelsen","bo","https://www.ssb.no/","https://www.ssb.no/bo",{"$f":"HYPERLINK(Tabell186[[#This Row],[Hjelpekolonne lenketeksten\nSKJULT KOLONNE]],Tabell186[[#This Row],[STATISTIKKNAVN\nNavn i nasjonal publisering\nSKJULT KOLONNE]])","v":"Boforhold, levekårsundersøkelsen"},null,"Sjeldnere enn årlig","Ja",null,"Statistiske","Levekårsundersøkelsen EU-Silc"]
["SSB","Bygg, bolig og eiendom","Bolig og boforhold","Boforhold, registerbasert","boforhold","https://www.ssb.no/","https://www.ssb.no/boforhold",{"$f":"HYPERLINK(Tabell186[[#This Row],[Hjelpekolonne lenketeksten\nSKJULT KOLONNE]],Tabell186[[#This Row],[STATISTIKKNAVN\nNavn i nasjonal publisering\nSKJULT KOLONNE]])","v":"Boforhold, registerbasert"},null,"Årlig","Nei",null,"Administrative","DSF; Matrikkelen; Inntektsregisteret"]
["SSB","Bygg, bolig og eiendom","Bolig og boforhold","Boliger","boligstat","https://www.ssb.no/","https://www.ssb.no/boligstat",{"$f":"HYPERLINK(Tabell186[[#This Row],[Hjelpekolonne lenketeksten\nSKJULT KOLONNE]],Tabell186[[#This Row],[STATISTIKKNAVN\nNavn i nasjonal publisering\nSKJULT KOLONNE]])","v":"Boliger"},"Internasjonal rapporering ifm. fulltellingene hvert 10. år","Årlig","Nei","OECD; Eurostat","Administrative","Matrikkelen"]
["SSB","Bygg, bolig og eiendom","Bolig og boforhold","Brann- og ulukkesvern","brann_kostra","https://www.ssb.no/","https://www.ssb.no/brann_kostra",{"$f":"HYPERLINK(Tabell186[[#This Row],[Hjelpekolonne lenketeksten\nSKJULT KOLONNE]],Tabell186[[#This Row],[STATISTIKKNAVN\nNavn i nasjonal publisering\nSKJULT KOLONNE]])","v":"Brann- og ulukkesvern"},null,"Årlig","Nei",null,"Statistiske","KOSTRA; DSB"]
["SSB","Bygg, bolig og eiendom","Bolig og boforhold","Kommunale boliger","kombolig_kostra","https://www.ssb.no/","https://www.ssb.no/kombolig_kostra",{"$f":"HYPERLINK(Tabell186[[#This Row],[Hjelpekolonne lenketeksten\nSKJULT KOLONNE]],Tabell186[[#This Row],[STATISTIKKNAVN\nNavn i nasjonal publisering\nSKJULT KOLONNE]])","v":"Kommunale boliger"},null,"Årlig","Nei",null,"Statistiske","KOSTRA"]
["SSB","Bygg, bolig og eiendom","Bolig og boforhold","Kommunale boliggebyrer","kommgeb","https://www.ssb.no/","https://www.ssb.no/kommgeb",{"$f":"HYPERLINK(Tabell186[[#This Row],[Hjelpekolonne lenketeksten\nSKJULT KOLONNE]],Tabell186[[#This Row],[STATISTIKKNAVN\nNavn i nasjonal publisering\nSKJULT KOLONNE]])","v":"Kommunale boliggebyrer"},null,"Årlig","Nei",null,"Statistiske","KOSTRA"]
["SSB","Bygg, bolig og eiendom","Bygg og anlegg","Byggeareal","byggeareal","https://www.ssb.no/","https://www.ssb.no/byggeareal",{"$f":"HYPERLINK(Tabell186[[#This Row],[Hjelpekolonne lenketeksten\nSKJULT KOLONNE]],Tabell186[[#This Row],[STATISTIKKNAVN\nNavn i nasjonal publisering\nSKJULT KOLONNE]])","v":"Byggeareal"},null,"Månedlig; Kvartalsvis; Årlig","Ja",null,"Administrative","Matrikkelen"]
["SSB","Bygg, bolig og eiendom","Bygg og anlegg","Bygningsmassen","bygningsmasse","https://www.ssb.no/","https://www.ssb.no/bygningsmasse",{"$f":"HYPERLINK(Tabell186[[#This Row],[Hjelpekolonne lenketeksten\nSKJULT KOLONNE]],Tabell186[[#This Row],[STATISTIKKNAVN\nNavn i nasjonal publisering\nSKJULT KOLONNE]])","v":"Bygningsmassen"},null,"Årlig","Nei",null,"Administrative","Matrikkelen"]
["SSB","Bygg, bolig og eiendom","Bygg og anlegg","Produksjonsindeks for bygge- og anleggsvirksomhet","bygganlprod","https://www.ssb.no/","https://www.ssb.no/bygganlprod",{"$f":"HYPERLINK(Tabell186[[#This Row],[Hjelpekolonne lenketeksten\nSKJULT KOLONNE]],Tabell186[[#This Row],[STATISTIKKNAVN\nNavn i nasjonal publisering\nSKJULT KOLONNE]])","v":"Produksjonsindeks for bygge- og anleggsvirksomhet"},null,"Månedlig","Ja","IMF","Administrative","A-ordningen; VoF"]
["SSB","Bygg, bolig og eiendom","Eiendom","Eiendomsomsetning","eiendomsoms","https://www.ssb.no/","https://www.ssb.no/eiendomsoms",{"$f":"HYPERLINK(Tabell186[[#This Row],[Hjelpekolonne lenketeksten\nSKJULT KOLONNE]],Tabell186[[#This Row],[STATISTIKKNAVN\nNavn i nasjonal publisering\nSKJULT KOLONNE]])","v":"Eiendomsomsetning"},null,"Kvartalsvis","Nei",null,"Administrative","Matrikkel; Grunnbok"]
["SSB","Bygg, bolig og eiendom","Eiendom","Eiendomsforvaltning i kommunesektoren","eiendom_kostra","https://www.ssb.no/","https://www.ssb.no/eiendom_kostra",{"$f":"HYPERLINK(Tabell186[[#This Row],[Hjelpekolonne lenketeksten\nSKJULT KOLONNE]],Tabell186[[#This Row],[STATISTIKKNAVN\nNavn i nasjonal publisering\nSKJULT KOLONNE]])","v":"Eiendomsforvaltning i kommunesektoren"},null,"Årlig","Nei",null,"Statistiske","KOSTRA"]
["NVE","Energi og industri","Energi","Magasinstatistikk",null,null,"","Magasinstatistikk",null,"Ukentlig","Nei","(ENTSO-E)","Statistiske; Administrative","Innrapporterte tall fra regulantene til vannmagasinene"]
["NVE","Energi og industri","Energi","Sluttbrukermarkedsstatistikk",null,null,"","Sluttbrukermarkedsstatistikk",null,"Kvartalsvis","Nei","CEER; ESA; EC","Statistiske; Administrative","Elhub, Forbrukerrådet og Nord Pool"]
["NVE","Energi og industri","Energi","Nettleiestatistikk",null,null,"","Nettleiestatistikk",null,"Månedlig","Nei","CEER; ESA; EC","Statistiske; Administrative"]
["NVE","Energi og industri","Energi","Avbrudsstatistikk",null,null,"","Avbruddsstatistikk",null,"Årlig","Nei","CEER; ESA; EC","Statistiske; Administrative","Blant annet innrapportering fra nettselskap"]
["SSB","Energi og industri","Energi","Elektrisitet","elektrisitet","https://www.ssb.no/","https://www.ssb.no/elektrisitet",{"$f":"HYPERLINK(Tabell186[[#This Row],[Hjelpekolonne lenketeksten\nSKJULT KOLONNE]],Tabell186[[#This Row],[STATISTIKKNAVN\nNavn i nasjonal publisering\nSKJULT KOLONNE]])","v":"Elektrisitet"},null,"Månedlig; Årlig","Ja","IEA","Statistiske; Andre","Elhub"]
["SSB","Energi og industri","Energi","Elektrisitetspriser","elkraftpris","https://www.ssb.no/","https://www.ssb.no/elkraftpris",{"$f":"HYPERLINK(Tabell186[[#This Row],[Hjelpekolonne lenketeksten\nSKJULT KOLONNE]],Tabell186[[#This Row],[STATISTIKKNAVN\nNavn i nasjonal publisering\nSKJULT KOLONNE]])","v":"Elektrisitetspriser"},null,"Kvartalsvis","Ja",null,"Statistiske","Skjemaundersøkelse"]
["SSB","Energi og industri","Energi","Energibruk i husholdningene","husenergi","https://www.ssb.no/","https://www.ssb.no/husenergi",{"$f":"HYPERLINK(Tabell186[[#This Row],[Hjelpekolonne lenketeksten\nSKJULT KOLONNE]],Tabell186[[#This Row],[STATISTIKKNAVN\nNavn i nasjonal publisering\nSKJULT KOLONNE]])","v":"Energibruk i husholdningene"},"Har vært avhengig av Forbruksundersøkelsen","Sjeldnere enn årlig","Ja",null,"Statistiske","Andre statistikker"]
["SSB","Energi og industri","Energi","Energibruk i industrien","indenergi","https://www.ssb.no/","https://www.ssb.no/indenergi",{"$f":"HYPERLINK(Tabell186[[#This Row],[Hjelpekolonne lenketeksten\nSKJULT KOLONNE]],Tabell186[[#This Row],[STATISTIKKNAVN\nNavn i nasjonal publisering\nSKJULT KOLONNE]])","v":"Energibruk i industrien"},null,"Årlig","Nei","IEA","Statistiske"]
["SSB","Energi og industri","Energi","Fjernvarme og fjernkjøling","fjernvarme","https://www.ssb.no/","https://www.ssb.no/fjernvarme",{"$f":"HYPERLINK(Tabell186[[#This Row],[Hjelpekolonne lenketeksten\nSKJULT KOLONNE]],Tabell186[[#This Row],[STATISTIKKNAVN\nNavn i nasjonal publisering\nSKJULT KOLONNE]])","v":"Fjernvarme og fjernkjøling"},null,"Årlig","Ja","IEA","Statistiske"]
["SSB","Energi og industri","Energi","Produksjon og forbruk av energi, energibalanse og energiregnskap","energibalanse","https://www.ssb.no/","https://www.ssb.no/energibalanse",{"$f":"HYPERLINK(Tabell186[[#This Row],[Hjelpekolonne lenketeksten\nSKJULT KOLONNE]],Tabell186[[#This Row],[STATISTIKKNAVN\nNavn i nasjonal publisering\nSKJULT KOLONNE]])","v":"Produksjon og forbruk av energi, energibalanse og energiregnskap"},null,"Årlig","Ja","IEA","Statistiske","Andre statistikker"]
["SSB","Energi og Industri","Energi","Elektrisitetsnæringens økonomiske utvikling","kraftnaring","https://www.ssb.no/","https://www.ssb.no/kraftnaring",{"$f":"HYPERLINK(Tabell186[[#This Row],[Hjelpekolonne lenketeksten\nSKJULT KOLONNE]],Tabell186[[#This Row],[STATISTIKKNAVN\nNavn i nasjonal publisering\nSKJULT KOLONNE]])","v":"Elektrisitetsnæringens økonomiske utvikling"},null,"Årlig","Ja","IEA","Statistiske; Andre","eRapp"]
["Oljedirektoratet","Energi og industri","Petroleum","Ressursregnskap",null,null,"","Ressursregnskap",null,"Årlig","Nei",null,"Statistiske; Administrative","Opplysninger fra oljeselskapene"]
["SSB","Energi og industri","Petroleum","Olje- og gassutvinning og utvinningstjenester","oljev","https://www.ssb.no/","https://www.ssb.no/oljev",{"$f":"HYPERLINK(Tabell186[[#This Row],[Hjelpekolonne lenketeksten\nSKJULT KOLONNE]],Tabell186[[#This Row],[STATISTIKKNAVN\nNavn i nasjonal publisering\nSKJULT KOLONNE]])","v":"Olje- og gassutvinning og utvinningstjenester"},null,"Årlig","Ja",null,"Statistiske; Administrative","Strukturundersøkelsen; Oljedirektoratet; A-ordningen; SKD; Årsregnskap fra foretakene; VoF"]
["SSB","Energi og industri","Petroleum","Sal av petroleumsprodukt og flytande biodrivstoff","petroleumsalg","https://www.ssb.no/","https://www.ssb.no/petroleumsalg",{"$f":"HYPERLINK(Tabell186[[#This Row],[Hjelpekolonne lenketeksten\nSKJULT KOLONNE]],Tabell186[[#This Row],[STATISTIKKNAVN\nNavn i nasjonal publisering\nSKJULT KOLONNE]])","v":"Sal av petroleumsprodukt og flytande biodrivstoff"},null,"Månedlig","Ja","IEA","Statistiske"]
["SSB","Energi og industri","Industri og bergverksdrift","Investeringer i olje og gass, industri, bergverk og kraftforsyning","kis","https://www.ssb.no/","https://www.ssb.no/kis",{"$f":"HYPERLINK(Tabell186[[#This Row],[Hjelpekolonne lenketeksten\nSKJULT KOLONNE]],Tabell186[[#This Row],[STATISTIKKNAVN\nNavn i nasjonal publisering\nSKJULT KOLONNE]])","v":"Investeringer i olje og gass, industri, bergverk og kraftforsyning"},null,"Kvartalsvis","Nei",null,"Statistiske","Skjemaundersøkelse, strukturstatistikk"]
["SSB","Energi og industri","Industri og bergverksdrift","Konjunkturbarometer for industri og bergverk","kbar","https://www.ssb.no/","https://www.ssb.no/kbar",{"$f":"HYPERLINK(Tabell186[[#This Row],[Hjelpekolonne lenketeksten\nSKJULT KOLONNE]],Tabell186[[#This Row],[STATISTIKKNAVN\nNavn i nasjonal publisering\nSKJULT KOLONNE]])","v":"Konjunkturbarometer for industri og bergverk"},null,"Kvartalsvis","Nei","OECD; IMF; BIS","Statistiske","Skjemaundersøkelse"]
["SSB","Energi og industri","Industri og bergverksdrift","Omsetning i olje og gass, industri, bergverk og kraftforsyning","ogibkoms","https://www.ssb.no/","https://www.ssb.no/ogibkoms",{"$f":"HYPERLINK(Tabell186[[#This Row],[Hjelpekolonne lenketeksten\nSKJULT KOLONNE]],Tabell186[[#This Row],[STATISTIKKNAVN\nNavn i nasjonal publisering\nSKJULT KOLONNE]])","v":"Omsetning i olje og gass, industri, bergverk og kraftforsyning"},null,"Månedlig","Ja",null,"Statistiske","Skjemaundersøkelse, strukturstatistikk, utenrikshandel med varer"]
["SSB","Energi og industri","Industri og bergverksdrift","Produksjonsindeks for olje og gass, industri, bergverk og kraftforsyning","pii","https://www.ssb.no/","https://www.ssb.no/pii",{"$f":"HYPERLINK(Tabell186[[#This Row],[Hjelpekolonne lenketeksten\nSKJULT KOLONNE]],Tabell186[[#This Row],[STATISTIKKNAVN\nNavn i nasjonal publisering\nSKJULT KOLONNE]])","v":"Produksjonsindeks for olje og gass, industri, bergverk og kraftforsyning"},null,"Månedlig","Ja","IMF; BIS","Statistiske","Skjemaundersøkelse, strukturstatistikk, oljedirektoratet"]
["SSB","Energi og industri","Industri og bergverksdrift","Vareproduksjon i industri og bergverksdrift","vti","https://www.ssb.no/","https://www.ssb.no/vti",{"$f":"HYPERLINK(Tabell186[[#This Row],[Hjelpekolonne lenketeksten\nSKJULT KOLONNE]],Tabell186[[#This Row],[STATISTIKKNAVN\nNavn i nasjonal publisering\nSKJULT KOLONNE]])","v":"Vareproduksjon i industri og bergverksdrift"},null,"Årlig","Ja",null,"Statistiske","Utvalgsundersøkelse"]
["SSB","FoU, teknologi og innovasjon","Forskning og utvikling (FoU)","Forskning og utvikling i universitets- og høgskolesektoren","fouuh","https://www.ssb.no/","https://www.ssb.no/fouuh",{"$f":"HYPERLINK(Tabell186[[#This Row],[Hjelpekolonne lenketeksten\nSKJULT KOLONNE]],Tabell186[[#This Row],[STATISTIKKNAVN\nNavn i nasjonal publisering\nSKJULT KOLONNE]])","v":"Forskning og utvikling i universitets- og høgskolesektoren"},null,"Årlig","Ja","OECD","Statistiske"]
["SSB","FoU, teknologi og innovasjon","Forskning og utvikling (FoU)","Forskning og utvikling i instituttsektoren","fouinstitutt","https://www.ssb.no/","https://www.ssb.no/fouinstitutt",{"$f":"HYPERLINK(Tabell186[[#This Row],[Hjelpekolonne lenketeksten\nSKJULT KOLONNE]],Tabell186[[#This Row],[STATISTIKKNAVN\nNavn i nasjonal publisering\nSKJULT KOLONNE]])","v":"Forskning og utvikling i instituttsektoren"},null,"Årlig","ja","OECD","Statistiske"]
["SSB","FoU, teknologi og innovasjon","Forskning og utvikling (FoU)","Forskning og utvikling i næringslivet","foun","https://www.ssb.no/","https://www.ssb.no/foun",{"$f":"HYPERLINK(Tabell186[[#This Row],[Hjelpekolonne lenketeksten\nSKJULT KOLONNE]],Tabell186[[#This Row],[STATISTIKKNAVN\nNavn i nasjonal publisering\nSKJULT KOLONNE]])","v":"Forskning og utvikling i næringslivet"},null,"Årlig","Ja","OECD","Statistiske"]
["SSB","FoU, teknologi og innovasjon","Forskning og utvikling (FoU)","Forskerpersonale","fouoff","https://www.ssb.no/","https://www.ssb.no/fouoff",{"$f":"HYPERLINK(Tabell186[[#This Row],[Hjelpekolonne lenketeksten\nSKJULT KOLONNE]],Tabell186[[#This Row],[STATISTIKKNAVN\nNavn i nasjonal publisering\nSKJULT KOLONNE]])","v":"Forskerpersonale"},null,"Årlig","ja","OECD","Statistiske"]
["SSB","FoU, teknologi og innovasjon","Forskning og utvikling (FoU)","Nærings-og forskningspolitiske virkemidler","naringvirk","https://www.ssb.no/","https://www.ssb.no/naringvirk",{"$f":"HYPERLINK(Tabell186[[#This Row],[Hjelpekolonne lenketeksten\nSKJULT KOLONNE]],Tabell186[[#This Row],[STATISTIKKNAVN\nNavn i nasjonal publisering\nSKJULT KOLONNE]])","v":"Nærings-og forskningspolitiske virkemidler"},null,"Årlig","Nei",null,"Statistiske; Administrative","Rapportering fra virkemiddelaktører"]
["SSB","FoU, teknologi og innovasjon","Innovasjon","Innovasjon i næringslivet","innov","https://www.ssb.no/","https://www.ssb.no/innov",{"$f":"HYPERLINK(Tabell186[[#This Row],[Hjelpekolonne lenketeksten\nSKJULT KOLONNE]],Tabell186[[#This Row],[STATISTIKKNAVN\nNavn i nasjonal publisering\nSKJULT KOLONNE]])","v":"Innovasjon i næringslivet"},null,"Sjeldnere enn årlig","Ja","OECD","Statistiske"]
["SSB","FoU, teknologi og innovasjon","Innovasjon","Patenter, design og varemerker","patent","https://www.ssb.no/","https://www.ssb.no/patent",{"$f":"HYPERLINK(Tabell186[[#This Row],[Hjelpekolonne lenketeksten\nSKJULT KOLONNE]],Tabell186[[#This Row],[STATISTIKKNAVN\nNavn i nasjonal publisering\nSKJULT KOLONNE]])","v":"Patenter, design og varemerker"},null,"Årlig","Nei",null,"Administrative","Patentstyret"]
["Nkom","FoU, teknologi og innovasjon","Informasjonssamfunnet","Bredbånd, TV-abonnement og telefoni",null,null,"","Bredbånd, TV-abonnement og telefoni",null,"Årlig","Nei","ITU; OECD","Statistiske","Tilbydere av ekom-tjenester"]
["SSB","FoU, teknologi og innovasjon","Informasjonssamfunnet","Bruk av IKT i næringslivet","iktbrukn","https://www.ssb.no/","https://www.ssb.no/iktbrukn",{"$f":"HYPERLINK(Tabell186[[#This Row],[Hjelpekolonne lenketeksten\nSKJULT KOLONNE]],Tabell186[[#This Row],[STATISTIKKNAVN\nNavn i nasjonal publisering\nSKJULT KOLONNE]])","v":"Bruk av IKT i næringslivet"},null,"Årlig","Ja",null,"Statistiske"]
["SSB","FoU, teknologi og innovasjon","Informasjonssamfunnet","Bruk av IKT i husholdningene","ikthus","https://www.ssb.no/","https://www.ssb.no/ikthus",{"$f":"HYPERLINK(Tabell186[[#This Row],[Hjelpekolonne lenketeksten\nSKJULT KOLONNE]],Tabell186[[#This Row],[STATISTIKKNAVN\nNavn i nasjonal publisering\nSKJULT KOLONNE]])","v":"Bruk av IKT i husholdningene"},null,"Årlig","Ja",null,"Statistiske"]
["SSB","FoU, teknologi og innovasjon","Informasjonssamfunnet","Digitalisering og IKT i offentlig sektor","iktbruks","https://www.ssb.no/","https://www.ssb.no/iktbruks",{"$f":"HYPERLINK(Tabell186[[#This Row],[Hjelpekolonne lenketeksten\nSKJULT KOLONNE]],Tabell186[[#This Row],[STATISTIKKNAVN\nNavn i nasjonal publisering\nSKJULT KOLONNE]])","v":"Digitalisering og IKT i offentlig sektor"},null,"Årlig","Nei",null,"Statistiske"]
["SSB","Helse og omsorg","Helse- og omsorgsforhold og levevaner","Helseforhold, levekårsundersøkelsen","helseforhold","https://www.ssb.no/","https://www.ssb.no/helseforhold",{"$f":"HYPERLINK(Tabell186[[#This Row],[Hjelpekolonne lenketeksten\nSKJULT KOLONNE]],Tabell186[[#This Row],[STATISTIKKNAVN\nNavn i nasjonal publisering\nSKJULT KOLONNE]])","v":"Helseforhold, levekårsundersøkelsen"},"Statistikken gjelder også delområdene Helse- og omsorgstjenester, Sykdommer, Smittevern og vaksine","Sjeldnere enn årlig","Ja","OECD","Statistiske; Administrative","Intervjuundersøkelse; Registeropplysninger (inntekt, utdanning, husholdning)"]
["SSB","Helse og omsorg","Helse- og omsorgsforhold og levevaner","Arbeidsulykker","arbulykker","https://www.ssb.no/","https://www.ssb.no/arbulykker",{"$f":"HYPERLINK(Tabell186[[#This Row],[Hjelpekolonne lenketeksten\nSKJULT KOLONNE]],Tabell186[[#This Row],[STATISTIKKNAVN\nNavn i nasjonal publisering\nSKJULT KOLONNE]])","v":"Arbeidsulykker"},null,"Årlig","Ja","ILO","Statistiske; Administrative","NAV (skjemaer); Administrative registre (Aa-register, A-ordningen); tilsynsmyndigheter i arbeidslivet (dødsulykker)"]
["SSB","Helse og omsorg","Helse- og omsorgsforhold og levevaner","Røyk, alkohol og andre rusmidler","royk","https://www.ssb.no/","https://www.ssb.no/royk",{"$f":"HYPERLINK(Tabell186[[#This Row],[Hjelpekolonne lenketeksten\nSKJULT KOLONNE]],Tabell186[[#This Row],[STATISTIKKNAVN\nNavn i nasjonal publisering\nSKJULT KOLONNE]])","v":"Røyk, alkohol og andre rusmidler"},"Statistikken publiseres to ganger per år basert på to forskjellige datafangster","Årlig","Nei","OECD","Statistiske","Intervjuundersøkelse; Registeropplysninger (inntekt, utdanning, husholdning)"]
["SSB","Helse og omsorg","Helse- og omsorgsforhold og levevaner","Levekår for personer med funksjonsnedsettelse ","funkhem","https://www.ssb.no/","https://www.ssb.no/funkhem",{"$f":"HYPERLINK(Tabell186[[#This Row],[Hjelpekolonne lenketeksten\nSKJULT KOLONNE]],Tabell186[[#This Row],[STATISTIKKNAVN\nNavn i nasjonal publisering\nSKJULT KOLONNE]])","v":"Levekår for personer med funksjonsnedsettelse "},null,"Årlig","Nei","FN-konvensjon","Statistiske; Administrative","NAV Hjelpemiddelsentralen; NAV-registre; KUHR; BeReg"]
["SSB","Helse og omsorg","Helse- og omsorgstjenester","Allmennlegetjenesten","fastlegetj","https://www.ssb.no/","https://www.ssb.no/fastlegetj",{"$f":"HYPERLINK(Tabell186[[#This Row],[Hjelpekolonne lenketeksten\nSKJULT KOLONNE]],Tabell186[[#This Row],[STATISTIKKNAVN\nNavn i nasjonal publisering\nSKJULT KOLONNE]])","v":"Allmennlegetjenesten"},null,"Årlig","Nei","OECD","Administrative","KUHR"]
["SSB","Helse og omsorg","Helse- og omsorgstjenester","Kommunehelsetenesta","helsetjko","https://www.ssb.no/","https://www.ssb.no/helsetjko",{"$f":"HYPERLINK(Tabell186[[#This Row],[Hjelpekolonne lenketeksten\nSKJULT KOLONNE]],Tabell186[[#This Row],[STATISTIKKNAVN\nNavn i nasjonal publisering\nSKJULT KOLONNE]])","v":"Kommunehelsetenesta"},null,"Årlig","Nei","OECD","Administrative","KOSTRA; IPLOS; BeReg; Ulike administrative registre"]
["SSB","Helse og omsorg","Helse- og omsorgstjenester","Pasienter på sykehus","pasient","https://www.ssb.no/","https://www.ssb.no/pasient",{"$f":"HYPERLINK(Tabell186[[#This Row],[Hjelpekolonne lenketeksten\nSKJULT KOLONNE]],Tabell186[[#This Row],[STATISTIKKNAVN\nNavn i nasjonal publisering\nSKJULT KOLONNE]])","v":"Pasienter på sykehus"},null,"Årlig","Nei","OECD","Administrative","NPR"]
["SSB","Helse og omsorg","Helse- og omsorgstjenester","Sjukeheimar, heimetenester og andre omsorgstenester","pleie","https://www.ssb.no/","https://www.ssb.no/pleie",{"$f":"HYPERLINK(Tabell186[[#This Row],[Hjelpekolonne lenketeksten\nSKJULT KOLONNE]],Tabell186[[#This Row],[STATISTIKKNAVN\nNavn i nasjonal publisering\nSKJULT KOLONNE]])","v":"Sjukeheimar, heimetenester og andre omsorgstenester"},null,"Årlig","Nei","OECD","Administrative","KOSTRA; IPLOS; BeReg; Ulike administrative registre"]
["SSB","Helse og omsorg","Helse- og omsorgstjenester","Spesialisthelsetjenesten","speshelse","https://www.ssb.no/","https://www.ssb.no/speshelse",{"$f":"HYPERLINK(Tabell186[[#This Row],[Hjelpekolonne lenketeksten\nSKJULT KOLONNE]],Tabell186[[#This Row],[STATISTIKKNAVN\nNavn i nasjonal publisering\nSKJULT KOLONNE]])","v":"Spesialisthelsetjenesten"},null,"Årlig","Ja","OECD","Statistiske; Administrative","Skjemarapportering gjennom Altinn og KOSTRA-portal; BeReg; Ulike administrative registre"]
["SSB","Helse og omsorg","Helse- og omsorgstjenester","Tannhelsetenesta","tannhelse","https://www.ssb.no/","https://www.ssb.no/tannhelse",{"$f":"HYPERLINK(Tabell186[[#This Row],[Hjelpekolonne lenketeksten\nSKJULT KOLONNE]],Tabell186[[#This Row],[STATISTIKKNAVN\nNavn i nasjonal publisering\nSKJULT KOLONNE]])","v":"Tannhelsetenesta"},null,"Årlig","Nei","OECD","Administrative","KOSTRA; BeReg; Ulike administrative registre"]
["SSB","Helse og omsorg","Helse- og omsorgstjenester","Ulønnet omsorgsarbeid, levekårsundersøkelsen","omsarb","https://www.ssb.no/","https://www.ssb.no/omsarb",{"$f":"HYPERLINK(Tabell186[[#This Row],[Hjelpekolonne lenketeksten\nSKJULT KOLONNE]],Tabell186[[#This Row],[STATISTIKKNAVN\nNavn i nasjonal publisering\nSKJULT KOLONNE]])","v":"Ulønnet omsorgsarbeid, levekårsundersøkelsen"},null,"Sjeldnere enn årlig","Ja",null,"Statistiske","Levekårsundersøkelsen om helse (EHIS)"]
["FHI","Helse og omsorg","Sykdommer","Hjerte- og karlidelser",null,null,"","Hjerte- og karlidelser",null,"Årlig","Nei",null,"Administrative","Hjerte- og karregisteret"]
["FHI","Helse og omsorg","Smittevern og vaksine","Vaksinasjon og vaksinasjonsdekning",null,null,"","Vaksinasjon og vaksinasjonsdekning",null,"Årlig","Nei",null,"Administrative","Vaksinasjonsregisteret SYSVAK"]
["FHI","Helse og omsorg","Legemidler","Legemiddelbruk",null,null,"","Legemiddelbruk","Reseptregisteret skal erstattes av Legemiddelregisteret ","Årlig","Nei",null,"Administrative","Nasjonalt reseptbasert legemiddelregister"]
["FHI","Helse og omsorg","Svangerskap og fødsel","Svangerskapsavbrudd",null,null,"","Svangerskapsavbrudd",null,"Årlig","Nei","THL - Nordisk abortstatistikk","Administrative","Register over svangerskapsavbrudd"]
["FHI","Helse og omsorg","Svangerskap og fødsel","Svangerskap og fødsel",null,null,"","Svangerskap og fødsel",null,"Årlig","Nei","WHO; UNICEF; OECD; NOMESCO; NOMBIR; Euro-Peristat","Administrative","Medisinsk fødselsregister"]
["FHI","Helse og omsorg","Dødsårsaker","Dødsårsaker",null,null,"","Dødsårsaker",null,"Årlig","Ja","WHO; UNICEF; NOMESCO","Administrative","Dødsårsaksregisteret (DÅR)"]
["SSB","Inntekt og forbruk","Forbruk","Forbruksundersøkelsen","fbu","https://www.ssb.no/","https://www.ssb.no/fbu",{"$f":"HYPERLINK(Tabell186[[#This Row],[Hjelpekolonne lenketeksten\nSKJULT KOLONNE]],Tabell186[[#This Row],[STATISTIKKNAVN\nNavn i nasjonal publisering\nSKJULT KOLONNE]])","v":"Forbruksundersøkelsen"},null,"Sjeldnere enn årlig","Ja",null,"Statistiske; Administrative; Andre","Forbruksundersøkelsen (FBU), Transaksjonsdata"]
["SSB","Inntekt og forbruk","Inntekt og formue","Inntekter, personlig næringsdrivende","ifpn","https://www.ssb.no/","https://www.ssb.no/ifpn",{"$f":"HYPERLINK(Tabell186[[#This Row],[Hjelpekolonne lenketeksten\nSKJULT KOLONNE]],Tabell186[[#This Row],[STATISTIKKNAVN\nNavn i nasjonal publisering\nSKJULT KOLONNE]])","v":"Inntekter, personlig næringsdrivende"},null,"Årlig","Nei",null,"Administrative","SKD"]
["SSB","Inntekt og forbruk","Inntekt og formue","Inntekts- og formuesstatistikk for husholdninger","ifhus","https://www.ssb.no/","https://www.ssb.no/ifhus",{"$f":"HYPERLINK(Tabell186[[#This Row],[Hjelpekolonne lenketeksten\nSKJULT KOLONNE]],Tabell186[[#This Row],[STATISTIKKNAVN\nNavn i nasjonal publisering\nSKJULT KOLONNE]])","v":"Inntekts- og formuesstatistikk for husholdninger"},null,"Årlig","Nei","OECD; LIS","Statistiske; Administrative","Blant annet Skatteoppgjørsregisteret"]
["SSB","Inntekt og forbruk","Skatt for personer","Skatt for personer","selvangivelse","https://www.ssb.no/","https://www.ssb.no/selvangivelse",{"$f":"HYPERLINK(Tabell186[[#This Row],[Hjelpekolonne lenketeksten\nSKJULT KOLONNE]],Tabell186[[#This Row],[STATISTIKKNAVN\nNavn i nasjonal publisering\nSKJULT KOLONNE]])","v":"Skatt for personer"},null,"Årlig","Nei",null,"Administrative","SKD"]
["SSB","Kultur og fritid","Fysisk aktivitet, idrett og friluftsliv","Idrett og friluftsliv, levekårsundersøkelsen","fritid","https://www.ssb.no/",{"$f":"F124 & E124","v":"https://www.ssb.no/fritid"},{"$f":"HYPERLINK(Tabell186[[#This Row],[Hjelpekolonne lenketeksten\nSKJULT KOLONNE]],Tabell186[[#This Row],[STATISTIKKNAVN\nNavn i nasjonal publisering\nSKJULT KOLONNE]])","v":"Idrett og friluftsliv, levekårsundersøkelsen"},null,"Sjeldnere enn årlig","Nei",null,"Statistiske","Levekårsundersøkelsen EU-Silc"]
["SSB","Kultur og fritid","Kultur","Fag- og forskingsbibliotek","ffbibl","https://www.ssb.no/","https://www.ssb.no/ffbibl",{"$f":"HYPERLINK(Tabell186[[#This Row],[Hjelpekolonne lenketeksten\nSKJULT KOLONNE]],Tabell186[[#This Row],[STATISTIKKNAVN\nNavn i nasjonal publisering\nSKJULT KOLONNE]])","v":"Fag- og forskingsbibliotek"},null,"Årlig","Nei",null,"Statistiske","Nasjonalbiblioteket"]
["SSB","Kultur og fritid","Kultur","Kulturtilbod","kultur_kostra","https://www.ssb.no/","https://www.ssb.no/kultur_kostra",{"$f":"HYPERLINK(Tabell186[[#This Row],[Hjelpekolonne lenketeksten\nSKJULT KOLONNE]],Tabell186[[#This Row],[STATISTIKKNAVN\nNavn i nasjonal publisering\nSKJULT KOLONNE]])","v":"Kulturtilbod"},null,"Årlig","Nei",null,"Administrative","KOSTRA"]
["SSB","Kultur og fritid","Kultur","Museum og samlingar","museer","https://www.ssb.no/","https://www.ssb.no/museer",{"$f":"HYPERLINK(Tabell186[[#This Row],[Hjelpekolonne lenketeksten\nSKJULT KOLONNE]],Tabell186[[#This Row],[STATISTIKKNAVN\nNavn i nasjonal publisering\nSKJULT KOLONNE]])","v":"Museum og samlingar"},null,"Årlig","Nei",null,"Statistiske","Norsk Kulturråd"]
["SSB","Kultur og fritid","Kultur","Norsk kulturbarometer","kulturbar","https://www.ssb.no/","https://www.ssb.no/kulturbar",{"$f":"HYPERLINK(Tabell186[[#This Row],[Hjelpekolonne lenketeksten\nSKJULT KOLONNE]],Tabell186[[#This Row],[STATISTIKKNAVN\nNavn i nasjonal publisering\nSKJULT KOLONNE]])","v":"Norsk kulturbarometer"},null,"Sjeldnere enn årlig","Nei",null,"Statistiske; Administrative","Kulturbruksundersøkelsen"]
["SSB","Kultur og fritid","Organisasjonsdeltakelse","Frivillighet, politisk deltakelse og tillit, levekårsundersøkelsen","orgakt","https://www.ssb.no/","https://www.ssb.no/orgakt",{"$f":"HYPERLINK(Tabell186[[#This Row],[Hjelpekolonne lenketeksten\nSKJULT KOLONNE]],Tabell186[[#This Row],[STATISTIKKNAVN\nNavn i nasjonal publisering\nSKJULT KOLONNE]])","v":"Frivillighet, politisk deltakelse og tillit, levekårsundersøkelsen"},null,"Sjeldnere enn årlig","Nei",null,"Statistiske","Levekårsundersøkelsen EU-SILC"]
["SSB","Kultur og fritid","Religion og livssyn","Den norske kirke","kirke_kostra","https://www.ssb.no/","https://www.ssb.no/kirke_kostra",{"$f":"HYPERLINK(Tabell186[[#This Row],[Hjelpekolonne lenketeksten\nSKJULT KOLONNE]],Tabell186[[#This Row],[STATISTIKKNAVN\nNavn i nasjonal publisering\nSKJULT KOLONNE]])","v":"Den norske kirke"},null,"Årlig","Nei",null,"Administrative","KOSTRA"]
["SSB","Kultur og fritid","Religion og livssyn","Trus- og livssynssamfunn utanfor Den norske kyrkja","trosamf","https://www.ssb.no/","https://www.ssb.no/trosamf",{"$f":"HYPERLINK(Tabell186[[#This Row],[Hjelpekolonne lenketeksten\nSKJULT KOLONNE]],Tabell186[[#This Row],[STATISTIKKNAVN\nNavn i nasjonal publisering\nSKJULT KOLONNE]])","v":"Trus- og livssynssamfunn utanfor Den norske kyrkja"},null,"Årlig","Nei",null,"Administrative","Brønnøysundregistrene"]
["SSB","Kultur og fritid","Tids- og mediebruk","Norsk mediebarometer","medie","https://www.ssb.no/","https://www.ssb.no/medie",{"$f":"HYPERLINK(Tabell186[[#This Row],[Hjelpekolonne lenketeksten\nSKJULT KOLONNE]],Tabell186[[#This Row],[STATISTIKKNAVN\nNavn i nasjonal publisering\nSKJULT KOLONNE]])","v":"Norsk mediebarometer"},null,"Årlig","Nei",null,"Statistiske","Mediebruksundersøkelsen"]
["SSB","Kultur og fritid","Tids- og mediebruk","Tidsbruksundersøkelsen","tidsbruk","https://www.ssb.no/","https://www.ssb.no/tidsbruk",{"$f":"HYPERLINK(Tabell186[[#This Row],[Hjelpekolonne lenketeksten\nSKJULT KOLONNE]],Tabell186[[#This Row],[STATISTIKKNAVN\nNavn i nasjonal publisering\nSKJULT KOLONNE]])","v":"Tidsbruksundersøkelsen"},null,"Sjeldnere enn årlig","Nei",null,"Statistiske","Tidsbruksundersøkelsen"]
["Fiskeridirektoratet","Landbruk, fiskeri og akvakultur","Akvakultur","Akvakulturproduksjon for matfisk og settefisk (laks, regnbueørret og ørret), andre fiskearter, bløtdyr, krepsdyr, pigghuder og alger",null,"https://www.fiskeridir.no/Akvakultur/Tall-og-analyse/Akvakulturstatistikk-tidsserier","https://www.fiskeridir.no/Akvakultur/Tall-og-analyse/Akvakulturstatistikk-tidsserier",{"$f":"HYPERLINK(Tabell186[[#This Row],[Hjelpekolonne lenketeksten\nSKJULT KOLONNE]],Tabell186[[#This Row],[STATISTIKKNAVN\nNavn i nasjonal publisering\nSKJULT KOLONNE]])","v":"Akvakulturproduksjon for matfisk og settefisk (laks, regnbueørret og ørret), andre fiskearter, bløtdyr, krepsdyr, pigghuder og alger"},null,"Årlig","Ja","FAO; OECD","Statistiske","Fulltellingsundersøkelse med bruk av egne administrative kilder i tillegg"]
["Fiskeridirektoratet","Landbruk, fiskeri og akvakultur","Akvakultur","Lønnsomhetsundersøkelse for produksjon av laks og regnbueørret",null,"https://www.fiskeridir.no/Akvakultur/Tall-og-analyse/Loennsomhetsundersoekelse-for-laks-og-regnbueoerret","https://www.fiskeridir.no/Akvakultur/Tall-og-analyse/Loennsomhetsundersoekelse-for-laks-og-regnbueoerret",{"$f":"HYPERLINK(Tabell186[[#This Row],[Hjelpekolonne lenketeksten\nSKJULT KOLONNE]],Tabell186[[#This Row],[STATISTIKKNAVN\nNavn i nasjonal publisering\nSKJULT KOLONNE]])","v":"Lønnsomhetsundersøkelse for produksjon av laks og regnbueørret"},null,"Årlig","Nei","OECD","Statistiske","Fulltellingsundersøkelse med bruk av egne administrative og statistiske kilder i tillegg"]
["Fiskeridirektoratet","Landbruk, fiskeri og akvakultur","Fiske og fangst","Fiskefartøy, fiskere og fisketillatelser",null,"https://www.fiskeridir.no/Yrkesfiske/Tall-og-analyse/Fiskere-fartoey-og-tillatelser","https://www.fiskeridir.no/Yrkesfiske/Tall-og-analyse/Fiskere-fartoey-og-tillatelser",{"$f":"HYPERLINK(Tabell186[[#This Row],[Hjelpekolonne lenketeksten\nSKJULT KOLONNE]],Tabell186[[#This Row],[STATISTIKKNAVN\nNavn i nasjonal publisering\nSKJULT KOLONNE]])","v":"Fiskefartøy, fiskere og fisketillatelser"},null,"Årlig","Nei","Eurostat; FAO; OECD","Administrative","Administrative kilder i Fiskeridirektoratet som Fiskermanntallet, Konsesjons- og deltakerregister, Merkeregisteret"]
["Fiskeridirektoratet","Landbruk, fiskeri og akvakultur","Fiske og fangst","Fangststatistikk over all fiske og fangst i sjøen tatt av norskregistrerte fiskefartøy samt fangst tatt av utenlandske fartøy som er landet i Norge",null,"https://www.fiskeridir.no/Yrkesfiske/Tall-og-analyse/Fangst-og-kvoter/Fangst","https://www.fiskeridir.no/Yrkesfiske/Tall-og-analyse/Fangst-og-kvoter/Fangst",{"$f":"HYPERLINK(Tabell186[[#This Row],[Hjelpekolonne lenketeksten\nSKJULT KOLONNE]],Tabell186[[#This Row],[STATISTIKKNAVN\nNavn i nasjonal publisering\nSKJULT KOLONNE]])","v":"Fangststatistikk over all fiske og fangst i sjøen tatt av norskregistrerte fiskefartøy samt fangst tatt av utenlandske fartøy som er landet i Norge"},null,"Årlig","Ja","FAO; OECD; ICES; NEAFC; NAFO; CCAMLR; ICCAT","Administrative","Flere egne administrative kilder"]
["Fiskeridirektoratet","Landbruk, fiskeri og akvakultur","Fiske og fangst","Lønnsomhetsundersøkelse for fiskeflåten",null,"https://www.fiskeridir.no/Yrkesfiske/Tall-og-analyse/Loennsomhet","https://www.fiskeridir.no/Yrkesfiske/Tall-og-analyse/Loennsomhet",{"$f":"HYPERLINK(Tabell186[[#This Row],[Hjelpekolonne lenketeksten\nSKJULT KOLONNE]],Tabell186[[#This Row],[STATISTIKKNAVN\nNavn i nasjonal publisering\nSKJULT KOLONNE]])","v":"Lønnsomhetsundersøkelse for fiskeflåten"},null,"Årlig","Nei","OECD","Statistiske","Utvalgsundersøkelse med bruk av egne adminstrative kilder i tillegg"]
["Fiskeridirektoratet","Landbruk, fiskeri og akvakultur","Fiske og fangst","Fiskebestander",null,null,"","Fiskebestandar",null,"Årlig","Nei",null,"Statistiske","ICES og Havforskningsinstituttet"]
["SSB","Landbruk, fiskeri og akvakultur","Fiske og fangst","Elvefiske","elvefiske","https://www.ssb.no/","https://www.ssb.no/elvefiske",{"$f":"HYPERLINK(Tabell186[[#This Row],[Hjelpekolonne lenketeksten\nSKJULT KOLONNE]],Tabell186[[#This Row],[STATISTIKKNAVN\nNavn i nasjonal publisering\nSKJULT KOLONNE]])","v":"Elvefiske"},null,"Årlig","Nei","NASCO; FAO","Administrative","Lakseregisteret"]
["SSB","Landbruk, fiskeri og akvakultur","Fiske og fangst","Sjøfiske etter laks og sjøaure","sjofiske","https://www.ssb.no/","https://www.ssb.no/sjofiske",{"$f":"HYPERLINK(Tabell186[[#This Row],[Hjelpekolonne lenketeksten\nSKJULT KOLONNE]],Tabell186[[#This Row],[STATISTIKKNAVN\nNavn i nasjonal publisering\nSKJULT KOLONNE]])","v":"Sjøfiske etter laks og sjøaure"},null,"Årlig","Nei","NASCO; FAO","Statistiske","Fangstdagbøker fra fiskere"]
["SSB","Landbruk, fiskeri og akvakultur","Jakt","Aktive jegere","jeja","https://www.ssb.no/","https://www.ssb.no/jeja",{"$f":"HYPERLINK(Tabell186[[#This Row],[Hjelpekolonne lenketeksten\nSKJULT KOLONNE]],Tabell186[[#This Row],[STATISTIKKNAVN\nNavn i nasjonal publisering\nSKJULT KOLONNE]])","v":"Aktive jegere"},null,"Årlig","Nei",null,"Administrative","Jegerkort"]
["SSB","Landbruk, fiskeri og akvakultur","Jakt","Elgjakt","elgjakt","https://www.ssb.no/","https://www.ssb.no/elgjakt",{"$f":"HYPERLINK(Tabell186[[#This Row],[Hjelpekolonne lenketeksten\nSKJULT KOLONNE]],Tabell186[[#This Row],[STATISTIKKNAVN\nNavn i nasjonal publisering\nSKJULT KOLONNE]])","v":"Elgjakt"},null,"Årlig","Nei",null,"Administrative","Hjorteviltregisteret"]
["SSB","Landbruk, fiskeri og akvakultur","Jakt","Hjortejakt","hjortejakt","https://www.ssb.no/","https://www.ssb.no/hjortejakt",{"$f":"HYPERLINK(Tabell186[[#This Row],[Hjelpekolonne lenketeksten\nSKJULT KOLONNE]],Tabell186[[#This Row],[STATISTIKKNAVN\nNavn i nasjonal publisering\nSKJULT KOLONNE]])","v":"Hjortejakt"},null,"Årlig","Nei",null,"Statistiske","Via kommunene"]
["SSB","Landbruk, fiskeri og akvakultur","Jakt","Registrert avgang av hjortevilt utenom ordinær jakt","hjortavg","https://www.ssb.no/","https://www.ssb.no/hjortavg",{"$f":"HYPERLINK(Tabell186[[#This Row],[Hjelpekolonne lenketeksten\nSKJULT KOLONNE]],Tabell186[[#This Row],[STATISTIKKNAVN\nNavn i nasjonal publisering\nSKJULT KOLONNE]])","v":"Registrert avgang av hjortevilt utenom ordinær jakt"},null,"Årlig","Nei",null,"Statistiske","Via kommunene"]
["SSB","Landbruk, fiskeri og akvakultur","Jakt","Registrert avgang av store rovdyr","rovdyravg","https://www.ssb.no/","https://www.ssb.no/rovdyravg",{"$f":"HYPERLINK(Tabell186[[#This Row],[Hjelpekolonne lenketeksten\nSKJULT KOLONNE]],Tabell186[[#This Row],[STATISTIKKNAVN\nNavn i nasjonal publisering\nSKJULT KOLONNE]])","v":"Registrert avgang av store rovdyr"},null,"Årlig","Nei",null,"Administrative","Rovbaseregister (Miljødir)"]
["SSB","Landbruk, fiskeri og akvakultur","Jakt","Registrerte jegere","jegerreg","https://www.ssb.no/","https://www.ssb.no/jegerreg",{"$f":"HYPERLINK(Tabell186[[#This Row],[Hjelpekolonne lenketeksten\nSKJULT KOLONNE]],Tabell186[[#This Row],[STATISTIKKNAVN\nNavn i nasjonal publisering\nSKJULT KOLONNE]])","v":"Registrerte jegere"},null,"Årlig","Nei",null,"Administrative","Brønnøysundregistrene"]
["SSB","Landbruk, fiskeri og akvakultur","Jakt","Småvilt- og rådyrjakt","srjakt","https://www.ssb.no/","https://www.ssb.no/srjakt",{"$f":"HYPERLINK(Tabell186[[#This Row],[Hjelpekolonne lenketeksten\nSKJULT KOLONNE]],Tabell186[[#This Row],[STATISTIKKNAVN\nNavn i nasjonal publisering\nSKJULT KOLONNE]])","v":"Småvilt- og rådyrjakt"},null,"Årlig","Nei",null,"Statistiske","Fra jegere"]
["SSB","Landbruk, fiskeri og akvakultur","Jakt","Villreinjakt","reinjakt","https://www.ssb.no/","https://www.ssb.no/reinjakt",{"$f":"HYPERLINK(Tabell186[[#This Row],[Hjelpekolonne lenketeksten\nSKJULT KOLONNE]],Tabell186[[#This Row],[STATISTIKKNAVN\nNavn i nasjonal publisering\nSKJULT KOLONNE]])","v":"Villreinjakt"},null,"Årlig","Nei",null,"Statistiske","Fra villreinnemndene"]
["SSB","Landbruk, fiskeri og akvakultur","Jordbruk","Gardsbruk, jordbruksareal og husdyr","stjord","https://www.ssb.no/","https://www.ssb.no/stjord",{"$f":"HYPERLINK(Tabell186[[#This Row],[Hjelpekolonne lenketeksten\nSKJULT KOLONNE]],Tabell186[[#This Row],[STATISTIKKNAVN\nNavn i nasjonal publisering\nSKJULT KOLONNE]])","v":"Gardsbruk, jordbruksareal og husdyr"},null,"Årlig","Ja",null,"Administrative","Tilskuddsmateriale + en rekke andre reg."]
["SSB","Landbruk, fiskeri og akvakultur","Jordbruk","Hagebruksavlingar","hagebruk","https://www.ssb.no/","https://www.ssb.no/hagebruk",{"$f":"HYPERLINK(Tabell186[[#This Row],[Hjelpekolonne lenketeksten\nSKJULT KOLONNE]],Tabell186[[#This Row],[STATISTIKKNAVN\nNavn i nasjonal publisering\nSKJULT KOLONNE]])","v":"Hagebruksavlingar"},null,"Årlig","Ja",null,"Statistiske"]
["SSB","Landbruk, fiskeri og akvakultur","Jordbruk","Husdyrhald","jordhus","https://www.ssb.no/","https://www.ssb.no/jordhus",{"$f":"HYPERLINK(Tabell186[[#This Row],[Hjelpekolonne lenketeksten\nSKJULT KOLONNE]],Tabell186[[#This Row],[STATISTIKKNAVN\nNavn i nasjonal publisering\nSKJULT KOLONNE]])","v":"Husdyrhald"},null,"Årlig","Nei",null,"Administrative","Søknad om produksjonstilskudd"]
["SSB","Landbruk, fiskeri og akvakultur","Jordbruk","Kjøtproduksjon","slakt","https://www.ssb.no/","https://www.ssb.no/slakt",{"$f":"HYPERLINK(Tabell186[[#This Row],[Hjelpekolonne lenketeksten\nSKJULT KOLONNE]],Tabell186[[#This Row],[STATISTIKKNAVN\nNavn i nasjonal publisering\nSKJULT KOLONNE]])","v":"Kjøtproduksjon"},null,"Årlig","Nei",null,"Administrative","Landbruksdir. Register over leverte slakt"]
["SSB","Landbruk, fiskeri og akvakultur","Jordbruk","Korn og oljevekster, areal og avlinger","korn","https://www.ssb.no/","https://www.ssb.no/korn",{"$f":"HYPERLINK(Tabell186[[#This Row],[Hjelpekolonne lenketeksten\nSKJULT KOLONNE]],Tabell186[[#This Row],[STATISTIKKNAVN\nNavn i nasjonal publisering\nSKJULT KOLONNE]])","v":"Korn og oljevekster, areal og avlinger"},null,"Årlig","Ja",null,"Administrative","Landbruksdir. Leveranseregisteret for korn- og oljevekster"]
["SSB","Landbruk, fiskeri og akvakultur","Jordbruk","Landbruksundersøkinga","lu","https://www.ssb.no/","https://www.ssb.no/lu",{"$f":"HYPERLINK(Tabell186[[#This Row],[Hjelpekolonne lenketeksten\nSKJULT KOLONNE]],Tabell186[[#This Row],[STATISTIKKNAVN\nNavn i nasjonal publisering\nSKJULT KOLONNE]])","v":"Landbruksundersøkinga"},null,"Årlig","Ja",null,"Statistiske","Egen utvalgsundersøkelse"]
["SSB","Landbruk, fiskeri og akvakultur","Jordbruk","Plantevern","jordmil","https://www.ssb.no/","https://www.ssb.no/jordmil",{"$f":"HYPERLINK(Tabell186[[#This Row],[Hjelpekolonne lenketeksten\nSKJULT KOLONNE]],Tabell186[[#This Row],[STATISTIKKNAVN\nNavn i nasjonal publisering\nSKJULT KOLONNE]])","v":"Plantevern"},"Gjennomføres vekselvis for hagebruk og jordbruk","Sjeldnere enn årlig","Ja",null,"Statistiske","Egne undersøkelser"]
["SSB","Landbruk, fiskeri og akvakultur","Jordbruk","Potet- og grovfôravlingar","jordbruksavling","https://www.ssb.no/","https://www.ssb.no/jordbruksavling",{"$f":"HYPERLINK(Tabell186[[#This Row],[Hjelpekolonne lenketeksten\nSKJULT KOLONNE]],Tabell186[[#This Row],[STATISTIKKNAVN\nNavn i nasjonal publisering\nSKJULT KOLONNE]])","v":"Potet- og grovfôravlingar"},null,"Årlig","Ja",null,"Statistiske"]
["SSB","Landbruk, fiskeri og akvakultur","Landbrukseiendommer","Kommunal forvaltning av landbruksarealer","kofola","https://www.ssb.no/","https://www.ssb.no/kofola",{"$f":"HYPERLINK(Tabell186[[#This Row],[Hjelpekolonne lenketeksten\nSKJULT KOLONNE]],Tabell186[[#This Row],[STATISTIKKNAVN\nNavn i nasjonal publisering\nSKJULT KOLONNE]])","v":"Kommunal forvaltning av landbruksarealer"},null,"Årlig","Nei",null,"Statistiske","KOSTRA"]
["SSB","Landbruk, fiskeri og akvakultur","Landbrukseiendommer","Landbrukseiendommer","laeiby","https://www.ssb.no/","https://www.ssb.no/laeiby",{"$f":"HYPERLINK(Tabell186[[#This Row],[Hjelpekolonne lenketeksten\nSKJULT KOLONNE]],Tabell186[[#This Row],[STATISTIKKNAVN\nNavn i nasjonal publisering\nSKJULT KOLONNE]])","v":"Landbrukseiendommer"},null,"Årlig","Nei",null,"Administrative","Matrikkel, Landbruksregisteret"]
["SSB","Landbruk, fiskeri og akvakultur","Landbrukseiendommer","Overdragelser av landbrukseiendommer","laeiti","https://www.ssb.no/","https://www.ssb.no/laeiti",{"$f":"HYPERLINK(Tabell186[[#This Row],[Hjelpekolonne lenketeksten\nSKJULT KOLONNE]],Tabell186[[#This Row],[STATISTIKKNAVN\nNavn i nasjonal publisering\nSKJULT KOLONNE]])","v":"Overdragelser av landbrukseiendommer"},null,"Årlig","Nei",null,"Administrative","Matrikkel, grunnboka, Landbruksregisteret"]
["SSB","Landbruk, fiskeri og akvakultur","Landbrukstellinger","Landbruksteljing","landt","https://www.ssb.no/","https://www.ssb.no/landt",{"$f":"HYPERLINK(Tabell186[[#This Row],[Hjelpekolonne lenketeksten\nSKJULT KOLONNE]],Tabell186[[#This Row],[STATISTIKKNAVN\nNavn i nasjonal publisering\nSKJULT KOLONNE]])","v":"Landbruksteljing"},null,"Sjeldnere enn årlig","Ja",null,"Statistiske; Administrative; Andre","Skjema og en rekke adm. registre"]
["SSB","Landbruk, fiskeri og akvakultur","Skogbruk","Landsskogtakseringen","lst","https://www.ssb.no/","https://www.ssb.no/lst",{"$f":"HYPERLINK(Tabell186[[#This Row],[Hjelpekolonne lenketeksten\nSKJULT KOLONNE]],Tabell186[[#This Row],[STATISTIKKNAVN\nNavn i nasjonal publisering\nSKJULT KOLONNE]])","v":"Landsskogtakseringen"},null,"Årlig","Nei",null,"Administrative","Landsskogtakseringen. NIBIO"]
["SSB","Landbruk, fiskeri og akvakultur","Skogbruk","Skogavvirkning for salg","skogav","https://www.ssb.no/","https://www.ssb.no/skogav",{"$f":"HYPERLINK(Tabell186[[#This Row],[Hjelpekolonne lenketeksten\nSKJULT KOLONNE]],Tabell186[[#This Row],[STATISTIKKNAVN\nNavn i nasjonal publisering\nSKJULT KOLONNE]])","v":"Skogavvirkning for salg"},null,"Kvartalsvis","Nei",null,"Administrative","Landbruksdirektoratet"]
["SSB","Landbruk, fiskeri og akvakultur","Skogbruk","Skogeiendommer","stskog","https://www.ssb.no/","https://www.ssb.no/stskog",{"$f":"HYPERLINK(Tabell186[[#This Row],[Hjelpekolonne lenketeksten\nSKJULT KOLONNE]],Tabell186[[#This Row],[STATISTIKKNAVN\nNavn i nasjonal publisering\nSKJULT KOLONNE]])","v":"Skogeiendommer"},null,"Årlig","Nei",null,"Administrative","Digitale kart"]
["SSB","Landbruk, fiskeri og akvakultur","Skogbruk","Skogeiernes inntekt","skoginnt","https://www.ssb.no/","https://www.ssb.no/skoginnt",{"$f":"HYPERLINK(Tabell186[[#This Row],[Hjelpekolonne lenketeksten\nSKJULT KOLONNE]],Tabell186[[#This Row],[STATISTIKKNAVN\nNavn i nasjonal publisering\nSKJULT KOLONNE]])","v":"Skogeiernes inntekt"},null,"Årlig","Nei",null,"Administrative; Andre","Matrikkel; Ligning, Kart, med mer"]
["SSB","Landbruk, fiskeri og akvakultur","Skogbruk","Skogkultur","skogkultur","https://www.ssb.no/","https://www.ssb.no/skogkultur",{"$f":"HYPERLINK(Tabell186[[#This Row],[Hjelpekolonne lenketeksten\nSKJULT KOLONNE]],Tabell186[[#This Row],[STATISTIKKNAVN\nNavn i nasjonal publisering\nSKJULT KOLONNE]])","v":"Skogkultur"},null,"Årlig","Nei",null,"Administrative","Landbruksdirektoratet"]
["SSB","Landbruk, fiskeri og akvakultur","Skogbruk","Skogsveier","skogsvei","https://www.ssb.no/","https://www.ssb.no/skogsvei",{"$f":"HYPERLINK(Tabell186[[#This Row],[Hjelpekolonne lenketeksten\nSKJULT KOLONNE]],Tabell186[[#This Row],[STATISTIKKNAVN\nNavn i nasjonal publisering\nSKJULT KOLONNE]])","v":"Skogsveier"},null,"Årlig","Nei",null,"Administrative","Via Fylkesmann og Landbruksdirektoratet"]
["Landbruksdirektoratet","Landbruk, fiskeri og akvakultur","Landbruksøkonomi","Landbrukspriser",null,null,"","Landbrukspriser",null,"Månedlig","Nei",null,"Administrative","Fra produsenter"]
["NIBIO","Landbruk, fiskeri og akvakultur","Landbruksøkonomi","Totalkalkylen for jordbruket",null,null,"","Totalkalkylen for jordbruket",null,"Årlig","Ja",null,"Statistiske; Administrative; Andre","En rekke datakilder"]
["NIBIO","Landbruk, fiskeri og akvakultur","Landbruksøkonomi","Driftsgranskingar i jord- og skogbruk",null,null,"","Driftsgranskingar i jord- og skogbruk",null,"Årlig","Nei",null,"Statistiske","Utvalgsundersøkelse i NIBIO + andre kilder"]
["SSB","Landbruk, fiskeri og akvakultur","Landbruksøkonomi","Gårdbrukernes inntekter og gjeld","binfo","https://www.ssb.no/","https://www.ssb.no/binfo",{"$f":"HYPERLINK(Tabell186[[#This Row],[Hjelpekolonne lenketeksten\nSKJULT KOLONNE]],Tabell186[[#This Row],[STATISTIKKNAVN\nNavn i nasjonal publisering\nSKJULT KOLONNE]])","v":"Gårdbrukernes inntekter og gjeld"},null,"Årlig","Nei",null,"Administrative","Mest skattestatistikk"]
["Landbruksdirektoratet","Landbruk, fiskeri og akvakultur","Reindrift","Reintall",null,null,"","Reintall",null,"Årlig","Nei",null,"Administrative","Fra siidaandelsledere"]
["Landbruksdirektoratet","Landbruk, fiskeri og akvakultur","Reindrift","Gjennomsnittlige slaktevekter for rein",null,null,"","Gjennomsnittlige slaktevekter for rein",null,"Årlig","Nei",null,"Administrative","Fra slakterier"]
["Landbruksdirektoratet","Landbruk, fiskeri og akvakultur","Reindrift","Reineiers innmeldte tap på grunn av rovvilt",null,null,"","Rovvilttap",null,"Årlig","Nei",null,"Administrative","Fra siidaandelsledere"]
["Landbruksdirektoratet","Landbruk, fiskeri og akvakultur","Reindrift","Vederlag for arbeid og egenkapital til reineiere",null,null,"","Vederlag for arbeid og egenkapital til reineiere",null,"Årlig","Nei",null,"Administrative","Landbruksdirektoratet, slakteri, Skatteetaten (siidaandelsleder og ektefelle/samboer), Opplæringskontoret i reindrift og duodji, Sametinget, Innovasjon Norge, Statsforvalteren (i Troms og Finnmark, Nordland, Trøndelag og Hedmark), reinbeitedistrikt, reinlag, Miljødirektoratet (Rovbase) og Bane Nor"]
["SSB","Nasjonalregnskap","Nasjonalregnskap","Nasjonalregnskap","knr","https://www.ssb.no/","https://www.ssb.no/knr",{"$f":"HYPERLINK(Tabell186[[#This Row],[Hjelpekolonne lenketeksten\nSKJULT KOLONNE]],Tabell186[[#This Row],[STATISTIKKNAVN\nNavn i nasjonal publisering\nSKJULT KOLONNE]])","v":"Nasjonalregnskap"},"Statistikken omfatter publiseringer med ulik frekvens","Månedlig; Kvartalsvis; Årlig","Ja","OECD; IMF; FN; BIS","Statistiske","Andre statistikker"]
["SSB","Nasjonalregnskap","Nasjonalregnskap","Nasjonalregnskap, inntekts- og kapitalregnskapet","knri","https://www.ssb.no/","https://www.ssb.no/knri",{"$f":"HYPERLINK(Tabell186[[#This Row],[Hjelpekolonne lenketeksten\nSKJULT KOLONNE]],Tabell186[[#This Row],[STATISTIKKNAVN\nNavn i nasjonal publisering\nSKJULT KOLONNE]])","v":"Nasjonalregnskap, inntekts- og kapitalregnskapet"},"Statistikken omfatter publiseringer med ulik frekvens","Kvartalsvis; Årlig","Ja","OECD; IMF; FN; BIS","Statistiske","Andre statistikker"]
["SSB","Nasjonalregnskap","Nasjonalregnskap","Fylkesfordelt nasjonalregnskap","fnr","https://www.ssb.no/","https://www.ssb.no/fnr",{"$f":"HYPERLINK(Tabell186[[#This Row],[Hjelpekolonne lenketeksten\nSKJULT KOLONNE]],Tabell186[[#This Row],[STATISTIKKNAVN\nNavn i nasjonal publisering\nSKJULT KOLONNE]])","v":"Fylkesfordelt nasjonalregnskap"},null,"Årlig","Ja",null,"Statistiske","Andre statistikker"]
["SSB","Nasjonalregnskap","Finansregnskap","Finansielle sektorregnskaper","finsek","https://www.ssb.no/","https://www.ssb.no/finsek",{"$f":"HYPERLINK(Tabell186[[#This Row],[Hjelpekolonne lenketeksten\nSKJULT KOLONNE]],Tabell186[[#This Row],[STATISTIKKNAVN\nNavn i nasjonal publisering\nSKJULT KOLONNE]])","v":"Finansielle sektorregnskaper"},null,"Kvartalsvis","Ja","OECD; IMF; FN; BIS","Statistiske; Administrative","Andre statistikker"]
["SSB","Nasjonalregnskap","Satellittregnskap","Helseregnskap","helsesat","https://www.ssb.no/","https://www.ssb.no/helsesat",{"$f":"HYPERLINK(Tabell186[[#This Row],[Hjelpekolonne lenketeksten\nSKJULT KOLONNE]],Tabell186[[#This Row],[STATISTIKKNAVN\nNavn i nasjonal publisering\nSKJULT KOLONNE]])","v":"Helseregnskap"},null,"Årlig","Ja","OECD; WHO","Statistiske","Andre statistikker"]
["SSB","Nasjonalregnskap","Satellittregnskap","Satellittregnskap for ideelle og frivillige organisasjoner","orgsat","https://www.ssb.no/","https://www.ssb.no/orgsat",{"$f":"HYPERLINK(Tabell186[[#This Row],[Hjelpekolonne lenketeksten\nSKJULT KOLONNE]],Tabell186[[#This Row],[STATISTIKKNAVN\nNavn i nasjonal publisering\nSKJULT KOLONNE]])","v":"Satellittregnskap for ideelle og frivillige organisasjoner"},"Avhenger delvis av tall for frivillig innsats som har bygget på en utvalgsundersøkelse i regi av ISF\nPubliseres i hovedsak hvert år","Årlig","Nei",null,"Statistiske","Andre statistikker"]
["SSB","Nasjonalregnskap","Satellittregnskap","Satellittregnskap for turisme","turismesat","https://www.ssb.no/","https://www.ssb.no/turismesat",{"$f":"HYPERLINK(Tabell186[[#This Row],[Hjelpekolonne lenketeksten\nSKJULT KOLONNE]],Tabell186[[#This Row],[STATISTIKKNAVN\nNavn i nasjonal publisering\nSKJULT KOLONNE]])","v":"Satellittregnskap for turisme"},"Publiseres i hovedsak hvert år","Årlig","Nei",null,"Statistiske","Andre statistikker"]
["SSB","Nasjonalregnskap","Satellittregnskap","Utdanningsregnskap","utdanningsat","https://www.ssb.no/","https://www.ssb.no/utdanningsat",{"$f":"HYPERLINK(Tabell186[[#This Row],[Hjelpekolonne lenketeksten\nSKJULT KOLONNE]],Tabell186[[#This Row],[STATISTIKKNAVN\nNavn i nasjonal publisering\nSKJULT KOLONNE]])","v":"Utdanningsregnskap"},"Er under utvikling, og publiseringshyppighet kan justeres i lys av brukerbehov","Årlig","Nei",null,"Statistiske","Andre statistikker"]
["SSB","Nasjonalregnskap","Satellittregnskap","Satellittregnskap for ulønnet husarbeid",null,"https://www.ssb.no/","https://www.ssb.no/",{"$f":"HYPERLINK(Tabell186[[#This Row],[Hjelpekolonne lenketeksten\nSKJULT KOLONNE]],Tabell186[[#This Row],[STATISTIKKNAVN\nNavn i nasjonal publisering\nSKJULT KOLONNE]])","v":"Satellittregnskap for ulønnet husarbeid"},"Avhenger av tidsbruksundersøkelsen som er 10-årig","Sjeldnere enn årlig","Nei",null,"Statistiske","Andre statistikker"]
["SSB","Natur, klima og miljø","Areal","Aktivitet i sentrumssoner","arealsentrum","https://www.ssb.no/","https://www.ssb.no/arealsentrum",{"$f":"HYPERLINK(Tabell186[[#This Row],[Hjelpekolonne lenketeksten\nSKJULT KOLONNE]],Tabell186[[#This Row],[STATISTIKKNAVN\nNavn i nasjonal publisering\nSKJULT KOLONNE]])","v":"Aktivitet i sentrumssoner"},null,"Årlig","Nei",null,"Administrative","Matrikkelen; VoF; FKB"]
["SSB","Natur, klima og miljø","Areal","Areal av land og ferskvatn","arealdekke","https://www.ssb.no/","https://www.ssb.no/arealdekke",{"$f":"HYPERLINK(Tabell186[[#This Row],[Hjelpekolonne lenketeksten\nSKJULT KOLONNE]],Tabell186[[#This Row],[STATISTIKKNAVN\nNavn i nasjonal publisering\nSKJULT KOLONNE]])","v":"Areal av land og ferskvatn"},null,"Årlig","Nei","FAO","Administrative","Matrikkelen; Kart fra SKV"]
["SSB","Natur, klima og miljø","Areal","Arealbruk i tettsteder","arealbruk","https://www.ssb.no/","https://www.ssb.no/arealbruk",{"$f":"HYPERLINK(Tabell186[[#This Row],[Hjelpekolonne lenketeksten\nSKJULT KOLONNE]],Tabell186[[#This Row],[STATISTIKKNAVN\nNavn i nasjonal publisering\nSKJULT KOLONNE]])","v":"Arealbruk i tettsteder"},null,"Årlig","Ja",null,"Administrative","Matrikkelen"]
["SSB","Natur, klima og miljø","Areal","Arealbruk og arealressurser","arealstat","https://www.ssb.no/",{"$f":"F188 & E188","v":"https://www.ssb.no/arealstat"},{"$f":"HYPERLINK(Tabell186[[#This Row],[Hjelpekolonne lenketeksten\nSKJULT KOLONNE]],Tabell186[[#This Row],[STATISTIKKNAVN\nNavn i nasjonal publisering\nSKJULT KOLONNE]])","v":"Arealbruk og arealressurser"},null,"Årlig","Ja",null,"Administrative","Matrikkelen; AR-STAT; Vbase; FKB"]
["SSB","Natur, klima og miljø","Areal","Byggeaktivitet i strandsonen","strandsone","https://www.ssb.no/","https://www.ssb.no/strandsone",{"$f":"HYPERLINK(Tabell186[[#This Row],[Hjelpekolonne lenketeksten\nSKJULT KOLONNE]],Tabell186[[#This Row],[STATISTIKKNAVN\nNavn i nasjonal publisering\nSKJULT KOLONNE]])","v":"Byggeaktivitet i strandsonen"},null,"Årlig","Nei",null,"Administrative","Matrikkelen; FKB"]
["SSB","Natur, klima og miljø","Areal","Fritidsbyggområder","fritidsbyggomr","https://www.ssb.no/","https://www.ssb.no/fritidsbyggomr",{"$f":"HYPERLINK(Tabell186[[#This Row],[Hjelpekolonne lenketeksten\nSKJULT KOLONNE]],Tabell186[[#This Row],[STATISTIKKNAVN\nNavn i nasjonal publisering\nSKJULT KOLONNE]])","v":"Fritidsbyggområder"},null,"Årlig","Nei",null,"Administrative","Matrikkelen; FKB"]
["SSB","Natur, klima og miljø","Areal","Miljøforvaltning ","miljo_kostra","https://www.ssb.no/","https://www.ssb.no/miljo_kostra",{"$f":"HYPERLINK(Tabell186[[#This Row],[Hjelpekolonne lenketeksten\nSKJULT KOLONNE]],Tabell186[[#This Row],[STATISTIKKNAVN\nNavn i nasjonal publisering\nSKJULT KOLONNE]])","v":"Miljøforvaltning "},null,"Årlig","Nei",null,"Statistiske","KOSTRA"]
["SSB","Natur, klima og miljø","Areal","Plan- og byggesaksbehandling","fysplan","https://www.ssb.no/","https://www.ssb.no/fysplan",{"$f":"HYPERLINK(Tabell186[[#This Row],[Hjelpekolonne lenketeksten\nSKJULT KOLONNE]],Tabell186[[#This Row],[STATISTIKKNAVN\nNavn i nasjonal publisering\nSKJULT KOLONNE]])","v":"Plan- og byggesaksbehandling"},null,"Årlig","Nei",null,"Statistiske","KOSTRA"]
["SSB","Natur, klima og miljø","Areal","Rekreasjonsareal og nærturterreng","arealrek","https://www.ssb.no/","https://www.ssb.no/arealrek",{"$f":"HYPERLINK(Tabell186[[#This Row],[Hjelpekolonne lenketeksten\nSKJULT KOLONNE]],Tabell186[[#This Row],[STATISTIKKNAVN\nNavn i nasjonal publisering\nSKJULT KOLONNE]])","v":"Rekreasjonsareal og nærturterreng"},null,"Årlig","Nei",null,"Administrative","Diverse geodatasett"]
["Miljødirektoratet","Natur, klima og miljø","Naturmangfold","Fremmede arter",null,null,"","Fremmede arter","Oppdatering når ny versjon av Artsdatabankens Fremmedeartslista foreligger (ca. hvert sjette år, nyeste er fra 2018)","Sjeldnere enn årlig","Nei","IUCN","Administrative","Artskart"]
["Miljødirektoratet","Natur, klima og miljø","Naturmangfold","Inngrepsfri natur",null,null,"","Inngrepsfri natur","Publisering hvert 5. år (fram til nå)","Sjeldnere enn årlig","Nei",null,"Administrative","Ulike kartbaser; FKB, Vbase, N50-tema, samt data fra NVE, Statnett m.fl."]
["SSB","Natur, klima og miljø","Naturmangfold","Vernede områder","arealvern","https://www.ssb.no/","https://www.ssb.no/arealvern",{"$f":"HYPERLINK(Tabell186[[#This Row],[Hjelpekolonne lenketeksten\nSKJULT KOLONNE]],Tabell186[[#This Row],[STATISTIKKNAVN\nNavn i nasjonal publisering\nSKJULT KOLONNE]])","v":"Vernede områder"},null,"Årlig","Nei","UNEP-WCMC; CBD","Administrative","Naturbase (Miljødirektoratet)"]
["SSB","Natur, klima og miljø","Avfall","Avfall fra byggeaktivitet","avfbygganl","https://www.ssb.no/","https://www.ssb.no/avfbygganl",{"$f":"HYPERLINK(Tabell186[[#This Row],[Hjelpekolonne lenketeksten\nSKJULT KOLONNE]],Tabell186[[#This Row],[STATISTIKKNAVN\nNavn i nasjonal publisering\nSKJULT KOLONNE]])","v":"Avfall fra byggeaktivitet"},"Inngår i avfallsregnskapet som rapporteres til Eurostat","Årlig","Ja",null,"Administrative","Ferdigattester"]
["SSB","Natur, klima og miljø","Avfall","Avfall fra industrien","avfind","https://www.ssb.no/","https://www.ssb.no/avfind",{"$f":"HYPERLINK(Tabell186[[#This Row],[Hjelpekolonne lenketeksten\nSKJULT KOLONNE]],Tabell186[[#This Row],[STATISTIKKNAVN\nNavn i nasjonal publisering\nSKJULT KOLONNE]])","v":"Avfall fra industrien"},"Publisering hvert 4. år\nInngår i avfallsregnskapet som rapporteres til Eurostat","Sjeldnere enn årlig","Ja",null,"Statistiske"]
["SSB","Natur, klima og miljø","Avfall","Avfall fra tjenesteytende næringer","avfhandel","https://www.ssb.no/","https://www.ssb.no/avfhandel",{"$f":"HYPERLINK(Tabell186[[#This Row],[Hjelpekolonne lenketeksten\nSKJULT KOLONNE]],Tabell186[[#This Row],[STATISTIKKNAVN\nNavn i nasjonal publisering\nSKJULT KOLONNE]])","v":"Avfall fra tjenesteytende næringer"},"Inngår i avfallsregnskapet som rapporteres til Eurostat","Årlig","Ja","OECD","Administrative","Ulike kilder hos avfallsinnsamlere, Vegdirektoratet, Tolletaten"]
["SSB","Natur, klima og miljø","Avfall","Avfall frå hushalda","avfkomm","https://www.ssb.no/","https://www.ssb.no/avfkomm",{"$f":"HYPERLINK(Tabell186[[#This Row],[Hjelpekolonne lenketeksten\nSKJULT KOLONNE]],Tabell186[[#This Row],[STATISTIKKNAVN\nNavn i nasjonal publisering\nSKJULT KOLONNE]])","v":"Avfall frå hushalda"},"Inngår i avfallsregnskapet som rapporteres til Eurostat","Årlig","Ja","OECD","Statistiske","KOSTRA"]
["SSB","Natur, klima og miljø","Avfall","Avfallshåndtering ved avfallsanlegg","avfhand","https://www.ssb.no/","https://www.ssb.no/avfhand",{"$f":"HYPERLINK(Tabell186[[#This Row],[Hjelpekolonne lenketeksten\nSKJULT KOLONNE]],Tabell186[[#This Row],[STATISTIKKNAVN\nNavn i nasjonal publisering\nSKJULT KOLONNE]])","v":"Avfallshåndtering ved avfallsanlegg"},"Inngår i avfallsregnskapet som rapporteres til Eurostat","Årlig","Ja",null,"Administrative","Miljødirektoratet"]
["SSB","Natur, klima og miljø","Avfall","Avfallsregnskapet","avfregno","https://www.ssb.no/","https://www.ssb.no/avfregno",{"$f":"HYPERLINK(Tabell186[[#This Row],[Hjelpekolonne lenketeksten\nSKJULT KOLONNE]],Tabell186[[#This Row],[STATISTIKKNAVN\nNavn i nasjonal publisering\nSKJULT KOLONNE]])","v":"Avfallsregnskapet"},null,"Årlig","Ja","OECD","Statistiske","Andre statistikker"]
["SSB","Natur, klima og miljø","Avfall","Farlig avfall","spesavf","https://www.ssb.no/","https://www.ssb.no/spesavf",{"$f":"HYPERLINK(Tabell186[[#This Row],[Hjelpekolonne lenketeksten\nSKJULT KOLONNE]],Tabell186[[#This Row],[STATISTIKKNAVN\nNavn i nasjonal publisering\nSKJULT KOLONNE]])","v":"Farlig avfall"},null,"Årlig","Ja","OECD","Statistiske; Administrative"]
["SSB","Natur, klima og miljø","Klima og luftforurensning","Utslipp til luft","klimagassn","https://www.ssb.no/","https://www.ssb.no/klimagassn",{"$f":"HYPERLINK(Tabell186[[#This Row],[Hjelpekolonne lenketeksten\nSKJULT KOLONNE]],Tabell186[[#This Row],[STATISTIKKNAVN\nNavn i nasjonal publisering\nSKJULT KOLONNE]])","v":"Utslipp til luft"},null,"Årlig","Ja","EEA; UNFCC","Statistiske","Andre statistikker"]
["SSB","Natur, klima og miljø","Vann og avløp","Kommunal vannforsyning","vann_kostra","https://www.ssb.no/","https://www.ssb.no/vann_kostra",{"$f":"HYPERLINK(Tabell186[[#This Row],[Hjelpekolonne lenketeksten\nSKJULT KOLONNE]],Tabell186[[#This Row],[STATISTIKKNAVN\nNavn i nasjonal publisering\nSKJULT KOLONNE]])","v":"Kommunal vannforsyning"},null,"Årlig","Nei","OECD","Statistiske","KOSTRA"]
["SSB","Natur, klima og miljø","Vann og avløp","Kommunalt avløp","avlut","https://www.ssb.no/","https://www.ssb.no/avlut",{"$f":"HYPERLINK(Tabell186[[#This Row],[Hjelpekolonne lenketeksten\nSKJULT KOLONNE]],Tabell186[[#This Row],[STATISTIKKNAVN\nNavn i nasjonal publisering\nSKJULT KOLONNE]])","v":"Kommunalt avløp"},null,"Årlig","Nei","WHO; UN-Habitat; UNSD; JMP\n","Statistiske","KOSTRA"]
["SSB","Natur, klima og miljø","Miljøregnskap","Materialstrømsregnskap","materialstrom","https://www.ssb.no/","https://www.ssb.no/materialstrom",{"$f":"HYPERLINK(Tabell186[[#This Row],[Hjelpekolonne lenketeksten\nSKJULT KOLONNE]],Tabell186[[#This Row],[STATISTIKKNAVN\nNavn i nasjonal publisering\nSKJULT KOLONNE]])","v":"Materialstrømsregnskap"},null,"Årlig","Ja",null,"Statistiske","Andre statistikker"]
["SSB","Natur, klima og miljø","Miljøregnskap","Miljøvernutgifter","miljokostind","https://www.ssb.no/","https://www.ssb.no/miljokostind",{"$f":"HYPERLINK(Tabell186[[#This Row],[Hjelpekolonne lenketeksten\nSKJULT KOLONNE]],Tabell186[[#This Row],[STATISTIKKNAVN\nNavn i nasjonal publisering\nSKJULT KOLONNE]])","v":"Miljøvernutgifter"},null,"Årlig","Ja",null,"Statistiske","Kontrolleres mot næringsoppgaver, evt. årsregnskaper"]
["SSB","Natur, klima og miljø","Miljøregnskap","Miljøøkonomiske virkemidler","miljovirk","https://www.ssb.no/","https://www.ssb.no/miljovirk",{"$f":"HYPERLINK(Tabell186[[#This Row],[Hjelpekolonne lenketeksten\nSKJULT KOLONNE]],Tabell186[[#This Row],[STATISTIKKNAVN\nNavn i nasjonal publisering\nSKJULT KOLONNE]])","v":"Miljøøkonomiske virkemidler"},null,"Årlig","Ja",null,"Statistiske","Andre statistikker"]
["SSB","Natur, klima og miljø","Miljøregnskap","Utslipp fra norsk økonomisk aktivitet","nrmiljo","https://www.ssb.no/","https://www.ssb.no/nrmiljo",{"$f":"HYPERLINK(Tabell186[[#This Row],[Hjelpekolonne lenketeksten\nSKJULT KOLONNE]],Tabell186[[#This Row],[STATISTIKKNAVN\nNavn i nasjonal publisering\nSKJULT KOLONNE]])","v":"Utslipp fra norsk økonomisk aktivitet"},null,"Årlig","Nei",null,"Statistiske","Andre statistikker"]
["SSB","Offentlige finanser","Offentlige finanser","Offentlig forvaltnings inntekter og utgifter","offinnut","https://www.ssb.no/","https://www.ssb.no/offinnut",{"$f":"HYPERLINK(Tabell186[[#This Row],[Hjelpekolonne lenketeksten\nSKJULT KOLONNE]],Tabell186[[#This Row],[STATISTIKKNAVN\nNavn i nasjonal publisering\nSKJULT KOLONNE]])","v":"Offentlig forvaltnings inntekter og utgifter"},null,"Kvartalsvis","Ja","OECD; IMF","Statistiske; Administrative; Andre","Andre statistikker; DFØ; NSD; KOSTRA; Helseforetak mv."]
["SSB","Offentlige finanser","Offentlige finanser","Offentlig forvaltnings fordringer og gjeld","offogjeld","https://www.ssb.no/","https://www.ssb.no/offogjeld",{"$f":"HYPERLINK(Tabell186[[#This Row],[Hjelpekolonne lenketeksten\nSKJULT KOLONNE]],Tabell186[[#This Row],[STATISTIKKNAVN\nNavn i nasjonal publisering\nSKJULT KOLONNE]])","v":"Offentlig forvaltnings fordringer og gjeld"},null,"Kvartalsvis","Ja","OECD; IMF","Statistiske; Administrative; Andre","Andre statistikker (FINSE); FIN/DFØ; NSD; KOSTRA; Helseforetak mv."]
["SSB","Offentlige finanser","Offentlige finanser","Statsregnskapets inntekter og utgifter","statsregn","https://www.ssb.no/","https://www.ssb.no/statsregn",{"$f":"HYPERLINK(Tabell186[[#This Row],[Hjelpekolonne lenketeksten\nSKJULT KOLONNE]],Tabell186[[#This Row],[STATISTIKKNAVN\nNavn i nasjonal publisering\nSKJULT KOLONNE]])","v":"Statsregnskapets inntekter og utgifter"},null,"Månedlig","Nei","IMF","Administrative","Statsregnskapet (DFØ)"]
["SSB","Offentlige finanser","Offentlige finanser","Offentlige foretak, regnskap","offregn","https://www.ssb.no/","https://www.ssb.no/offregn",{"$f":"HYPERLINK(Tabell186[[#This Row],[Hjelpekolonne lenketeksten\nSKJULT KOLONNE]],Tabell186[[#This Row],[STATISTIKKNAVN\nNavn i nasjonal publisering\nSKJULT KOLONNE]])","v":"Offentlige foretak, regnskap"},null,"Årlig","Nei",null,"Statistiske","Næringsoppgaver; Utvalgsundersøkelse; VoF"]
["SSB","Offentlige finanser","Offentlige finanser","Offentlig sektor på Svalbard","offseksvalbard","https://www.ssb.no/","https://www.ssb.no/offseksvalbard",{"$f":"HYPERLINK(Tabell186[[#This Row],[Hjelpekolonne lenketeksten\nSKJULT KOLONNE]],Tabell186[[#This Row],[STATISTIKKNAVN\nNavn i nasjonal publisering\nSKJULT KOLONNE]])","v":"Offentlig sektor på Svalbard"},null,"Årlig","Nei",null,"Statistiske","Andre statistikker"]
["SSB","Offentlige finanser","Offentlige finanser","Holdninger til norsk u-hjelp","uhjelphold","https://www.ssb.no/","https://www.ssb.no/uhjelphold",{"$f":"HYPERLINK(Tabell186[[#This Row],[Hjelpekolonne lenketeksten\nSKJULT KOLONNE]],Tabell186[[#This Row],[STATISTIKKNAVN\nNavn i nasjonal publisering\nSKJULT KOLONNE]])","v":"Holdninger til norsk u-hjelp"},null,"Sjeldnere enn årlig","Nei",null,"Statistiske","Undersøkelse om holdninger til bistand"]
["SSB","Offentlige finanser","Kommunale finanser","Kommuneregnskap","kommregnko","https://www.ssb.no/","https://www.ssb.no/kommregnko",{"$f":"HYPERLINK(Tabell186[[#This Row],[Hjelpekolonne lenketeksten\nSKJULT KOLONNE]],Tabell186[[#This Row],[STATISTIKKNAVN\nNavn i nasjonal publisering\nSKJULT KOLONNE]])","v":"Kommuneregnskap"},null,"Årlig","Nei",null,"Statistiske; Administrative","Filuttrekk fra kommuner"]
["SSB","Offentlige finanser","Kommunale finanser","Fylkeskommuneregnskap","kommregnfy","https://www.ssb.no/","https://www.ssb.no/kommregnfy",{"$f":"HYPERLINK(Tabell186[[#This Row],[Hjelpekolonne lenketeksten\nSKJULT KOLONNE]],Tabell186[[#This Row],[STATISTIKKNAVN\nNavn i nasjonal publisering\nSKJULT KOLONNE]])","v":"Fylkeskommuneregnskap"},null,"Årlig","Nei",null,"Statistiske","Filuttrekk fra fylkeskommuner"]
["SSB","Offentlige finanser","Kommunale finanser","Kyrkjelege fellesråd, rekneskap","kirkeregn","https://www.ssb.no/","https://www.ssb.no/kirkeregn",{"$f":"HYPERLINK(Tabell186[[#This Row],[Hjelpekolonne lenketeksten\nSKJULT KOLONNE]],Tabell186[[#This Row],[STATISTIKKNAVN\nNavn i nasjonal publisering\nSKJULT KOLONNE]])","v":"Kyrkjelege fellesråd, rekneskap"},null,"Årlig","Nei",null,"Statistiske; Administrative","Filuttrekk (fom. 2021 kun filuttrekk)"]
["SSB","Offentlige finanser","Skatteregnskap","Skatterekneskap","skatteregn","https://www.ssb.no/","https://www.ssb.no/skatteregn",{"$f":"HYPERLINK(Tabell186[[#This Row],[Hjelpekolonne lenketeksten\nSKJULT KOLONNE]],Tabell186[[#This Row],[STATISTIKKNAVN\nNavn i nasjonal publisering\nSKJULT KOLONNE]])","v":"Skatterekneskap"},null,"Månedlig","Nei",null,"Administrative","Fil fra SKD; Oljeskattekontoret"]
["SSB","Offentlige finanser","Skatteregnskap","Eiendomsskatt","eiendomsskatt","https://www.ssb.no/","https://www.ssb.no/eiendomsskatt",{"$f":"HYPERLINK(Tabell186[[#This Row],[Hjelpekolonne lenketeksten\nSKJULT KOLONNE]],Tabell186[[#This Row],[STATISTIKKNAVN\nNavn i nasjonal publisering\nSKJULT KOLONNE]])","v":"Eiendomsskatt"},null,"Årlig","Nei",null,"Statistiske","Filuttrekk fra kommuner og KOSTRA-skjema"]
["SSB","Priser og prisindekser","Konsumpriser","Konsumprisindeksen","kpi","https://www.ssb.no/","https://www.ssb.no/kpi",{"$f":"HYPERLINK(Tabell186[[#This Row],[Hjelpekolonne lenketeksten\nSKJULT KOLONNE]],Tabell186[[#This Row],[STATISTIKKNAVN\nNavn i nasjonal publisering\nSKJULT KOLONNE]])","v":"Konsumprisindeksen"},null,"Månedlig","Nei","OECD","Statistiske; Administrative; Andre","Transaksjonsdata; Elektroniske filer fra 3. partsaktører; Skjema; Intervju"]
["SSB","Priser og prisindekser","Konsumpriser","Harmonisert konsumprisindeks","hkpi","https://www.ssb.no/","https://www.ssb.no/hkpi",{"$f":"HYPERLINK(Tabell186[[#This Row],[Hjelpekolonne lenketeksten\nSKJULT KOLONNE]],Tabell186[[#This Row],[STATISTIKKNAVN\nNavn i nasjonal publisering\nSKJULT KOLONNE]])","v":"Harmonisert konsumprisindeks"},null,"Månedlig","Ja",null,"Statistiske; Administrative; Andre","Transaksjonsdata; Elektroniske filer fra 3. partsaktører; Skjema; Intervju"]
["SSB","Priser og prisindekser","Konsumpriser","Sammenlikning av prisnivå i Europa","ppp","https://www.ssb.no/","https://www.ssb.no/ppp",{"$f":"HYPERLINK(Tabell186[[#This Row],[Hjelpekolonne lenketeksten\nSKJULT KOLONNE]],Tabell186[[#This Row],[STATISTIKKNAVN\nNavn i nasjonal publisering\nSKJULT KOLONNE]])","v":"Sammenlikning av prisnivå i Europa"},"Reviderte tall publiseres fire måneder etter foreløpige tall","Årlig","Ja",null,"Statistiske","Transaksjonsdata; Elektroniske filer fra 3. partsaktører; Skjema; Intervju"]
["SSB","Priser og prisindekser","Produsent-, eksport og importprisindekser","Produsentprisindeksen","ppi","https://www.ssb.no/","https://www.ssb.no/ppi",{"$f":"HYPERLINK(Tabell186[[#This Row],[Hjelpekolonne lenketeksten\nSKJULT KOLONNE]],Tabell186[[#This Row],[STATISTIKKNAVN\nNavn i nasjonal publisering\nSKJULT KOLONNE]])","v":"Produsentprisindeksen"},null,"Månedlig","Ja","OECD","Statistiske","Skjema til foretak"]
["SSB","Priser og prisindekser","Produsent-, eksport og importprisindekser","Prisindeks for førstegangsomsetning innenlands","pif","https://www.ssb.no/","https://www.ssb.no/pif",{"$f":"HYPERLINK(Tabell186[[#This Row],[Hjelpekolonne lenketeksten\nSKJULT KOLONNE]],Tabell186[[#This Row],[STATISTIKKNAVN\nNavn i nasjonal publisering\nSKJULT KOLONNE]])","v":"Prisindeks for førstegangsomsetning innenlands"},null,"Månedlig","Ja",null,"Statistiske","Skjema til foretak"]
["SSB","Priser og prisindekser","Produsent-, eksport og importprisindekser","Produsentprisindekser for tjenester","tpinaering","https://www.ssb.no/","https://www.ssb.no/tpinaering",{"$f":"HYPERLINK(Tabell186[[#This Row],[Hjelpekolonne lenketeksten\nSKJULT KOLONNE]],Tabell186[[#This Row],[STATISTIKKNAVN\nNavn i nasjonal publisering\nSKJULT KOLONNE]])","v":"Produsentprisindekser for tjenester"},null,"Kvartalsvis","Ja",null,"Statistiske; Administrative","Skjema til foretak"]
["SSB","Priser og prisindekser","Boligpriser og boligprisindekser","Prisindeks for brukte boliger","bpi","https://www.ssb.no/","https://www.ssb.no/bpi",{"$f":"HYPERLINK(Tabell186[[#This Row],[Hjelpekolonne lenketeksten\nSKJULT KOLONNE]],Tabell186[[#This Row],[STATISTIKKNAVN\nNavn i nasjonal publisering\nSKJULT KOLONNE]])","v":"Prisindeks for brukte boliger"},null,"Kvartalsvis","Ja",null,"Administrative; Andre","FINN.no; Matrikkelen"]
["SSB","Priser og prisindekser","Boligpriser og boligprisindekser","Prisindeks for nye boliger","nybolig","https://www.ssb.no/","https://www.ssb.no/nybolig",{"$f":"HYPERLINK(Tabell186[[#This Row],[Hjelpekolonne lenketeksten\nSKJULT KOLONNE]],Tabell186[[#This Row],[STATISTIKKNAVN\nNavn i nasjonal publisering\nSKJULT KOLONNE]])","v":"Prisindeks for nye boliger"},null,"Kvartalsvis","Ja",null,"Statistiske; Administrative","Boligbyggere; Matrikkelen"]
["SSB","Priser og prisindekser","Boligpriser og boligprisindekser","Leiemarkedsundersøkelsen","lmu","https://www.ssb.no/","https://www.ssb.no/lmu",{"$f":"HYPERLINK(Tabell186[[#This Row],[Hjelpekolonne lenketeksten\nSKJULT KOLONNE]],Tabell186[[#This Row],[STATISTIKKNAVN\nNavn i nasjonal publisering\nSKJULT KOLONNE]])","v":"Leiemarkedsundersøkelsen"},null,"Årlig","Nei",null,"Statistiske","Skjema til personer"]
["SSB","Priser og prisindekser","Boligpriser og boligprisindekser","Prisindeks for utleie av næringseiendom","naringutl","https://www.ssb.no/","https://www.ssb.no/naringutl",{"$f":"HYPERLINK(Tabell186[[#This Row],[Hjelpekolonne lenketeksten\nSKJULT KOLONNE]],Tabell186[[#This Row],[STATISTIKKNAVN\nNavn i nasjonal publisering\nSKJULT KOLONNE]])","v":"Prisindeks for utleie av næringseiendom"},null,"Årlig","Nei",null,"Administrative","SKD"]
["SSB","Priser og prisindekser","Byggekostnadsindekser","Byggekostnadsindeks for veganlegg","bkianl","https://www.ssb.no/","https://www.ssb.no/bkianl",{"$f":"HYPERLINK(Tabell186[[#This Row],[Hjelpekolonne lenketeksten\nSKJULT KOLONNE]],Tabell186[[#This Row],[STATISTIKKNAVN\nNavn i nasjonal publisering\nSKJULT KOLONNE]])","v":"Byggekostnadsindeks for veganlegg"},null,"Kvartalsvis","Nei",null,"Statistiske","Leverandører og ande kilder"]
["SSB","Priser og prisindekser","Byggekostnadsindekser","Byggjekostnadsindeks for bustader","bkibol","https://www.ssb.no/","https://www.ssb.no/bkibol",{"$f":"HYPERLINK(Tabell186[[#This Row],[Hjelpekolonne lenketeksten\nSKJULT KOLONNE]],Tabell186[[#This Row],[STATISTIKKNAVN\nNavn i nasjonal publisering\nSKJULT KOLONNE]])","v":"Byggjekostnadsindeks for bustader"},null,"Månedlig","Ja",null,"Statistiske","Produsenter"]
["SSB","Priser og prisindekser","Byggekostnadsindekser","Byggjekostnadsindeks for røyrleggjararbeid i kontor- og forretningsbygg","bkiror","https://www.ssb.no/","https://www.ssb.no/bkiror",{"$f":"HYPERLINK(Tabell186[[#This Row],[Hjelpekolonne lenketeksten\nSKJULT KOLONNE]],Tabell186[[#This Row],[STATISTIKKNAVN\nNavn i nasjonal publisering\nSKJULT KOLONNE]])","v":"Byggjekostnadsindeks for røyrleggjararbeid i kontor- og forretningsbygg"},null,"Månedlig","Nei",null,"Statistiske","Grossister"]
["SSB","Sosiale forhold og kriminalitet","Barne- og familievern","Barnevern","barneverng","https://www.ssb.no/","https://www.ssb.no/barneverng",{"$f":"HYPERLINK(Tabell186[[#This Row],[Hjelpekolonne lenketeksten\nSKJULT KOLONNE]],Tabell186[[#This Row],[STATISTIKKNAVN\nNavn i nasjonal publisering\nSKJULT KOLONNE]])","v":"Barnevern"},null,"Årlig","Nei",null,"Administrative","Filuttrekk fra kommuner; KOSTRA"]
["SSB","Sosiale forhold og kriminalitet","Barne- og familievern","Barnevernsinstitusjoner","barneverni","https://www.ssb.no/","https://www.ssb.no/barneverni",{"$f":"HYPERLINK(Tabell186[[#This Row],[Hjelpekolonne lenketeksten\nSKJULT KOLONNE]],Tabell186[[#This Row],[STATISTIKKNAVN\nNavn i nasjonal publisering\nSKJULT KOLONNE]])","v":"Barnevernsinstitusjoner"},null,"Årlig","Nei",null,"Statistiske; Administrative","KOSTRA; Diverse fag- og datasystemer"]
["SSB","Sosiale forhold og kriminalitet","Barne- og familievern","Familievern","famvern","https://www.ssb.no/","https://www.ssb.no/famvern",{"$f":"HYPERLINK(Tabell186[[#This Row],[Hjelpekolonne lenketeksten\nSKJULT KOLONNE]],Tabell186[[#This Row],[STATISTIKKNAVN\nNavn i nasjonal publisering\nSKJULT KOLONNE]])","v":"Familievern"},null,"Årlig","Nei",null,"Statistiske","KOSTRA"]
["SSB","Sosiale forhold og kriminalitet","Kriminalitet og rettsvesen","Anmeldte lovbrudd og ofre","lovbrudda","https://www.ssb.no/","https://www.ssb.no/lovbrudda",{"$f":"HYPERLINK(Tabell186[[#This Row],[Hjelpekolonne lenketeksten\nSKJULT KOLONNE]],Tabell186[[#This Row],[STATISTIKKNAVN\nNavn i nasjonal publisering\nSKJULT KOLONNE]])","v":"Anmeldte lovbrudd og ofre"},null,"Årlig","Nei","UNODC","Administrative","Straffesaksregisteret (BL/STRASAK/PAL)"]
["SSB","Sosiale forhold og kriminalitet","Kriminalitet og rettsvesen","Etterforskede lovbrudd","lovbrudde","https://www.ssb.no/","https://www.ssb.no/lovbrudde",{"$f":"HYPERLINK(Tabell186[[#This Row],[Hjelpekolonne lenketeksten\nSKJULT KOLONNE]],Tabell186[[#This Row],[STATISTIKKNAVN\nNavn i nasjonal publisering\nSKJULT KOLONNE]])","v":"Etterforskede lovbrudd"},null,"Årlig","Nei","UNODC","Administrative","Straffesaksregisteret (BL/STRASAK/PAL)"]
["SSB","Sosiale forhold og kriminalitet","Kriminalitet og rettsvesen","Straffereaksjoner","straff","https://www.ssb.no/","https://www.ssb.no/straff",{"$f":"HYPERLINK(Tabell186[[#This Row],[Hjelpekolonne lenketeksten\nSKJULT KOLONNE]],Tabell186[[#This Row],[STATISTIKKNAVN\nNavn i nasjonal publisering\nSKJULT KOLONNE]])","v":"Straffereaksjoner"},null,"Årlig","Nei","UNODC","Administrative","Reaksjonsregisteret (SSP); BOT (i STRASAK)"]
["SSB","Sosiale forhold og kriminalitet","Kriminalitet og rettsvesen","Fengslinger","fengsling","https://www.ssb.no/","https://www.ssb.no/fengsling",{"$f":"HYPERLINK(Tabell186[[#This Row],[Hjelpekolonne lenketeksten\nSKJULT KOLONNE]],Tabell186[[#This Row],[STATISTIKKNAVN\nNavn i nasjonal publisering\nSKJULT KOLONNE]])","v":"Fengslinger"},null,"Årlig","Nei","UNODC","Administrative","Reaksjonsregisteret (SSP); KOMPIS"]
["SSB","Sosiale forhold og kriminalitet","Kriminalitet og rettsvesen","Utsatthet og uro for lovbrudd, levekårsundersøkelsen","vold","https://www.ssb.no/","https://www.ssb.no/vold",{"$f":"HYPERLINK(Tabell186[[#This Row],[Hjelpekolonne lenketeksten\nSKJULT KOLONNE]],Tabell186[[#This Row],[STATISTIKKNAVN\nNavn i nasjonal publisering\nSKJULT KOLONNE]])","v":"Utsatthet og uro for lovbrudd, levekårsundersøkelsen"},null,"Sjeldnere enn årlig","Nei",null,"Statistiske","Levekårsundersøkelsen EU-Silc"]
["SSB","Sosiale forhold og kriminalitet","Levekår","Fattigdomsproblemer, levekårsundersøkelsen","fattigdom","https://www.ssb.no/","https://www.ssb.no/fattigdom",{"$f":"HYPERLINK(Tabell186[[#This Row],[Hjelpekolonne lenketeksten\nSKJULT KOLONNE]],Tabell186[[#This Row],[STATISTIKKNAVN\nNavn i nasjonal publisering\nSKJULT KOLONNE]])","v":"Fattigdomsproblemer, levekårsundersøkelsen"},null,"Årlig","Ja",null,"Statistiske; Administrative","Levekårsundersøkelsen EU-Silc; Inntektsregisteret"]
["SSB","Sosiale forhold og kriminalitet","Levekår","Sosial kontakt, levekårsundersøkelsen","soskon","https://www.ssb.no/","https://www.ssb.no/soskon",{"$f":"HYPERLINK(Tabell186[[#This Row],[Hjelpekolonne lenketeksten\nSKJULT KOLONNE]],Tabell186[[#This Row],[STATISTIKKNAVN\nNavn i nasjonal publisering\nSKJULT KOLONNE]])","v":"Sosial kontakt, levekårsundersøkelsen"},null,"Sjeldnere enn årlig","Ja",null,"Statistiske","Levekårsundersøkelsen om helse (EHIS)"]
["SSB","Sosiale forhold og kriminalitet","Levekår","Livskvalitet","livskvalitet","https://www.ssb.no/","https://www.ssb.no/livskvalitet",{"$f":"HYPERLINK(Tabell186[[#This Row],[Hjelpekolonne lenketeksten\nSKJULT KOLONNE]],Tabell186[[#This Row],[STATISTIKKNAVN\nNavn i nasjonal publisering\nSKJULT KOLONNE]])","v":"Livskvalitet"},null,"Årlig","Nei",null,"Statistiske; Administrative","Livskvalitetsundersøkelsen"]
["NAV","Sosiale forhold og kriminalitet","Offentlige pensjoner og stønader","Dagpenger",null,null,"","Dagpenger",null,"Månedlig","Nei",null,"Administrative","ARENA"]
["NAV","Sosiale forhold og kriminalitet","Offentlige pensjoner og stønader","Personer med nedsatt arbeidsevne",null,null,"","Personer med nedsatt arbeidsevne",null,"Månedlig; Kvartalsvis","Nei",null,"Administrative","ARENA"]
["NAV","Sosiale forhold og kriminalitet","Offentlige pensjoner og stønader","Mottakere av arbeidsavklaringspenger",null,null,"","Mottakere av arbeidsavklaringspenger",null,"Månedlig; Kvartalsvis","Nei",null,"Administrative","ARENA"]
["NAV","Sosiale forhold og kriminalitet","Offentlige pensjoner og stønader","Mottakere av uføretrygd",null,null,"","Mottakere av uføretrygd",null,"Månedlig; Kvartalsvis","Nei",null,"Administrative","Pesys"]
["NAV","Sosiale forhold og kriminalitet","Offentlige pensjoner og stønader","Mottakere av grunn- og hjelpestønad",null,null,"","Mottakere av grunn- og hjelpestønad",null,"Kvartalsvis","Nei",null,"Administrative","Infotrygd"]
["NAV","Sosiale forhold og kriminalitet","Offentlige pensjoner og stønader","Mottakere av barnetrygd",null,null,"","Mottakere av barnetrygd",null,"Kvartalsvis","Nei",null,"Administrative","Infotrygd"]
["NAV","Sosiale forhold og kriminalitet","Offentlige pensjoner og stønader","Kontantstøtte, foreldrepenger og engangsstønad",null,null,{"$f":"F252 & E252","v":""},"Kontantstøtte, foreldrepenger og engangsstønad",null,"Kvartalsvis","Nei",null,"Administrative","Infotrygd og FP-løsningen"]
["NAV","Sosiale forhold og kriminalitet","Offentlige pensjoner og stønader","Stønad til enslig mor eller far",null,null,"","Stønad til enslig mor eller far",null,"Kvartalsvis","Nei",null,"Administrative","Infotrygd"]
["NAV","Sosiale forhold og kriminalitet","Offentlige pensjoner og stønader","Barnebidrag",null,null,"","Barnebidrag",null,"Kvartalsvis","Nei",null,"Administrative","Bisys"]
["NAV","Sosiale forhold og kriminalitet","Offentlige pensjoner og stønader","Mottakere av alderspensjon",null,null,"","Mottakere av alderspensjon",null,"Månedlig; Kvartalsvis","Nei",null,"Administrative","Pesys"]
["NAV","Sosiale forhold og kriminalitet","Offentlige pensjoner og stønader","Mottakere av andre pensjoner",null,null,"","Mottakere av andre pensjoner",null,"Kvartalsvis","Nei",null,"Administrative","Pesys"]
["NAV","Sosiale forhold og kriminalitet","Offentlige pensjoner og stønader","Utbetalte beløp til trygd, stønader og pensjon",null,null,"","Utbetalte beløp til trygd, stønader og pensjon",null,"Årlig","Nei",null,"Administrative","UR og Abetal"]
["SSB","Sosiale forhold og kriminalitet","Offentlige pensjoner og stønader","Alderspensjonister","aldpensj","https://www.ssb.no/","https://www.ssb.no/aldpensj",{"$f":"HYPERLINK(Tabell186[[#This Row],[Hjelpekolonne lenketeksten\nSKJULT KOLONNE]],Tabell186[[#This Row],[STATISTIKKNAVN\nNavn i nasjonal publisering\nSKJULT KOLONNE]])","v":"Alderspensjonister"},null,"Månedlig; Kvartalsvis","Nei",null,"Administrative","Pesys"]
["SSB","Sosiale forhold og kriminalitet","Offentlige pensjoner og stønader","Uføretrygdede","ufore","https://www.ssb.no/","https://www.ssb.no/ufore",{"$f":"HYPERLINK(Tabell186[[#This Row],[Hjelpekolonne lenketeksten\nSKJULT KOLONNE]],Tabell186[[#This Row],[STATISTIKKNAVN\nNavn i nasjonal publisering\nSKJULT KOLONNE]])","v":"Uføretrygdede"},null,"Årlig","Nei",null,"Administrative","NAV"]
["SSB","Sosiale forhold og kriminalitet","Offentlige pensjoner og stønader","Arbeidsavklaringspenger","aap","https://www.ssb.no/","https://www.ssb.no/aap",{"$f":"HYPERLINK(Tabell186[[#This Row],[Hjelpekolonne lenketeksten\nSKJULT KOLONNE]],Tabell186[[#This Row],[STATISTIKKNAVN\nNavn i nasjonal publisering\nSKJULT KOLONNE]])","v":"Arbeidsavklaringspenger"},null,"Årlig","Nei",null,"Administrative","NAV"]
["SSB","Sosiale forhold og kriminalitet","Offentlige pensjoner og stønader","Økonomisk sosialhjelp","soshjelpk","https://www.ssb.no/","https://www.ssb.no/soshjelpk",{"$f":"HYPERLINK(Tabell186[[#This Row],[Hjelpekolonne lenketeksten\nSKJULT KOLONNE]],Tabell186[[#This Row],[STATISTIKKNAVN\nNavn i nasjonal publisering\nSKJULT KOLONNE]])","v":"Økonomisk sosialhjelp"},null,"Årlig","Nei","OECD","Statistiske","KOSTRA"]
["SSB","Sosiale forhold og kriminalitet","Offentlige pensjoner og stønader","Velferdsytelser - arbeid og stønadsmottak","velferd","https://www.ssb.no/","https://www.ssb.no/velferd",{"$f":"HYPERLINK(Tabell186[[#This Row],[Hjelpekolonne lenketeksten\nSKJULT KOLONNE]],Tabell186[[#This Row],[STATISTIKKNAVN\nNavn i nasjonal publisering\nSKJULT KOLONNE]])","v":"Velferdsytelser - arbeid og stønadsmottak"},null,"Sjeldnere enn årlig","Nei",null,"Administrative","FD trygd"]
["SSB","Transport og reiseliv","Landtransport","Drosjetransport","drosje","https://www.ssb.no/","https://www.ssb.no/drosje",{"$f":"HYPERLINK(Tabell186[[#This Row],[Hjelpekolonne lenketeksten\nSKJULT KOLONNE]],Tabell186[[#This Row],[STATISTIKKNAVN\nNavn i nasjonal publisering\nSKJULT KOLONNE]])","v":"Drosjetransport"},null,"Årlig","Nei",null,"Statistiske","SKD"]
["SSB","Transport og reiseliv","Landtransport","Bilparken","bilreg","https://www.ssb.no/","https://www.ssb.no/bilreg",{"$f":"HYPERLINK(Tabell186[[#This Row],[Hjelpekolonne lenketeksten\nSKJULT KOLONNE]],Tabell186[[#This Row],[STATISTIKKNAVN\nNavn i nasjonal publisering\nSKJULT KOLONNE]])","v":"Bilparken"},null,"Årlig","Nei","OECD; UNECE","Administrative","Motorkjøretøyer og vrakpant"]
["SSB","Transport og reiseliv","Landtransport","Godstransport med lastebil ","godstrans","https://www.ssb.no/","https://www.ssb.no/godstrans",{"$f":"HYPERLINK(Tabell186[[#This Row],[Hjelpekolonne lenketeksten\nSKJULT KOLONNE]],Tabell186[[#This Row],[STATISTIKKNAVN\nNavn i nasjonal publisering\nSKJULT KOLONNE]])","v":"Godstransport med lastebil "},null,"Kvartalsvis","Ja","OECD","Statistiske","Utenrikshandel"]
["SSB","Transport og reiseliv","Landtransport","Innenlandsk transport","transpinn","https://www.ssb.no/","https://www.ssb.no/transpinn",{"$f":"HYPERLINK(Tabell186[[#This Row],[Hjelpekolonne lenketeksten\nSKJULT KOLONNE]],Tabell186[[#This Row],[STATISTIKKNAVN\nNavn i nasjonal publisering\nSKJULT KOLONNE]])","v":"Innenlandsk transport"},null,"Årlig","Nei","OECD; UNECE","Statistiske","Andre statistikker"]
["SSB","Transport og reiseliv","Landtransport","Jernbanetransport","jernbane","https://www.ssb.no/","https://www.ssb.no/jernbane",{"$f":"HYPERLINK(Tabell186[[#This Row],[Hjelpekolonne lenketeksten\nSKJULT KOLONNE]],Tabell186[[#This Row],[STATISTIKKNAVN\nNavn i nasjonal publisering\nSKJULT KOLONNE]])","v":"Jernbanetransport"},null,"Kvartalsvis","Ja","OECD","Statistiske"]
["SSB","Transport og reiseliv","Landtransport","Kjørelengder","klreg","https://www.ssb.no/","https://www.ssb.no/klreg",{"$f":"HYPERLINK(Tabell186[[#This Row],[Hjelpekolonne lenketeksten\nSKJULT KOLONNE]],Tabell186[[#This Row],[STATISTIKKNAVN\nNavn i nasjonal publisering\nSKJULT KOLONNE]])","v":"Kjørelengder"},null,"Årlig","Nei","OECD; UNECE","Statistiske; Administrative","Statens vegvesen"]
["SSB","Transport og reiseliv","Landtransport","Kollektivtransport","kolltrans","https://www.ssb.no/","https://www.ssb.no/kolltrans",{"$f":"HYPERLINK(Tabell186[[#This Row],[Hjelpekolonne lenketeksten\nSKJULT KOLONNE]],Tabell186[[#This Row],[STATISTIKKNAVN\nNavn i nasjonal publisering\nSKJULT KOLONNE]])","v":"Kollektivtransport"},null,"Årlig","Nei","OECD; UNECE","Statistiske"]
["SSB","Transport og reiseliv","Landtransport","Kostnadsindeks for buss","kbuss","https://www.ssb.no/","https://www.ssb.no/kbuss",{"$f":"HYPERLINK(Tabell186[[#This Row],[Hjelpekolonne lenketeksten\nSKJULT KOLONNE]],Tabell186[[#This Row],[STATISTIKKNAVN\nNavn i nasjonal publisering\nSKJULT KOLONNE]])","v":"Kostnadsindeks for buss"},null,"Kvartalsvis","Nei",null,"Statistiske; Administrative","Andre statistikker"]
["SSB","Transport og reiseliv","Landtransport","Kostnadsindeks for lastebiltransport","kilt","https://www.ssb.no/","https://www.ssb.no/kilt",{"$f":"HYPERLINK(Tabell186[[#This Row],[Hjelpekolonne lenketeksten\nSKJULT KOLONNE]],Tabell186[[#This Row],[STATISTIKKNAVN\nNavn i nasjonal publisering\nSKJULT KOLONNE]])","v":"Kostnadsindeks for lastebiltransport"},null,"Kvartalsvis","Nei",null,"Statistiske"]
["SSB","Transport og reiseliv","Landtransport","Samferdsel i kommuner og fylkeskommuner","samf_kostra","https://www.ssb.no/","https://www.ssb.no/samf_kostra",{"$f":"HYPERLINK(Tabell186[[#This Row],[Hjelpekolonne lenketeksten\nSKJULT KOLONNE]],Tabell186[[#This Row],[STATISTIKKNAVN\nNavn i nasjonal publisering\nSKJULT KOLONNE]])","v":"Samferdsel i kommuner og fylkeskommuner"},"Årlige tall oppdateres hvert halvår","Årlig","Nei",null,"Statistiske","KOSTRA"]
["SSB","Transport og reiseliv","Landtransport","Transport med varebiler","transpsg","https://www.ssb.no/","https://www.ssb.no/transpsg",{"$f":"HYPERLINK(Tabell186[[#This Row],[Hjelpekolonne lenketeksten\nSKJULT KOLONNE]],Tabell186[[#This Row],[STATISTIKKNAVN\nNavn i nasjonal publisering\nSKJULT KOLONNE]])","v":"Transport med varebiler"},"Planleggges hvert 5. år","Sjeldnere enn årlig","Nei",null,"Statistiske"]
["SSB","Transport og reiseliv","Landtransport","Trafikkulykker med personskade","vtu","https://www.ssb.no/","https://www.ssb.no/vtu",{"$f":"HYPERLINK(Tabell186[[#This Row],[Hjelpekolonne lenketeksten\nSKJULT KOLONNE]],Tabell186[[#This Row],[STATISTIKKNAVN\nNavn i nasjonal publisering\nSKJULT KOLONNE]])","v":"Trafikkulykker med personskade"},null,"Kvartalsvis","Ja","OECD","Administrative","Politiet"]
["SSB","Transport og reiseliv","Lufttransport","Luftfart","flytrafikk","https://www.ssb.no/","https://www.ssb.no/flytrafikk",{"$f":"HYPERLINK(Tabell186[[#This Row],[Hjelpekolonne lenketeksten\nSKJULT KOLONNE]],Tabell186[[#This Row],[STATISTIKKNAVN\nNavn i nasjonal publisering\nSKJULT KOLONNE]])","v":"Luftfart"},null,"Kvartalsvis","Ja",null,"Statistiske"]
["SSB","Transport og reiseliv","Sjøtransport","Driftsundersøkelse for sjøfart","skipute","https://www.ssb.no/","https://www.ssb.no/skipute",{"$f":"HYPERLINK(Tabell186[[#This Row],[Hjelpekolonne lenketeksten\nSKJULT KOLONNE]],Tabell186[[#This Row],[STATISTIKKNAVN\nNavn i nasjonal publisering\nSKJULT KOLONNE]])","v":"Driftsundersøkelse for sjøfart"},null,"Årlig","Nei",null,"Statistiske; Administrative","Utvalgsundersøkelse; Næringsoppgaver"]
["SSB","Transport og reiseliv","Sjøtransport","Godstransport på kysten","havn","https://www.ssb.no/","https://www.ssb.no/havn",{"$f":"HYPERLINK(Tabell186[[#This Row],[Hjelpekolonne lenketeksten\nSKJULT KOLONNE]],Tabell186[[#This Row],[STATISTIKKNAVN\nNavn i nasjonal publisering\nSKJULT KOLONNE]])","v":"Godstransport på kysten"},null,"Årlig","Ja","OECD","Statistiske"]
["SSB","Transport og reiseliv","Sjøtransport","Handelsflåten, norskregistrerte skip","handelsfl","https://www.ssb.no/","https://www.ssb.no/handelsfl",{"$f":"HYPERLINK(Tabell186[[#This Row],[Hjelpekolonne lenketeksten\nSKJULT KOLONNE]],Tabell186[[#This Row],[STATISTIKKNAVN\nNavn i nasjonal publisering\nSKJULT KOLONNE]])","v":"Handelsflåten, norskregistrerte skip"},null,"Årlig","Nei",null,"Administrative","Skipsregistre"]
["SSB","Transport og reiseliv","Sjøtransport","Kostnadsindeks for innenriks sjøfart","kist","https://www.ssb.no/","https://www.ssb.no/kist",{"$f":"HYPERLINK(Tabell186[[#This Row],[Hjelpekolonne lenketeksten\nSKJULT KOLONNE]],Tabell186[[#This Row],[STATISTIKKNAVN\nNavn i nasjonal publisering\nSKJULT KOLONNE]])","v":"Kostnadsindeks for innenriks sjøfart"},null,"Kvartalsvis","Nei",null,"Statistiske","Andre statistikker"]
["SSB","Transport og reiseliv","Reiseliv","Overnattingar","overnatting","https://www.ssb.no/","https://www.ssb.no/overnatting",{"$f":"HYPERLINK(Tabell186[[#This Row],[Hjelpekolonne lenketeksten\nSKJULT KOLONNE]],Tabell186[[#This Row],[STATISTIKKNAVN\nNavn i nasjonal publisering\nSKJULT KOLONNE]])","v":"Overnattingar"},null,"Månedlig","Ja","OECD; UNWTO","Statistiske","Skjemaundersøkelse"]
["SSB","Transport og reiseliv","Reiseliv","Reiseundersøkelsen","reise","https://www.ssb.no/","https://www.ssb.no/reise",{"$f":"HYPERLINK(Tabell186[[#This Row],[Hjelpekolonne lenketeksten\nSKJULT KOLONNE]],Tabell186[[#This Row],[STATISTIKKNAVN\nNavn i nasjonal publisering\nSKJULT KOLONNE]])","v":"Reiseundersøkelsen"},null,"Kvartalsvis","Ja","OECD","Statistiske","Intervjuundersøkelse"]
["SSB","Utdanning","Barnehager","Barnehager","barnehager","https://www.ssb.no/","https://www.ssb.no/barnehager",{"$f":"HYPERLINK(Tabell186[[#This Row],[Hjelpekolonne lenketeksten\nSKJULT KOLONNE]],Tabell186[[#This Row],[STATISTIKKNAVN\nNavn i nasjonal publisering\nSKJULT KOLONNE]])","v":"Barnehager"},null,"Årlig","Ja","OECD; UNESCO","Statistiske","BASIL"]
["SSB","Utdanning","Barnehager","Foreldrebetaling i barnehagar","barnegenniv","https://www.ssb.no/","https://www.ssb.no/barnegenniv",{"$f":"HYPERLINK(Tabell186[[#This Row],[Hjelpekolonne lenketeksten\nSKJULT KOLONNE]],Tabell186[[#This Row],[STATISTIKKNAVN\nNavn i nasjonal publisering\nSKJULT KOLONNE]])","v":"Foreldrebetaling i barnehagar"},null,"Årlig","Nei",null,"Statistiske","BASIL"]
["SSB","Utdanning","Barnehager","Regnskap for private barnehager","barnregnp","https://www.ssb.no/","https://www.ssb.no/barnregnp",{"$f":"HYPERLINK(Tabell186[[#This Row],[Hjelpekolonne lenketeksten\nSKJULT KOLONNE]],Tabell186[[#This Row],[STATISTIKKNAVN\nNavn i nasjonal publisering\nSKJULT KOLONNE]])","v":"Regnskap for private barnehager"},null,"Årlig","Nei","OECD; UNESCO","Statistiske","BASIL"]
["SSB","Utdanning","Barnehager","Ansatte i barnehage og skole","utdansatte","https://www.ssb.no/","https://www.ssb.no/utdansatte",{"$f":"HYPERLINK(Tabell186[[#This Row],[Hjelpekolonne lenketeksten\nSKJULT KOLONNE]],Tabell186[[#This Row],[STATISTIKKNAVN\nNavn i nasjonal publisering\nSKJULT KOLONNE]])","v":"Ansatte i barnehage og skole"},"Statistikken gjelder også delområdene Grunnskoler, Videregående utdanning og Fagskoleutdanning ","Årlig","Nei","OECD; UNESCO","Administrative","A-ordningen; NUDB"]
["SSB","Utdanning","Grunnskoler","Elevar i grunnskolen","utgrs","https://www.ssb.no/","https://www.ssb.no/utgrs",{"$f":"HYPERLINK(Tabell186[[#This Row],[Hjelpekolonne lenketeksten\nSKJULT KOLONNE]],Tabell186[[#This Row],[STATISTIKKNAVN\nNavn i nasjonal publisering\nSKJULT KOLONNE]])","v":"Elevar i grunnskolen"},null,"Årlig","Ja","OECD; UNESCO","Administrative","GSI"]
["SSB","Utdanning","Grunnskoler","Karakterer og nasjonale prøver i grunnskolen","kargrs","https://www.ssb.no/","https://www.ssb.no/kargrs",{"$f":"HYPERLINK(Tabell186[[#This Row],[Hjelpekolonne lenketeksten\nSKJULT KOLONNE]],Tabell186[[#This Row],[STATISTIKKNAVN\nNavn i nasjonal publisering\nSKJULT KOLONNE]])","v":"Karakterer og nasjonale prøver i grunnskolen"},null,"Årlig","Nei",null,"Administrative","VIGO (via Udir)"]
["SSB","Utdanning","Videregående opplæring og annen videregående utdanning","Gjennomføring i videregående opplæring","vgogjen","https://www.ssb.no/","https://www.ssb.no/vgogjen",{"$f":"HYPERLINK(Tabell186[[#This Row],[Hjelpekolonne lenketeksten\nSKJULT KOLONNE]],Tabell186[[#This Row],[STATISTIKKNAVN\nNavn i nasjonal publisering\nSKJULT KOLONNE]])","v":"Gjennomføring i videregående opplæring"},null,"Årlig","Nei","OECD; UNESCO","Administrative","NUDB"]
["SSB","Utdanning","Videregående opplæring og annen videregående utdanning","Videregående opplæring og annen videregående utdanning","vgu","https://www.ssb.no/","https://www.ssb.no/vgu",{"$f":"HYPERLINK(Tabell186[[#This Row],[Hjelpekolonne lenketeksten\nSKJULT KOLONNE]],Tabell186[[#This Row],[STATISTIKKNAVN\nNavn i nasjonal publisering\nSKJULT KOLONNE]])","v":"Videregående opplæring og annen videregående utdanning"},null,"Årlig","Ja","OECD; UNESCO","Statistiske; Administrative","VIGO (via Udir); NVB"]
["SSB","Utdanning","Fagskoleutdanning","Høyere yrkesfaglig utdanning","fagskoler","https://www.ssb.no/","https://www.ssb.no/fagskoler",{"$f":"HYPERLINK(Tabell186[[#This Row],[Hjelpekolonne lenketeksten\nSKJULT KOLONNE]],Tabell186[[#This Row],[STATISTIKKNAVN\nNavn i nasjonal publisering\nSKJULT KOLONNE]])","v":"Høyere yrkesfaglig utdanning"},null,"Årlig","Ja","OECD; UNESCO","Administrative","DBH"]
["SSB","Utdanning","Universitets- og høgskoleutdanning","Gjennomføring ved universiteter og høgskoler","hugjen","https://www.ssb.no/","https://www.ssb.no/hugjen",{"$f":"HYPERLINK(Tabell186[[#This Row],[Hjelpekolonne lenketeksten\nSKJULT KOLONNE]],Tabell186[[#This Row],[STATISTIKKNAVN\nNavn i nasjonal publisering\nSKJULT KOLONNE]])","v":"Gjennomføring ved universiteter og høgskoler"},null,"Årlig","Ja","OECD; UNESCO","Administrative","NUDB"]
["SSB","Utdanning","Universitets- og høgskoleutdanning","Studenter i universitets- og høgskoleutdanning","utuvh","https://www.ssb.no/","https://www.ssb.no/utuvh",{"$f":"HYPERLINK(Tabell186[[#This Row],[Hjelpekolonne lenketeksten\nSKJULT KOLONNE]],Tabell186[[#This Row],[STATISTIKKNAVN\nNavn i nasjonal publisering\nSKJULT KOLONNE]])","v":"Studenter i universitets- og høgskoleutdanning"},null,"Årlig","Ja","OECD; UNESCO","Administrative","DBH"]
["SSB","Utdanning","Universitets- og høgskoleutdanning","Studiepoeng og fullført universitets- og høgskoleutdanning","eksuvh","https://www.ssb.no/","https://www.ssb.no/eksuvh",{"$f":"HYPERLINK(Tabell186[[#This Row],[Hjelpekolonne lenketeksten\nSKJULT KOLONNE]],Tabell186[[#This Row],[STATISTIKKNAVN\nNavn i nasjonal publisering\nSKJULT KOLONNE]])","v":"Studiepoeng og fullført universitets- og høgskoleutdanning"},null,"Årlig","Ja",null,"Administrative","DBH"]
["SSB","Utdanning","Voksenopplæring","Introduksjonsordningen for nyankomne innvandrere","introinnv","https://www.ssb.no/","https://www.ssb.no/introinnv",{"$f":"HYPERLINK(Tabell186[[#This Row],[Hjelpekolonne lenketeksten\nSKJULT KOLONNE]],Tabell186[[#This Row],[STATISTIKKNAVN\nNavn i nasjonal publisering\nSKJULT KOLONNE]])","v":"Introduksjonsordningen for nyankomne innvandrere"},null,"Årlig","Nei",null,"Administrative","NIR"]
["SSB","Utdanning","Voksenopplæring","Livslang læring","lvm","https://www.ssb.no/","https://www.ssb.no/lvm",{"$f":"HYPERLINK(Tabell186[[#This Row],[Hjelpekolonne lenketeksten\nSKJULT KOLONNE]],Tabell186[[#This Row],[STATISTIKKNAVN\nNavn i nasjonal publisering\nSKJULT KOLONNE]])","v":"Livslang læring"},"Publisering hvert 2. år ","Sjeldnere enn årlig","Nei","OECD; UNESCO","Statistiske","Tillegg Arbeidskraftundersøkelsen"]
["SSB","Utdanning","Voksenopplæring","Norskopplæring for voksne innvandrere","nopplinnv","https://www.ssb.no/","https://www.ssb.no/nopplinnv",{"$f":"HYPERLINK(Tabell186[[#This Row],[Hjelpekolonne lenketeksten\nSKJULT KOLONNE]],Tabell186[[#This Row],[STATISTIKKNAVN\nNavn i nasjonal publisering\nSKJULT KOLONNE]])","v":"Norskopplæring for voksne innvandrere"},null,"Årlig","Nei",null,"Administrative","NIR"]
["SSB","Utdanning","Voksenopplæring","Opplæring i føretak","opbed","https://www.ssb.no/","https://www.ssb.no/opbed",{"$f":"HYPERLINK(Tabell186[[#This Row],[Hjelpekolonne lenketeksten\nSKJULT KOLONNE]],Tabell186[[#This Row],[STATISTIKKNAVN\nNavn i nasjonal publisering\nSKJULT KOLONNE]])","v":"Opplæring i føretak"},"Publisering hvert 5. år  ","Sjeldnere enn årlig","Ja",null,"Statistiske","Datainnsamling fra foretak"]
["SSB","Utdanning","Voksenopplæring","Studieforbundenes opplæringsvirksomhet","voppl","https://www.ssb.no/","https://www.ssb.no/voppl",{"$f":"HYPERLINK(Tabell186[[#This Row],[Hjelpekolonne lenketeksten\nSKJULT KOLONNE]],Tabell186[[#This Row],[STATISTIKKNAVN\nNavn i nasjonal publisering\nSKJULT KOLONNE]])","v":"Studieforbundenes opplæringsvirksomhet"},null,"Årlig","Nei",null,"Statistiske","Direkte datainnsamling fra studieforbund"]
["SSB","Utdanning","Voksenopplæring","Voksnes læring","vol","https://www.ssb.no/","https://www.ssb.no/vol",{"$f":"HYPERLINK(Tabell186[[#This Row],[Hjelpekolonne lenketeksten\nSKJULT KOLONNE]],Tabell186[[#This Row],[STATISTIKKNAVN\nNavn i nasjonal publisering\nSKJULT KOLONNE]])","v":"Voksnes læring"},"Publisering hvert 6. år","Sjeldnere enn årlig","Ja",null,"Statistiske","Direkte datainnsamling fra individer"]
["SSB","Utdanning","Utdanningsnivå","Befolkningens utdanningsnivå","utniv","https://www.ssb.no/","https://www.ssb.no/utniv",{"$f":"HYPERLINK(Tabell186[[#This Row],[Hjelpekolonne lenketeksten\nSKJULT KOLONNE]],Tabell186[[#This Row],[STATISTIKKNAVN\nNavn i nasjonal publisering\nSKJULT KOLONNE]])","v":"Befolkningens utdanningsnivå"},null,"Årlig","Ja","OECD; UNESCO","Statistiske","NUDB"]
["SSB","Utdanning","Utdanningsnivå","Leseferdigheter og tallforståelse","piaac","https://www.ssb.no/","https://www.ssb.no/piaac",{"$f":"HYPERLINK(Tabell186[[#This Row],[Hjelpekolonne lenketeksten\nSKJULT KOLONNE]],Tabell186[[#This Row],[STATISTIKKNAVN\nNavn i nasjonal publisering\nSKJULT KOLONNE]])","v":"Leseferdigheter og tallforståelse"},null,"Sjeldnere enn årlig","Nei","OECD; UNESCO","Statistiske","Direkte datainnsamling fra individer"]
["SSB","Utenriksøkonomi","Utenriksregnskap","Utenriksregnskap","ur","https://www.ssb.no/","https://www.ssb.no/ur",{"$f":"HYPERLINK(Tabell186[[#This Row],[Hjelpekolonne lenketeksten\nSKJULT KOLONNE]],Tabell186[[#This Row],[STATISTIKKNAVN\nNavn i nasjonal publisering\nSKJULT KOLONNE]])","v":"Utenriksregnskap"},null,"Kvartalsvis","Ja","OECD","Statistiske","Andre statistikker"]
["SSB","Utenriksøkonomi","Utenriksregnskap","Porteføljeinvesteringer i utlandet","portinvutl","https://www.ssb.no/","https://www.ssb.no/portinvutl",{"$f":"HYPERLINK(Tabell186[[#This Row],[Hjelpekolonne lenketeksten\nSKJULT KOLONNE]],Tabell186[[#This Row],[STATISTIKKNAVN\nNavn i nasjonal publisering\nSKJULT KOLONNE]])","v":"Porteføljeinvesteringer i utlandet"},null,"Årlig","Nei","IMF","Statistiske; Administrative"]
["SSB","Utenriksøkonomi","Utenriksregnskap","Internasjonale reservar og valutalikviditet","intrevm","https://www.ssb.no/","https://www.ssb.no/intrevm",{"$f":"HYPERLINK(Tabell186[[#This Row],[Hjelpekolonne lenketeksten\nSKJULT KOLONNE]],Tabell186[[#This Row],[STATISTIKKNAVN\nNavn i nasjonal publisering\nSKJULT KOLONNE]])","v":"Internasjonale reservar og valutalikviditet"},null,"Månedlig","Nei","IMF","Statistiske","Norges Bank"]
["SSB","Utenriksøkonomi","Utenrikshandel","Utenrikshandel med varer","muh","https://www.ssb.no/","https://www.ssb.no/muh",{"$f":"HYPERLINK(Tabell186[[#This Row],[Hjelpekolonne lenketeksten\nSKJULT KOLONNE]],Tabell186[[#This Row],[STATISTIKKNAVN\nNavn i nasjonal publisering\nSKJULT KOLONNE]])","v":"Utenrikshandel med varer"},null,"Månedlig","Ja","OECD; WTO; UNSD; IMF","Statistiske; Administrative","TVINN; Direkte datainnsamling fra oppgavegiver"]
["SSB","Utenriksøkonomi","Utenrikshandel","Volum- og prisindekser for utenrikshandel med varer","uhvp","https://www.ssb.no/","https://www.ssb.no/uhvp",{"$f":"HYPERLINK(Tabell186[[#This Row],[Hjelpekolonne lenketeksten\nSKJULT KOLONNE]],Tabell186[[#This Row],[STATISTIKKNAVN\nNavn i nasjonal publisering\nSKJULT KOLONNE]])","v":"Volum- og prisindekser for utenrikshandel med varer"},null,"Kvartalsvis","Nei",null,"Statistiske","Utenrikshandel med varer"]
["SSB","Utenriksøkonomi","Utenrikshandel","Utanrikshandel med tenester","uhtjenester","https://www.ssb.no/","https://www.ssb.no/uhtjenester",{"$f":"HYPERLINK(Tabell186[[#This Row],[Hjelpekolonne lenketeksten\nSKJULT KOLONNE]],Tabell186[[#This Row],[STATISTIKKNAVN\nNavn i nasjonal publisering\nSKJULT KOLONNE]])","v":"Utanrikshandel med tenester"},null,"Kvartalsvis","Ja",null,"Statistiske","Altinn skjema"]
["SSB","Utenriksøkonomi","Utenrikshandel","Outsourcing","outsourcing","https://www.ssb.no/","https://www.ssb.no/outsourcing",{"$f":"HYPERLINK(Tabell186[[#This Row],[Hjelpekolonne lenketeksten\nSKJULT KOLONNE]],Tabell186[[#This Row],[STATISTIKKNAVN\nNavn i nasjonal publisering\nSKJULT KOLONNE]])","v":"Outsourcing"},"Datainnsamling hvert 3. år","Sjeldnere enn årlig","Ja",null,"Statistiske","Altinn skjema"]
["SSB","Utenriksøkonomi","Utenrikshandel","Eksport av laks","laks","https://www.ssb.no/","https://www.ssb.no/laks",{"$f":"HYPERLINK(Tabell186[[#This Row],[Hjelpekolonne lenketeksten\nSKJULT KOLONNE]],Tabell186[[#This Row],[STATISTIKKNAVN\nNavn i nasjonal publisering\nSKJULT KOLONNE]])","v":"Eksport av laks"},null,"Ukentlig","Nei",null,"Administrative","TVINN"]
["SSB","Utenriksøkonomi","Økonomisk globalisering","Direkteinvesteringer","di","https://www.ssb.no/","https://www.ssb.no/di",{"$f":"HYPERLINK(Tabell186[[#This Row],[Hjelpekolonne lenketeksten\nSKJULT KOLONNE]],Tabell186[[#This Row],[STATISTIKKNAVN\nNavn i nasjonal publisering\nSKJULT KOLONNE]])","v":"Direkteinvesteringer"},null,"Årlig","Ja","OECD; IMF; UNCTAD","Statistiske"]
["SSB","Utenriksøkonomi","Økonomisk globalisering","Utenlandske datterselskap i Norge","utfono","https://www.ssb.no/","https://www.ssb.no/utfono",{"$f":"HYPERLINK(Tabell186[[#This Row],[Hjelpekolonne lenketeksten\nSKJULT KOLONNE]],Tabell186[[#This Row],[STATISTIKKNAVN\nNavn i nasjonal publisering\nSKJULT KOLONNE]])","v":"Utenlandske datterselskap i Norge"},null,"Årlig","Ja",null,"Administrative; Andre","EGR; VoF; Internett; Andre statistikker"]
["SSB","Utenriksøkonomi","Økonomisk globalisering","Norske dotterselskap i utlandet","ufats","https://www.ssb.no/","https://www.ssb.no/ufats",{"$f":"HYPERLINK(Tabell186[[#This Row],[Hjelpekolonne lenketeksten\nSKJULT KOLONNE]],Tabell186[[#This Row],[STATISTIKKNAVN\nNavn i nasjonal publisering\nSKJULT KOLONNE]])","v":"Norske dotterselskap i utlandet"},null,"Årlig","Ja",null,"Statistiske","INVUT"]
["SSB","Utenriksøkonomi","Økonomisk globalisering","Rekneskap for ikkje-finansielle føretaks utanlandsfinansiering","regnut","https://www.ssb.no/","https://www.ssb.no/regnut",{"$f":"HYPERLINK(Tabell186[[#This Row],[Hjelpekolonne lenketeksten\nSKJULT KOLONNE]],Tabell186[[#This Row],[STATISTIKKNAVN\nNavn i nasjonal publisering\nSKJULT KOLONNE]])","v":"Rekneskap for ikkje-finansielle føretaks utanlandsfinansiering"},null,"Kvartalsvis; Årlig","Nei",null,"Statistiske","Datainnsamling fra oppgavegivere"]
["SSB","Utenriksøkonomi","Økonomisk globalisering","Betalingsstrømmer mellom Norge og utlandet","betalstr","https://www.ssb.no/","https://www.ssb.no/betalstr",{"$f":"HYPERLINK(Tabell186[[#This Row],[Hjelpekolonne lenketeksten\nSKJULT KOLONNE]],Tabell186[[#This Row],[STATISTIKKNAVN\nNavn i nasjonal publisering\nSKJULT KOLONNE]])","v":"Betalingsstrømmer mellom Norge og utlandet"},null,"Kvartalsvis","Nei",null,"Administrative","Valutaregisteret (SKD)"]
["SSB","Valg","Folkeavstemminger","Lokale folkeavstemninger","folkavs_kostra","https://www.ssb.no/","https://www.ssb.no/folkavs_kostra",{"$f":"HYPERLINK(Tabell186[[#This Row],[Hjelpekolonne lenketeksten\nSKJULT KOLONNE]],Tabell186[[#This Row],[STATISTIKKNAVN\nNavn i nasjonal publisering\nSKJULT KOLONNE]])","v":"Lokale folkeavstemninger"},null,"Årlig","Nei",null,"Statistiske","KOSTRA"]
["SSB","Valg","Valg til Stortinget, fylkesting og kommunestyrer","Valgresultat for kommunestyre- og fylkestingsvalget ","kommvalg","https://www.ssb.no/",{"$f":"F316 & E316","v":"https://www.ssb.no/kommvalg"},{"$f":"HYPERLINK(Tabell186[[#This Row],[Hjelpekolonne lenketeksten\nSKJULT KOLONNE]],Tabell186[[#This Row],[STATISTIKKNAVN\nNavn i nasjonal publisering\nSKJULT KOLONNE]])","v":"Valgresultat for kommunestyre- og fylkestingsvalget "},"Publisering hvert 4. år","Sjeldnere enn årlig","Nei",null,"Statistiske; Administrative","Valgdirektoratet"]
["SSB","Valg","Valg til Stortinget, fylkesting og kommunestyrer","Kommunestyre- og fylkestingsvalget, kandidater og representanter","kommvalgform","https://www.ssb.no/","https://www.ssb.no/kommvalgform",{"$f":"HYPERLINK(Tabell186[[#This Row],[Hjelpekolonne lenketeksten\nSKJULT KOLONNE]],Tabell186[[#This Row],[STATISTIKKNAVN\nNavn i nasjonal publisering\nSKJULT KOLONNE]])","v":"Kommunestyre- og fylkestingsvalget, kandidater og representanter"},"Publisering hvert 4. år","Sjeldnere enn årlig","Nei","FN","Statistiske; Administrative","Valgdirektoratet"]
["SSB","Valg","Valg til Stortinget, fylkesting og kommunestyrer","Personer med stemmerett","stemmerettst","https://www.ssb.no/","https://www.ssb.no/stemmerettst",{"$f":"HYPERLINK(Tabell186[[#This Row],[Hjelpekolonne lenketeksten\nSKJULT KOLONNE]],Tabell186[[#This Row],[STATISTIKKNAVN\nNavn i nasjonal publisering\nSKJULT KOLONNE]])","v":"Personer med stemmerett"},"Publisering hvert 2. år","Sjeldnere enn årlig","Nei",null,"Administrative","Valgdirektoratet"]
["SSB","Valg","Valg til Stortinget, fylkesting og kommunestyrer","Kommunestyre- og fylkestingsvalget, velgerundersøkelsen","vundkomm","https://www.ssb.no/","https://www.ssb.no/vundkomm",{"$f":"HYPERLINK(Tabell186[[#This Row],[Hjelpekolonne lenketeksten\nSKJULT KOLONNE]],Tabell186[[#This Row],[STATISTIKKNAVN\nNavn i nasjonal publisering\nSKJULT KOLONNE]])","v":"Kommunestyre- og fylkestingsvalget, velgerundersøkelsen"},"Publisering hvert 4. år","Sjeldnere enn årlig","Nei",null,"Statistiske","Datainnsamling fra velgere"]
["SSB","Valg","Valg til Stortinget, fylkesting og kommunestyrer","Stortingsvalet","stortingsvalg","https://www.ssb.no/","https://www.ssb.no/stortingsvalg",{"$f":"HYPERLINK(Tabell186[[#This Row],[Hjelpekolonne lenketeksten\nSKJULT KOLONNE]],Tabell186[[#This Row],[STATISTIKKNAVN\nNavn i nasjonal publisering\nSKJULT KOLONNE]])","v":"Stortingsvalet"},"Publisering hvert 4. år","Sjeldnere enn årlig","Nei",null,"Statistiske","Valgdirektoratet"]
["SSB","Valg","Valg til Stortinget, fylkesting og kommunestyrer","Stortingsvalget, listekandidater","stvalgkand","https://www.ssb.no/","https://www.ssb.no/stvalgkand",{"$f":"HYPERLINK(Tabell186[[#This Row],[Hjelpekolonne lenketeksten\nSKJULT KOLONNE]],Tabell186[[#This Row],[STATISTIKKNAVN\nNavn i nasjonal publisering\nSKJULT KOLONNE]])","v":"Stortingsvalget, listekandidater"},"Publisering hvert 4. år","Sjeldnere enn årlig","Nei","FN","Statistiske","Valgdirektoratet"]
["SSB","Valg","Valg til Stortinget, fylkesting og kommunestyrer","Stortingsvalget, velgerundersøkelsen","vund","https://www.ssb.no/","https://www.ssb.no/vund",{"$f":"HYPERLINK(Tabell186[[#This Row],[Hjelpekolonne lenketeksten\nSKJULT KOLONNE]],Tabell186[[#This Row],[STATISTIKKNAVN\nNavn i nasjonal publisering\nSKJULT KOLONNE]])","v":"Stortingsvalget, velgerundersøkelsen"},"Publisering hvert 4. år","Sjeldnere enn årlig","Nei",null,"Statistiske","Datainnsamling fra velgere"]
["SSB","Valg","Valg til Stortinget, fylkesting og kommunestyrer","Valgdeltakelse ","valgdeltakelse","https://www.ssb.no/","https://www.ssb.no/valgdeltakelse",{"$f":"HYPERLINK(Tabell186[[#This Row],[Hjelpekolonne lenketeksten\nSKJULT KOLONNE]],Tabell186[[#This Row],[STATISTIKKNAVN\nNavn i nasjonal publisering\nSKJULT KOLONNE]])","v":"Valgdeltakelse "},"Publisering hvert 2. år","Sjeldnere enn årlig","Nei","OECD","Statistiske","Valgdirektoratet og innsamling fra valgstyrene"]
["SSB","Valg","Valg til Stortinget, fylkesting og kommunestyrer","Valgkampbidrag","valgkamp","https://www.ssb.no/","https://www.ssb.no/valgkamp",{"$f":"HYPERLINK(Tabell186[[#This Row],[Hjelpekolonne lenketeksten\nSKJULT KOLONNE]],Tabell186[[#This Row],[STATISTIKKNAVN\nNavn i nasjonal publisering\nSKJULT KOLONNE]])","v":"Valgkampbidrag"},null,"Sjeldnere enn årlig","Nei",null,"Administrative","Partifinansieringsregisteret"]
["SSB","Valg","Sametingsvalg","Sametingsvalet","sametingsvalg","https://www.ssb.no/","https://www.ssb.no/sametingsvalg",{"$f":"HYPERLINK(Tabell186[[#This Row],[Hjelpekolonne lenketeksten\nSKJULT KOLONNE]],Tabell186[[#This Row],[STATISTIKKNAVN\nNavn i nasjonal publisering\nSKJULT KOLONNE]])","v":"Sametingsvalet"},"Publisering hvert 4. år","Sjeldnere enn årlig","Nei",null,"Statistiske","Sametinget; Valgdirektoratet"]
["SSB","Valg","Partifinansiering","Finansiering av politiske partier","partifin","https://www.ssb.no/","https://www.ssb.no/partifin",{"$f":"HYPERLINK(Tabell186[[#This Row],[Hjelpekolonne lenketeksten\nSKJULT KOLONNE]],Tabell186[[#This Row],[STATISTIKKNAVN\nNavn i nasjonal publisering\nSKJULT KOLONNE]])","v":"Finansiering av politiske partier"},null,"Årlig","Nei",null,"Administrative","Partifinansieringsregisteret"]
["SSB","Varehandel og næringslivstjenester","Næringslivstjenester","Næringslivstjenester, omsetning etter tjenestetyper","ftot","https://www.ssb.no/","https://www.ssb.no/ftot",{"$f":"HYPERLINK(Tabell186[[#This Row],[Hjelpekolonne lenketeksten\nSKJULT KOLONNE]],Tabell186[[#This Row],[STATISTIKKNAVN\nNavn i nasjonal publisering\nSKJULT KOLONNE]])","v":"Næringslivstjenester, omsetning etter tjenestetyper"},null,"Årlig","Ja",null,"Statistiske; Administrative","Utvalgsundersøkelse; Næringsoppgaver brukes til å kontrollere totalnivå"]
["SSB","Varehandel og næringslivstjenester","Næringslivstjenester","Omsetningsindeks for tjenester","oit","https://www.ssb.no/","https://www.ssb.no/oit",{"$f":"HYPERLINK(Tabell186[[#This Row],[Hjelpekolonne lenketeksten\nSKJULT KOLONNE]],Tabell186[[#This Row],[STATISTIKKNAVN\nNavn i nasjonal publisering\nSKJULT KOLONNE]])","v":"Omsetningsindeks for tjenester"},null,"Kvartalsvis","Ja",null,"Administrative","SKD - terminvis innrapportering av omsetning"]
["SSB","Varehandel og næringslivstjenester","Varehandel","Varekonsumindeksen","vki","https://www.ssb.no/","https://www.ssb.no/vki",{"$f":"HYPERLINK(Tabell186[[#This Row],[Hjelpekolonne lenketeksten\nSKJULT KOLONNE]],Tabell186[[#This Row],[STATISTIKKNAVN\nNavn i nasjonal publisering\nSKJULT KOLONNE]])","v":"Varekonsumindeksen"},null,"Månedlig","Nei",null,"Statistiske","Andre statistikker"]
["SSB","Varehandel og næringslivstjenester","Varehandel","Varehandelsindeksen","doi","https://www.ssb.no/","https://www.ssb.no/doi",{"$f":"HYPERLINK(Tabell186[[#This Row],[Hjelpekolonne lenketeksten\nSKJULT KOLONNE]],Tabell186[[#This Row],[STATISTIKKNAVN\nNavn i nasjonal publisering\nSKJULT KOLONNE]])","v":"Varehandelsindeksen"},null,"Månedlig","Ja","BIS","Statistiske; Andre","Skjemaundersøkelse, Informasjon fra kjeder i detaljhandel, MVA-registeret"]
["SSB","Varehandel og næringslivstjenester","Varehandel","Investeringsindeks for detaljhandel","detinv","https://www.ssb.no/","https://www.ssb.no/detinv",{"$f":"HYPERLINK(Tabell186[[#This Row],[Hjelpekolonne lenketeksten\nSKJULT KOLONNE]],Tabell186[[#This Row],[STATISTIKKNAVN\nNavn i nasjonal publisering\nSKJULT KOLONNE]])","v":"Investeringsindeks for detaljhandel"},null,"Kvartalsvis","Nei",null,"Statistiske; Andre","Skjemaundersøkelse, Informasjon fra kjeder i detaljhandel"]
["SSB","Varehandel og næringslivstjenester","Varehandel","Grensehandel","grensehandel","https://www.ssb.no/","https://www.ssb.no/grensehandel",{"$f":"HYPERLINK(Tabell186[[#This Row],[Hjelpekolonne lenketeksten\nSKJULT KOLONNE]],Tabell186[[#This Row],[STATISTIKKNAVN\nNavn i nasjonal publisering\nSKJULT KOLONNE]])","v":"Grensehandel"},null,"Kvartalsvis","Nei",null,"Statistiske","Intervjuundersøkelse (webskjema)"]
["SSB","Varehandel og næringslivstjenester","Varehandel","Alkoholomsetning","alkohol","https://www.ssb.no/","https://www.ssb.no/alkohol",{"$f":"HYPERLINK(Tabell186[[#This Row],[Hjelpekolonne lenketeksten\nSKJULT KOLONNE]],Tabell186[[#This Row],[STATISTIKKNAVN\nNavn i nasjonal publisering\nSKJULT KOLONNE]])","v":"Alkoholomsetning"},null,"Kvartalsvis","Nei",null,"Administrative","SKD; Vinmonopolet"]
["SSB","Varehandel og næringslivstjenester","Varehandel","Omsetning i varehandel","vroms","https://www.ssb.no/","https://www.ssb.no/vroms",{"$f":"HYPERLINK(Tabell186[[#This Row],[Hjelpekolonne lenketeksten\nSKJULT KOLONNE]],Tabell186[[#This Row],[STATISTIKKNAVN\nNavn i nasjonal publisering\nSKJULT KOLONNE]])","v":"Omsetning i varehandel"},null,"Kvartalsvis","Ja",null,"Administrative","SKD"]
["SSB","Varehandel og næringslivstjenester","Varehandel","Omsetning i varehandel, etter produktgruppe","vov","https://www.ssb.no/","https://www.ssb.no/vov",{"$f":"HYPERLINK(Tabell186[[#This Row],[Hjelpekolonne lenketeksten\nSKJULT KOLONNE]],Tabell186[[#This Row],[STATISTIKKNAVN\nNavn i nasjonal publisering\nSKJULT KOLONNE]])","v":"Omsetning i varehandel, etter produktgruppe"},null,"Sjeldnere enn årlig","Nei",null,"Statistiske","Andre statistikker"]
["SSB","Virksomheter, foretak og regnskap","Eierskap og roller","Aksjer og kapitalutdelinger","aksjer","https://www.ssb.no/","https://www.ssb.no/aksjer",{"$f":"HYPERLINK(Tabell186[[#This Row],[Hjelpekolonne lenketeksten\nSKJULT KOLONNE]],Tabell186[[#This Row],[STATISTIKKNAVN\nNavn i nasjonal publisering\nSKJULT KOLONNE]])","v":"Aksjer og kapitalutdelinger"},null,"Årlig","Nei",null,"Administrative","Aksjonærregister; VoF"]
["SSB","Virksomheter, foretak og regnskap","Eierskap og roller","Etablerere i næringslivet","etablerere","https://www.ssb.no/","https://www.ssb.no/etablerere",{"$f":"HYPERLINK(Tabell186[[#This Row],[Hjelpekolonne lenketeksten\nSKJULT KOLONNE]],Tabell186[[#This Row],[STATISTIKKNAVN\nNavn i nasjonal publisering\nSKJULT KOLONNE]])","v":"Etablerere i næringslivet"},null,"Årlig","Nei",null,"Administrative","Aksjonærregister; VoF"]
["SSB","Virksomheter, foretak og regnskap","Eierskap og roller","Styre og leiing i aksjeselskap","styre","https://www.ssb.no/","https://www.ssb.no/styre",{"$f":"HYPERLINK(Tabell186[[#This Row],[Hjelpekolonne lenketeksten\nSKJULT KOLONNE]],Tabell186[[#This Row],[STATISTIKKNAVN\nNavn i nasjonal publisering\nSKJULT KOLONNE]])","v":"Styre og leiing i aksjeselskap"},null,"Årlig","Nei",null,"Administrative","Aksonærregister; VoF; Rolleregister"]
["SSB","Virksomheter, foretak og regnskap","Konkurser","Opna konkursar","konkurs","https://www.ssb.no/","https://www.ssb.no/konkurs",{"$f":"HYPERLINK(Tabell186[[#This Row],[Hjelpekolonne lenketeksten\nSKJULT KOLONNE]],Tabell186[[#This Row],[STATISTIKKNAVN\nNavn i nasjonal publisering\nSKJULT KOLONNE]])","v":"Opna konkursar"},null,"Månedlig; Kvartalsvis","Nei",null,"Administrative","Brønnøysundregistrene"]
["SSB","Virksomheter, foretak og regnskap","Regnskap","Regnskap for ikke-finansielle aksjeselskaper","regnno","https://www.ssb.no/","https://www.ssb.no/regnno",{"$f":"HYPERLINK(Tabell186[[#This Row],[Hjelpekolonne lenketeksten\nSKJULT KOLONNE]],Tabell186[[#This Row],[STATISTIKKNAVN\nNavn i nasjonal publisering\nSKJULT KOLONNE]])","v":"Regnskap for ikke-finansielle aksjeselskaper"},null,"Årlig","Nei",null,"Administrative","Regnskapsregisteret; Næringsoppgave; VoF"]
["SSB","Virksomheter, foretak og regnskap","Regnskap","Regnskapsstatistikk for ikke-finansielle stiftelser","regnifs","https://www.ssb.no/","https://www.ssb.no/regnifs",{"$f":"HYPERLINK(Tabell186[[#This Row],[Hjelpekolonne lenketeksten\nSKJULT KOLONNE]],Tabell186[[#This Row],[STATISTIKKNAVN\nNavn i nasjonal publisering\nSKJULT KOLONNE]])","v":"Regnskapsstatistikk for ikke-finansielle stiftelser"},null,"Årlig","Nei",null,"Administrative","Regnskapsregisteret; VoF"]
["SSB","Virksomheter, foretak og regnskap","Skatt for næringsvirksomhet","Selskapers inntekter og fradrag","ifaksje","https://www.ssb.no/","https://www.ssb.no/ifaksje",{"$f":"HYPERLINK(Tabell186[[#This Row],[Hjelpekolonne lenketeksten\nSKJULT KOLONNE]],Tabell186[[#This Row],[STATISTIKKNAVN\nNavn i nasjonal publisering\nSKJULT KOLONNE]])","v":"Selskapers inntekter og fradrag"},null,"Årlig","Nei",null,"Administrative","Ligningsdata/fastsettingsdata for upersonlige skattytere via SL og NRS; VoF"]
["SSB","Virksomheter, foretak og regnskap","Skatt for næringsvirksomhet","Skatt for selskaper","skattepl","https://www.ssb.no/","https://www.ssb.no/skattepl",{"$f":"HYPERLINK(Tabell186[[#This Row],[Hjelpekolonne lenketeksten\nSKJULT KOLONNE]],Tabell186[[#This Row],[STATISTIKKNAVN\nNavn i nasjonal publisering\nSKJULT KOLONNE]])","v":"Skatt for selskaper"},null,"Årlig","Nei",null,"Administrative","Etterskuddsregisteret; VoF"]
["SSB","Virksomheter, foretak og regnskap","Virksomheter og foretak","Næringenes økonomiske utvikling","naringer","https://www.ssb.no/","https://www.ssb.no/naringer",{"$f":"HYPERLINK(Tabell186[[#This Row],[Hjelpekolonne lenketeksten\nSKJULT KOLONNE]],Tabell186[[#This Row],[STATISTIKKNAVN\nNavn i nasjonal publisering\nSKJULT KOLONNE]])","v":"Næringenes økonomiske utvikling"},null,"Årlig","Ja",null,"Statistiske; Administrative","Næringsoppgaver; Utvalgsundersøkelse; VoF"]
["SSB","Virksomheter, foretak og regnskap","Virksomheter og foretak","Føretak","foretak","https://www.ssb.no/","https://www.ssb.no/foretak",{"$f":"HYPERLINK(Tabell186[[#This Row],[Hjelpekolonne lenketeksten\nSKJULT KOLONNE]],Tabell186[[#This Row],[STATISTIKKNAVN\nNavn i nasjonal publisering\nSKJULT KOLONNE]])","v":"Føretak"},null,"Kvartalsvis; årlig","Ja",null,"Administrative","ER; VoF; A-ordningen"]
["SSB","Virksomheter, foretak og regnskap","Virksomheter og foretak","Nyetablerte foretaks overlevelse og vekst","fordem","https://www.ssb.no/","https://www.ssb.no/fordem",{"$f":"HYPERLINK(Tabell186[[#This Row],[Hjelpekolonne lenketeksten\nSKJULT KOLONNE]],Tabell186[[#This Row],[STATISTIKKNAVN\nNavn i nasjonal publisering\nSKJULT KOLONNE]])","v":"Nyetablerte foretaks overlevelse og vekst"},null,"Årlig","Ja",null,"Statistiske","Andre statistikker"]
["SSB","Virksomheter, foretak og regnskap","Virksomheter og foretak","Næringer på Svalbard","sts","https://www.ssb.no/","https://www.ssb.no/sts",{"$f":"HYPERLINK(Tabell186[[#This Row],[Hjelpekolonne lenketeksten\nSKJULT KOLONNE]],Tabell186[[#This Row],[STATISTIKKNAVN\nNavn i nasjonal publisering\nSKJULT KOLONNE]])","v":"Næringer på Svalbard"},null,"Årlig","Nei",null,"Statistiske; Administrative","Skjemaundersøkelse; Årsregnskaper"]
["SSB","Virksomheter, foretak og regnskap","Virksomheter og foretak","Virksomheter","bedrifter","https://www.ssb.no/","https://www.ssb.no/bedrifter",{"$f":"HYPERLINK(Tabell186[[#This Row],[Hjelpekolonne lenketeksten\nSKJULT KOLONNE]],Tabell186[[#This Row],[STATISTIKKNAVN\nNavn i nasjonal publisering\nSKJULT KOLONNE]])","v":"Virksomheter"},null,"Årlig","Nei",null,"Administrative","ER; VoF"]
[null,null,null,null,null,null,""]

{"sheet":"Forkortelser","index":2,"n_rows":62,"n_cols":6,"rows_kept":62,"cut":false,"hidden":false,"merged":[[0,1,0,2],[0,4,0,5],[1,1,1,2],[1,4,1,5]]}
[null,"ANDRE INTERNASJONALE FORPLIKTELSER\n        (enn EØS-statistikkforpliktelser)",null,null,"DATAKILDER"]
[null,"Internasjonal organisasjon",null,null,"Register, undersøkelse eller annen type datakilde"]
[null,"Forkortelse","Fullt navn",null,"Forkortelse","Fullt navn/forklaring"]
[null,"BIS","Bank for International Settlements",null,"Abetal","Database hos NAV"]
[null,"CBD","Convention on Biological Diversity",null,"A-ordningen","Samordnet rapportering til NAV, Skatteetaten og Statistisk sentralbyrå"]
[null,"CCAMLR","Commission for the Conservation of Antarctic Marine Living Resources",null,"Altinn","Portal og teknisk platform for tjenester og kommunikasjon med det offentlige"]
[null,"CEER","Council of European Energy Regulators ",null,"AR-STAT","Arealressurskart 1:5000 (egen versjon tilrettelagt for statistikkformål)"]
[null,"EC","European Commision",null,"ARENA","Saksbehandlersystem hos NAV"]
[null,"EEA","European Environmental Agency",null,"BASIL","Innrapporteringssystem for barnehager hos Utdanningsdirektoratet"]
[null,"ESA","EFTA Surveillance Authority",null,"BeReg","SSBs befolkningsregister"]
[null,"ENTSO-E","European Network of Transmission System Operators",null,"Bisys","Database hos NAV (barnebidrag)"]
[null,"Euro-Peristat","Del av EUs Health Monitoring Programme",null,"Bufdir","Barne-, ungdoms- og familiedirektoratet"]
[null,"FAO","Food and Agriculture Organization (FN)",null,"DBH","NSDs Database for statistikk om høgre utdanning "]
[null,"FN","Forente nasjoner (UN - United Nations)",null,"DFØ","Direktoratet for forvaltning og økonomistyring "]
[null,"ICCAT","International Commission for the Conservation of Atlantic Tunas",null,"DSB","Direktoratet for samfunnssikkerhet og beredskap"]
[null,"ICES","International Council for the Exploration of the Sea",null,"DSF","Det sentrale folkeregister"]
[null,"IEA","International Energy Agency",null,"EGR","EuroGroups Register"]
[null,"ILO","International Labour Organization (FN)",null,"EHIS","European Health Interview Survey"]
[null,"IMF","International Monetary Fund",null,"Elhub","Statnetts datahub for registrering av målerdata"]
[null,"ITU","International Telecommunication Union",null,"ER","Enhetsregisteret i Brønnøysund"]
[null,"IUCN","International Union for Conservation of Nature",null,"eRapp","Rapporteringssystem hos NVE"]
[null,"JMP","Joint Monitoring Programme for Water Supply, Sanitation and Hygiene ",null,"EU-Silc","EU statistics on income and living conditions"]
[null,"LIS","Luxembourg Income Study",null,"FD trygd","Forløpsdatabase hos SSB"]
[null,"NASCO","North Atlantic Salmon Conservation Organization",null,"FIN","Finansdepartementet"]
[null,"NAFO","Northwest Atlantic Fisheries Organization",null,"FINSE","Finansielle sektorregnskaper hos SSB"]
[null,"NEAFC","North East Atlantic Fisheries Commission",null,"FKB","Felles kartdatabase"]
[null,"NOMBIR","Association for Nordic Medical Birth Registers",null,"FORT","Forsikringsselskapenes offentlige regnskaps- og tilsynsrapportering"]
[null,"NOMESCO","Nordic Medico-Statistical Committee",null,"FP-løsningen","NAVs register over foreldrepenger"]
[null,"OECD","Organisation for Economic Co-operation and Development",null,"GSI","Grunnskolens informasjonssystem hos Utdanningsdirektoratet"]
[null,"SDD","Statistics and Data Directorate (OECD)",null,"Infotrygd","Databehandlersystem for trygd hos NAV"]
[null,"THL","National Institute for Health and Welfare (Finland)",null,"INVUT","Investeringer i utlandet"]
[null,"UN","United Nations",null,"IPLOS","Individbasert pleie- og omsorgsstatistikk. Database hos Helsedirektoratet"]
[null,"UNCTAD","United Nations Conference on Trade and Development",null,"ISF","Institutt for samfunnsforskning"]
[null,"UNECE","United Nations Economic Commission for Europe",null,"KOMPIS","Fagsystem for kriminalomsorgen"]
[null,"UNEP-WCMC","United Nations Environment Programme - World Conservation Monitoring Centre",null,"KOSTRA","Kommune-Stat-Rapportering"]
[null,"UNESCO","United Nations Educational, Scientific and Cultural Organization",null,"KUHR","System og database hos Helsedirektoratet"]
[null,"UNFCC","United Nations Framework Convention on Climate Change",null,"Matrikkelen","Norges offisielle eiendomsregister"]
[null,"UN-Habitat","United Nations Human Settlements Programme",null,"N50 tema","Kartdata (GEONORGE)"]
[null,"UNICEF","United Nations Children's Fund",null,"NIR","Nasjonalt introduksjonsregister hos Integrerings og mangfoldsdirektoratet (IMDi)"]
[null,"UNODC","United Nations Office on Drugs and Crime",null,"NPR","Norsk pasientregister hos Folkehelseinstituttet (FHI)"]
[null,"UNSD","United Nations Statistics Division",null,"NRS","Næringsrapport skatt"]
[null,"UNWTO","United Nations World Tourism Organization",null,"NSD","Norsk senter for forskningsdata"]
[null,"WHO","World Health Organization (FN)",null,"NUDB","Nasjonal Utdanningsdatabase"]
[null,"WTO","World Trade Organization",null,"NVB","Nasjonal vitnemålsdatabase"]
[null,null,null,null,"ORBOF","Offentlig regnskapsrapportering fra banker og finansieringsforetak"]
[null,null,null,null,"PAL","Database hos politiet"]
[null,null,null,null,"PAS","Utdanningsdirektoratets prøveadministrative system"]
[null,null,null,null,"Pesys","Saksbehandlingssystem hos NAV"]
[null,null,null,null,"PORT","Pensjonskassenes offentlige regnskaps- og tilsynsrapportering"]
[null,null,null,null,"SKD","Skattedirektoratet"]
[null,null,null,null,"SKV","Statens kartverk"]
[null,null,null,null,"SL","System for likning"]
[null,null,null,null,"STRASAK","Straffesaksregisteret hos politiet"]
[null,null,null,null,"SYSVAK","Nasjonalt vaksinasjonsregister"]
[null,null,null,null,"TVINN","Tolletatens elektroniske fortollingssystem"]
[null,null,null,null,"UDB","Utlendingsdatabasen hos UDI"]
[null,null,null,null,"UR","Database hos NAV"]
[null,null,null,null,"UTSYS","Saksbehandlersystem hos politiet"]
[null,null,null,null,"Vbase","Veidatabase hos Kartverket"]
[null,null,null,null,"VIGO","Inntakssystem for videregående opplæring"]
[null,null,null,null,"VoF","Virksomhets- og foretaksregisteret hos SSB"]
[null,null,null,null,"VPS","Verdipapirsentralen"]

{"sheet":"Lister til statprogram","index":3,"n_rows":8,"n_cols":18,"rows_kept":8,"cut":false,"hidden":true,"merged":[]}
["EØS-forpliktelser\nog\nKilde for nasjonalregnskapet","Datakilder","Finansiering"]
["Ja","Statistiske","Grunnbevilgning",null,null,null,null,null,null,null,null,"Vis hjelp","Vis hjelp","Vis hjelp","Vis hjelp","Vis hjelp","Lukk hjelp","Vis hjelp"]
["Nei","Administrative","Markedsfinansiering"]
[null,"Andre","Fellesfinansiering"]
[null,"Statistiske; Administrative"]
[null,"Statistiske; Administrative; Andre"]
[null,"Statistiske; Andre"]
[null,"Administrative; Andre"]